{"text_format":"2","workbook":"xlsx","n_sheets":30,"sheets":["Инструкция","modInstruction","TECHSHEET","RST_LIST_ORG","UNREG_LIST_ORG","PRICEZONE_LIST_ORG","ACCESSIBILITY_LIST_ORG","REESTR_MO","AUTHORISATION","OKTMO_HISTORY","RPT_STATISTICS","DICTIONARIES","Лог обновления","modInfo","modHelp","modCommonProcedures","Титульный","Отпуск ТЭ","Комментарии","Проверка","modVLDIntegrityProv","modRequestSpecificData","modRequestReestrData","modfrmReportMode","modSheetTitle","modfrmRegion","modfrmReestr","modUpdTemplMain","modfrmCheckUpdates","modIHLCommandBar"],"not_rendered":{"charts":0,"images":35,"macros":0,"external_links":0,"defined_names":208,"comments":2,"pivot_tables":0},"unopened":[],"bounds":{"document_bytes":16777216,"sheet_cells":100000,"run_cost":"one","rows_first":2000,"rows_last":500,"rows_between":2000,"halvings":0,"cell_chars":16384,"cell_head_chars":4096},"cells_cut":0,"cells_raw":0,"read":"whole","date_system":"1900"}

{"sheet":"Инструкция","index":0,"n_rows":105,"n_cols":27,"rows_kept":105,"cut":false,"hidden":false,"merged":[[96,5,96,23],[102,4,102,16],[102,17,102,24],[103,4,103,16],[103,17,103,24],[104,4,104,16],[104,17,104,24],[58,4,58,9],[58,10,58,23],[34,4,38,23],[59,4,59,9],[59,10,59,23],[39,4,39,23],[40,4,40,16],[40,17,40,24],[45,4,56,23],[75,4,75,6],[75,7,75,23],[92,4,92,23],[94,5,94,18],[76,4,76,9],[20,5,20,12],[20,15,20,23],[21,15,21,23],[1,1,1,6],[2,1,2,2],[4,1,4,24],[6,4,18,23],[21,5,21,12],[76,10,76,23],[78,10,78,23],[78,4,78,9],[77,4,77,9],[77,10,77,23]]}
[{"$nulls":26}," (требуется обновление)"]
[null,{"$f":"\"Код отчёта: \" & GetCode()","v":"Код отчёта: 46TE.STX"}]
[null,{"$f":"\"Версия \" & GetVersion()","v":"Версия 6.0"}]
[]
[null,"Форма 46 - Сведения о полезном отпуске (продаже) тепловой энергии отдельным категориям потребителей"]
[]
[{"$nulls":4},"• На рабочем месте должен быть установлен MS Office 2003 SP3, 2007 SP3, 2010, 2013, 2016, 2019 с полной версией MS Excel\n\n• Макросы во время работы должны быть включены (!)\n\n• Для корректной работы отчёта требуется выбрать низкий уровень безопасности\n(В меню MS Excel 2003: Сервис | Макрос | Безопасность | выбрать пункт «Низкая безопасность» | OK)\n(В меню MS Excel 2007/2010/2013/2016/2019: Параметры Excel | Центр управления безопасностью | Параметры центра управления безопасностью | Параметры макросов | Включить все макросы | ОК)\n\n• Если Вы работаете в табличном процессоре MS Excel 2007 и выше, то можете использовать для работы формат XLSB (Двоичная книга Excel). При работе в формате XLSB заметно быстрее происходит сохранение файла, а также уменьшается размер по сравнению с форматами XLS и XLSM\n\n• Не рекомендуется снимать защиту с листов и каким-либо образом модифицировать защищаемые формулы и расчётные поля, в противном случае, отчёт будет отклонён системой\n\n• При сохранении не следует выбирать формат XLSX (Книга Excel), так как в указанном формате макросы, необходимые для работы отчёта, безвозвратно удаляются"]
{"$rows_empty":13}
[{"$nulls":4},"A"," - предназначенные для заполнения",{"$nulls":8},"A"," - ссылки и автозаполняемые поля"]
[{"$nulls":4},"A"," - с формулами и константами",{"$nulls":8},"A"," - обязательные для заполнения"]
{"$rows_empty":12}
[{"$nulls":4},"Если в предложенном Вам списке необходимая организация, МР/МО отсутствуют, обновите реестры с помощью кнопок\n\nВ результате синхронизации с базой данных список организаций (МР/МО) будет заменён актуальным (механизм синхронизации требует подключения к сети Интернет и основан на использовании протокола HTTPS (TCP порт 443))\n\nЕсли после обновления Вам не удалось найти необходимую организацию в списке, обратитесь к ответственному за поддержание реестра Вашего региона."]
[]
[]
[]
[]
[]
[{"$nulls":4},"Адрес сервера ЕИАС для запроса данных:",{"$nulls":12},"https://eias.ru"]
[]
[]
[]
[]
[{"$nulls":4},"• При сохранении файла осуществляется проверка корректности данных, в том числе на наличие значений в ячейках, обязательных для заполнения\n\n• Если какая-то ячейка не удовлетворяет условию проверки, на лист «Проверка» добавляется гиперссылка на данную ячейку и указывается причина ошибки\n\n• В колонке «Статус» для каждого сообщения возможны 2 значения: ошибка и предупреждение\n\n• При наличии сообщений со статусом «Ошибка» файл будет отклонён системой и не будет загружен в хранилище данных, сообщения со статусом «Предупреждение» носят информационный характер, и такой отчёт будет принят системой"]
{"$rows_empty":12}
[{"$nulls":4},"Консультации:",{"$nulls":5},"Обратиться за помощью"]
[{"$nulls":4},"Дистрибутивы:",{"$nulls":5},"Перейти"]
{"$rows_empty":16}
[{"$nulls":4},"Сопровождение:",{"$nulls":5},"Обратиться за помощью"]
[{"$nulls":4},"Отчётные формы:",{"$nulls":5},"Перейти к разделу"]
[{"$nulls":4},"Хранилище документов:",{"$nulls":5},"Руководство по загрузке документов"]
{"$rows_empty":13}
[{"$nulls":4},"При наличии подключения к Интернет, можно автоматически проверять наличие доступных обновлений. Выберите способ оповещения о наличии обновлений для отчёта:"]
[]
[{"$nulls":5},"проверять доступные обновления (рекомендуется)",{"$nulls":20},"y"]
[]
[{"$nulls":5},"никогда не проверять наличие обновлений (не рекомендуется)"]
[]
[]
[]
[]
[]
[{"$nulls":4},"Использовать прокси-сервер для запроса обновлений",{"$nulls":12},"нет"]
[{"$nulls":4},"Адрес прокси-сервера"]
[{"$nulls":4},"Порт"]

{"sheet":"modInstruction","index":1,"n_rows":0,"n_cols":0,"rows_kept":0,"cut":false,"hidden":true,"merged":[]}

{"sheet":"TECHSHEET","index":2,"n_rows":88,"n_cols":20,"rows_kept":88,"cut":false,"hidden":true,"merged":[]}
["Алтайский край","RU22","Алтайский край",null,"XML_RST_HEAT_LIST_ORG_TAG_NAMES",null,"YES_NO",null,"DNS",null,"MONTH_LIST",null,null,"PROTECT_MARKER",null,"PERIOD",null,null,"konuhov_mv","LOGIN"]
["Амурская область","RU28","Амурская область",null,"RST_ORG_ID",null,"да",null,{"$f":"USE_DNS_SERVICE","v":"https://eias.ru"},null,"Январь",1,null,"FEDERAL.2022",null,{"$f":"YEAR","v":"2022"},null,null,null,"PASSWORD"]
["Архангельская область","RU29","Архангельская область",null,"NMBR",null,"нет",null,null,null,"Февраль",2,{"$nulls":6},"MD5","ATH_SCHEME"]
["Астраханская область","RU30","Астраханская область",null,"MR",{"$nulls":5},"Март",3,null,null,null,"Организация",null,null,"NO","RETAIN_PASSWORD"]
["Белгородская область","RU31","Белгородская область",null,"MO",null,null,null,"XML_MR_MO_OKTMO_LIST_TAG_NAMES",null,"Апрель",4,null,null,null,{"$f":"\"01.01.\" & PERIOD","v":"01.01.2022"},null,null,null,"SESSION_ID"]
["Брянская область","RU32","Брянская область",null,"OKTMO",null,"HEATING_PERIOD",null,"NSRF",null,"Май",5,null,null,null,{"$f":"\"31.12.\" & PERIOD","v":"31.12.2022"},null,null,"70:75:68:40:110:42:79:109:123:111:44:77:123:135:96:58:80","OBFUSCATED_PASSWORD"]
["Владимирская область","RU33","Владимирская область",null,"INN",null,"отопительный",null,"MR_NAME",null,"Июнь",6]
["Волгоградская область","RU34","Волгоградская область",null,"KPP",null,"неотопительный",null,"OKTMO_MR_NAME",null,"Июль",7,null,null,null,"Виды деятельности"]
["Вологодская область","RU35","Вологодская область",null,"ORG",null,"неотопительный (только ГВС)",null,"MO_NAME",null,"Август",8,null,null,null,{"$f":"\"01.01.\" & PERIOD","v":"01.01.2022"}]
["Воронежская область","RU36","Воронежская область",null,"VDET",null,"неотопительный (только СН)",null,"OKTMO_NAME",null,"Сентябрь",9,null,null,null,{"$f":"\"31.12.\" & PERIOD","v":"31.12.2022"}]
["г. Москва","RU77","Москва",null,"FIL",null,"итог за год",null,"TYPE",null,"Октябрь",10]
["г. Байконур","RU00",null,null,"TF",{"$nulls":5},"Ноябрь",11,null,null,null,"Территории"]
["г. Санкт-Петербург","RU78","Cанкт-Петербург",null,"ETO_STATUS",{"$nulls":5},"Декабрь",12,null,null,null,{"$f":"\"01.01.\" & PERIOD","v":"01.01.2022"}]
["г. Севастополь","RU92","Севастополь",null,"OKTMO_ID",null,"TAX_SYSTEM_LIST",null,"SAX_PARSER_FEATURE",null,"Год",13,null,null,null,{"$f":"\"31.12.\" & PERIOD","v":"31.12.2022"}]
["Еврейская автономная область","RU79","Еврейская автономная область",null,"INN_ID",null,"ОСН",null,"YES"]
["Забайкальский край","RU75","Забайкальский край",null,"KPP_ID",null,"УСН"]
["Ивановская область","RU37","Ивановская область",null,"VDET_ID",null,"ПСН"]
["Иркутская область","RU38","Иркутская область",null,"FIL_ID",null,"ЕНВД",null,"XML_ORG_LIST_TAG_NAMES",null,"REPORT_MODE_LIST"]
["Кабардино-Балкарская республика","RU07","Республика Кабардино-Балкария",null,null,null,"ЕСХН",null,"REGION_NAME",null,"REG","Организация оказывает услуги по тарифам, подлежащим государственному регулированию"]
["Калининградская область","RU39","Калининградская область",null,null,null,"налогообложение казённых учреждений",null,"MR_NAME",null,"SEMIREG","Организация оказывает услуги по тарифам, подлежащим государственному регулированию, а также по ценам, определённым соглашением сторон договора теплоснабжения или договора поставки тепловой энергии (мощности) (п. 5(1) Основ ценообразования ПП от 22.10.2012 N 1075)"]
["Калужская область","RU40","Калужская область",null,"XML_UNREG_HEAT_LIST_ORG_TAG_NAMES",null,null,null,"OKTMR_NAME",null,"UNREG","Организация оказывает услуги только по ценам, определённым соглашением сторон договора теплоснабжения или договора поставки тепловой энергии (мощности) (п. 5(1) Основ ценообразования ПП от 22.10.2012 N 1075)"]
["Камчатский край","RU41","Камчатский край",null,"RST_ORG_ID",null,null,null,"MO_NAME",null,"PRICEZONE","Организация оказывает услуги в ценовой зоне теплоснабжения"]
["Карачаево-Черкесская республика","RU09","Республика Карачаево-Черкессия",null,"NMBR",null,"VDET_LIST",null,"OKTMO_NAME",null,"ILLEGAL","Организация оказывает услуги без тарифов, подлежащим государственному регулированию (эксплуатация имущественного комплекса до утверждения тарифов в установленном законодательством порядке)"]
["Кемеровская область","RU42","Кемеровская область",null,"MR",null,"Комбинированное производство, более 25 МВт",null,"RST_ORG_ID"]
["Кировская область","RU43","Кировская область",null,"MO",null,"Комбинированное производство, более 25 МВт :: Передача",null,"ORG_NAME"]
["Костромская область","RU44","Костромская область",null,"OKTMO",null,"Комбинированное производство, более 25 МВт :: Передача :: Сбыт",null,"INN_NAME"]
["Краснодарский край","RU23","Краснодарский край",null,"INN",null,"Комбинированное производство, более 25 МВт :: Сбыт",null,"KPP_NAME"]
["Красноярский край","RU24","Красноярский край",null,"KPP",null,"Комбинированное производство, менее 25 МВт",null,"VDET_NAME"]
["Курганская область","RU45","Курганская область",null,"ORG",null,"Комбинированное производство, менее 25 МВт :: Передача",null,"VDET_NAME_LIST"]
["Курская область","RU46","Курская область",null,"VDET",null,"Комбинированное производство, менее 25 МВт :: Передача :: Сбыт",null,"VDET_FULL_NAME_LIST"]
["Ленинградская область","RU47","Ленинградская область",null,"FIL",null,"Комбинированное производство, менее 25 МВт :: Сбыт",null,"ORG_START_DATE"]
["Липецкая область","RU48","Липецкая область",null,"TF",null,"Некомбинированное производство",null,"ORG_END_DATE"]
["Магаданская область","RU49","Магаданская область",null,"ETO_STATUS",null,"Некомбинированное производство :: Передача",null,"VDET_START_DATE"]
["Московская область","RU50","Московская область",null,"OKTMO_ID",null,"Некомбинированное производство :: Передача :: Сбыт",null,"VDET_END_DATE"]
["Мурманская область","RU51","Мурманская область",null,"INN_ID",null,"Некомбинированное производство :: Сбыт"]
["Ненецкий автономный округ","RU83","Ненецкий автономный округ",null,"KPP_ID",null,"Передача :: Сбыт"]
["Нижегородская область","RU52","Нижегородская область",null,"VDET_ID",null,null,null,"JUSTIFICATION_SAMPLE_URL"]
["Новгородская область","RU53","Новгородская область",null,"FIL_ID",null,null,null,"http://eias.fas.gov.ru/files/46te.stx.justification.rtf"]
["Новосибирская область","RU54","Новосибирская область",null,null,null,"TF_LIST"]
["Омская область","RU55","Омская область",null,null,null,"одноставочный"]
["Оренбургская область","RU56","Оренбургская область",null,"XML_PRICEZONE_HEAT_LIST_ORG_TAG_NAMES",null,"двухставочный",null,"XML_AUTHORISATION_TAG_NAMES"]
["Орловская область","RU57","Орловская область",null,"RST_ORG_ID",null,null,null,"L1"]
["Пензенская область","RU58","Пензенская область",null,"NMBR",null,null,null,"L2"]
["Пермский край","RU59","Пермский край",null,"MR"]
["Приморский край","RU25","Приморский край",null,"MO"]
["Псковская область","RU60","Псковская область",null,"OKTMO",null,null,null,"XML_OKTMO_HISTORY_LIST_TAG_NAMES"]
["Республика Адыгея","RU01","Республика Адыгея",null,"INN",null,null,null,"MR_NAME"]
["Республика Алтай","RU04","Республика Алтай",null,"KPP",null,null,null,"MO_NAME"]
["Республика Башкортостан","RU02","Республика Башкортостан",null,"ORG",null,null,null,"OKTMO_NAME"]
["Республика Бурятия","RU03","Республика Бурятия",null,"VDET",null,null,null,"TYPE"]
["Республика Дагестан","RU05","Республика Дагестан",null,"FIL"]
["Республика Ингушетия","RU06","Республика Ингушетия",null,"TF"]
["Республика Калмыкия","RU08","Республика Калмыкия",null,"ETO_STATUS"]
["Республика Карелия","RU10","Республика Карелия",null,"OKTMO_ID"]
["Республика Коми","RU11","Республика Коми",null,"INN_ID"]
["Республика Крым","RU82","Крым",null,"KPP_ID"]
["Республика Марий Эл","RU12","Республика Марий Эл",null,"VDET_ID"]
["Республика Мордовия","RU13","Республика Мордовия",null,"FIL_ID"]
["Республика Саха (Якутия)","RU14","Республика Саха (Якутия)"]
["Республика Северная Осетия-Алания","RU15","Республика Северная Осетия (Алания)"]
["Республика Татарстан","RU16","Республика Татарстан",null,"XML_DICTIONARIES_TAG_NAMES"]
["Республика Тыва","RU17","Республика Тыва (Тува)",null,"DIC_NAME"]
["Республика Хакасия","RU19","Республика Хакасия",null,"DIC_VALUE"]
["Ростовская область","RU61","Ростовская область",null,"YEAR_NAME"]
["Рязанская область","RU62","Рязанская область",null,"MONTH_NAME"]
["Самарская область","RU63","Самарская область"]
["Саратовская область","RU64","Саратовская область"]
["Сахалинская область","RU65","Сахалинская область",null,"XML_RPT_STATISTICS_TAG_NAMES"]
["Свердловская область","RU66","Свердловская область",null,"REGION_ID"]
["Смоленская область","RU67","Смоленская область",null,"OKTMO_ID"]
["Ставропольский край","RU26","Ставропольский край",null,"INN_ID"]
["Тамбовская область","RU68","Тамбовская область",null,"KPP_ID"]
["Тверская область","RU69","Тверская область",null,"FIL_ID"]
["Томская область","RU70","Томская область",null,"VDET_ID"]
["Тульская область","RU71","Тульская область",null,"PRD2_NAME"]
["Тюменская область","RU72","Тюменская область",null,"RPT_DATE"]
["Удмуртская республика","RU18","Республика Удмуртия",null,"RPT_STATUS"]
["Ульяновская область","RU73","Ульяновская область",null,"V_STEAM"]
["Хабаровский край","RU27","Хабаровский край",null,"C_STEAM"]
["Ханты-Мансийский автономный округ","RU86","Ханты-Мансийский автономный округ",null,"V_WATER"]
["Челябинская область","RU74","Челябинская область",null,"C_WATER"]
["Чеченская республика","RU20","Республика Чечня"]
["Чувашская республика","RU21","Республика Чувашия"]
["Чукотский автономный округ","RU87","Чукотский автономный округ",null,"XML_ACCESSIBILITY_LIST_ORG_TAG_NAMES"]
["Ямало-Ненецкий автономный округ","RU89","Ямало-Ненецкий автономный округ",null,"INN_ID"]
["Ярославская область","RU76","Ярославская область",null,"KPP_ID"]
[{"$nulls":4},"ACCESSIBILITY"]
[{"$nulls":4},"LEGAL_TARIFF_EXISTENCE"]

{"sheet":"RST_LIST_ORG","index":3,"n_rows":392,"n_cols":17,"rows_kept":392,"cut":false,"hidden":true,"merged":[]}
["RST_ORG_ID","NMBR","MR","MO","OKTMO","INN","KPP","ORG","VDET","FIL","TF","ETO_STATUS","OKTMO_ID","INN_ID","KPP_ID","VDET_ID","FIL_ID"]
["26358403","1","город Нижний Новгород","город Нижний Новгород","22701000","5257052472","525701001","АО \"78 ДОК Н.М.\"",null,null,null,"нет","5137637","5174632","5431574",null,"5412526"]
["26358280","2","город Арзамас","город Арзамас","22703000","5243001767","525350001","АО \"АМЗ\"",null,null,null,"нет","5136408","5272240","5431571",null,"5412526"]
["26358279","3","город Арзамас","город Арзамас","22703000","5243001742","524301001","АО \"АПЗ\"",null,null,null,"нет","5136408","5272239","5431559",null,"5412526"]
["26358277","4","город Арзамас","город Арзамас","22703000","5243000788","524301001","АО \"Арзамасская войлочная фабрика\"",null,null,null,"нет","5136408","5272238","5431559",null,"5412526"]
["26951227","5","город Нижний Новгород","город Нижний Новгород","22701000","5260005345","526001001","АО \"БРИДЖТАУН ЧАЙКА\"",null,null,null,"нет","5137637","5272322","5424085",null,"5412526"]
["26373616","6","город Выкса","город Выкса","22715000","5247004695","524701001","АО \"ВМЗ\"",null,null,null,"нет","1894742789","5272257","5431563",null,"5412526"]
["26358464","7","город Нижний Новгород","город Нижний Новгород","22701000","5260902190","526001001","АО \"ВОЛГА-ФЛОТ\"",null,null,null,"нет","5137637","5272338","5424085",null,"5412526"]
["31314742","8","город Выкса","город Выкса","22715000","5247055114","524701001","АО \"ВЫКСАТЕПЛОЭНЕРГО\"",null,null,null,"нет","1894742789","4620761327","5431563",null,"5412526"]
["26373593","9","Балахнинский муниципальный округ","Балахнинский муниципальный округ","22505000","5244009279","524401001","АО \"Волга\"",null,null,null,"нет","5687589352","5257011","5431560",null,"5412526"]
["26358364","10","Павловский муниципальный округ","Павловский муниципальный округ","22542000","5252000470","525201001","АО \"Гидроагрегат\"",null,null,null,"нет","5678799700","5272290","5431569",null,"5412526"]
["26569426","11","город Дзержинск","город Дзержинск","22721000","5249015251","524901001","АО \"ДПО \"Пластик\"",null,null,null,"нет","5136353","5257022","5431565",null,"5412526"]
["26358272","12","город Шахунья","город Шахунья","22758000","5239006515","523901001","АО \"ДРСП\"",null,null,null,"нет","1902070491","5272232","5431557",null,"5412526"]
["31258691","13","город Бор","город Бор","22712000","5246038236","524601001","АО \"ЖКХ \"КАЛИКИНСКОЕ\"",null,null,null,"нет","1894698781","883807060","5431562",null,"5412526"]
["31063349","14","город Нижний Новгород","город Нижний Новгород","22701000","5263125030","526301001","АО \"ЗАВОД \"ЭЛЕКТРОМАШ\"",null,null,null,"нет","5137637","4103682243","5431582",null,"5412526"]
["26358397","15","город Нижний Новгород","город Нижний Новгород","22701000","5257005049","525701001","АО \"ЗАВОД КРАСНЫЙ ЯКОРЬ\"",null,null,null,"нет","5137637","5257035","5431574",null,"5412526"]
["26358385","16","город Нижний Новгород","город Нижний Новгород","22701000","5256045754","525601001","АО \"МАНН\"",null,null,null,"нет","5137637","5161395","5431573",null,"5412526"]
["26358393","17","город Нижний Новгород","город Нижний Новгород","22701000","5257003490","525701001","АО \"МЕЛЬИНВЕСТ\"",null,null,null,"нет","5137637","5161360","5431574",null,"5412526"]
["26358270","18","город Шахунья","город Шахунья","22758000","5239001108","523901001","АО \"Молоко\"",null,null,null,"нет","1902070491","5272230","5431557",null,"5412526"]
["26555642","19","город Нижний Новгород","город Нижний Новгород","22701000","5257001277","525701001","АО \"НАС\"",null,null,null,"нет","5137637","5174637","5431574",null,"5412526"]
["30844713","20","город Нижний Новгород","город Нижний Новгород","22701000","5259113339","525901001","АО \"НЗ 70-ЛЕТИЯ ПОБЕДЫ\"",null,null,null,"нет","5137637","2800766764","5431578",null,"5412526"]
["26358179","21","Навашинский","Навашинский","22730000","5223000035","522301001","АО \"НЗСМ\"",null,null,null,"нет","2322898925","5159009","5431539",null,"5412526"]
["26358394","22","город Нижний Новгород","город Нижний Новгород","22701000","5257003806","525701001","АО \"НМЖК\"",null,null,null,"нет","5137637","5161389","5431574",null,"5412526"]
["26358469","23","город Нижний Новгород","город Нижний Новгород","22701000","5261077695","526101001","АО \"ННПО имени М.В. Фрунзе\"",null,null,null,"нет","5137637","1834966861","5431579",null,"5412526"]
["31023931","24","Балахнинский муниципальный округ","Балахнинский муниципальный округ","22505000","5260267654","524443001","АО \"НОКК\" (Балахнинский филиал)",null,null,null,"нет","5687589352","839812829","3517869861",null,"5412526"]
["27566839","25","Богородский муниципальный округ","Богородский муниципальный округ","22507000","5260267654","524543001","АО \"НОКК\" (Богородский филиал)",null,null,null,"нет","5675664280","839812829","839812827",null,"5412526"]
["27566839","26","город Дзержинск","город Дзержинск","22721000","5260267654","524543001","АО \"НОКК\" (Богородский филиал)",null,null,null,"нет","5136353","839812829","839812827",null,"5412526"]
["27566839","27","город Нижний Новгород","город Нижний Новгород","22701000","5260267654","524543001","АО \"НОКК\" (Богородский филиал)",null,null,null,"нет","5137637","839812829","839812827",null,"5412526"]
["31538730","28","Ветлужский муниципальный район","Город Ветлуга","22618101","5260267654","523543002","АО \"НОКК\" (Ветлужский филиал)",null,null,null,"нет","56405478","839812829","6168333539",null,"5412526"]
["31538777","29","Володарский муниципальный район","Город Володарск","22631103","5260267654","524943001","АО \"НОКК\" (Володарский филиал)",null,null,null,"нет","5136439","839812829","6168336822",null,"5412526"]
["31538777","30","Володарский муниципальный район","Рабочий поселок Ильиногорск","22631160","5260267654","524943001","АО \"НОКК\" (Володарский филиал)",null,null,null,"нет","5136440","839812829","6168336822",null,"5412526"]
["31538777","31","Володарский муниципальный район","Рабочий поселок Фролищи","22631173","5260267654","524943001","АО \"НОКК\" (Володарский филиал)",null,null,null,"нет","5136442","839812829","6168336822",null,"5412526"]
["31538777","32","Володарский муниципальный район","Рабочий поселок Центральный","22631176","5260267654","524943001","АО \"НОКК\" (Володарский филиал)",null,null,null,"нет","5136443","839812829","6168336822",null,"5412526"]
["27968016","33","Семеновский","Семеновский","22737000","5260267654","522845001","АО \"НОКК\" (Семеновский филиал)",null,null,null,"нет","1900284181","839812829","1358895037",null,"5412526"]
["31171901","34","Сеченовский муниципальный район","Верхнеталызинский сельсовет","22649416","5260267654","523043001","АО \"НОКК\" (Сеченовский филиал)",null,null,null,"нет","56405567","839812829","3959623213",null,"5412526"]
["31171901","35","Сеченовский муниципальный район","Мурзицкий сельсовет","22649440","5260267654","523043001","АО \"НОКК\" (Сеченовский филиал)",null,null,null,"нет","56405573","839812829","3959623213",null,"5412526"]
["31171901","36","Сеченовский муниципальный район","Сеченовский сельсовет","22649444","5260267654","523043001","АО \"НОКК\" (Сеченовский филиал)",null,null,null,"нет","5272400","839812829","3959623213",null,"5412526"]
["28007548","37","город Шахунья","город Шахунья","22758000","5260267654","523943001","АО \"НОКК\" (Шахунский филиал)",null,null,null,"нет","1902070491","839812829","1333672533",null,"5412526"]
["26358399","38","город Нижний Новгород","город Нижний Новгород","22701000","5257005345","525701001","АО \"Нормаль\"",null,null,null,"нет","5137637","5161123","5431574",null,"5412526"]
["26358419","39","город Нижний Новгород","город Нижний Новгород","22701000","5259077666","525350001","АО \"ОКБМ Африкантов\"",null,null,null,"нет","5137637","5502209","5431571",null,"5412526"]
["28502425","40","Кстовский муниципальный район","Город Кстово","22637101","7725806898","770101001","АО \"ПГК\"",null,null,null,"нет","5272375","2237324962","5416913",null,"5412526"]
["28502425","41","Кстовский муниципальный район","Кстовский муниципальный район","22637000","7725806898","770101001","АО \"ПГК\"",null,null,null,"нет","5136485","2237324962","5416913",null,"5412526"]
["26358454","42","город Нижний Новгород","город Нижний Новгород","22701000","7705709543","770501001","АО \"ПЕРВАЯ ОБРАЗЦОВАЯ ТИПОГРАФИЯ\" ФИЛИАЛ \"НИЖПОЛИГРАФ\"",null,null,null,"нет","5137637","1072611669","5431584",null,"5412526"]
["26555359","43","ЗАТО город Саров","ЗАТО город Саров","22704000","5254082550","525401001","АО \"СГК\"",null,null,null,"нет","5135818","56519135","5432118",null,"5412526"]
["26322331","44","город Дзержинск","город Дзержинск","22721000","5249051203","525350001","АО \"СИБУР-НЕФТЕХИМ\"",null,null,null,"нет","5136353","5257023","5431571",null,"5412526"]
["26555361","45","ЗАТО город Саров","ЗАТО город Саров","22704000","5254082630","525401001","АО \"СТСК\"",null,null,null,"нет","5135818","56519136","5432118",null,"5412526"]
["26358489","46","город Нижний Новгород","город Нижний Новгород","22701000","5263024642","526301001","АО \"ТРАНС-СИГНАЛ\"",null,null,null,"нет","5137637","5257053","5431582",null,"5412526"]
["26358408","47","город Арзамас","город Арзамас","22703000","5257087027","525701001","АО \"Теплоэнерго\"",null,null,null,"нет","5136408","5226646","5431574",null,"5412526"]
["26358408","48","город Нижний Новгород","город Нижний Новгород","22701000","5257087027","525701001","АО \"Теплоэнерго\"",null,null,null,"нет","5137637","5226646","5431574",null,"5412526"]
["26358408","49","город Чкаловск","город Чкаловск","22755000","5257087027","525701001","АО \"Теплоэнерго\"",null,null,null,"нет","2306736400","5226646","5431574",null,"5412526"]
["26358184","50","город Первомайск","город Первомайск","22734000","5224001190","522401001","АО \"Транспневматика\"",null,null,null,"нет","1728407209","5161546","5431540",null,"5412526"]
["27585148","51","город Нижний Новгород","город Нижний Новгород","22701000","5262054490","525601001","АО \"ЭСК\"",null,null,null,"нет","5137637","820677904","5431573",null,"5412526"]
["26358197","52","Семеновский","Семеновский","22737000","5228001113","522801001","АО «ХОХЛОМСКАЯ РОСПИСЬ»",null,null,null,"нет","1900284181","5272200","5431544",null,"5412526"]
["26358413","53","город Нижний Новгород","город Нижний Новгород","22701000","5258100129","525801001","АО НПП \"Полет\"",null,null,null,"нет","5137637","1693580939","5431576",null,"5412526"]
["26358409","54","город Нижний Новгород","город Нижний Новгород","22701000","5258000011","525801001","АО ПКО \"Теплообменник\"",null,null,null,"нет","5137637","5161386","5431576",null,"5412526"]
["26825363","55","Богородский муниципальный округ","Богородский муниципальный округ","22507000","5243002464","524502001","Богородский филиал ООО \"Арзамасское ПО \"Автопровод\"",null,null,null,"нет","5675664280","5272243","669393547",null,"5412526"]
["26358190","56","Перевозский","Перевозский","22739000","5225001122","522501001","ГАПОУ \"ПЕРЕВОЗСКИЙ СТРОИТЕЛЬНЫЙ КОЛЛЕДЖ\"",null,null,null,"нет","3437705962","5272193","5431541",null,"5412526"]
["31253577","57","Починковский муниципальный округ","Починковский муниципальный округ","22546000","5227001424","522701001","ГБПОУ ПСХТ",null,null,null,"нет","5701634258","4678803140","5431543",null,"5412526"]
["26358225","58","Спасский муниципальный район","Спасский сельсовет","22651432","5232001606","523201001","ГБПОУ СПАССКИЙ АПТ",null,null,null,"нет","5272401","5272211","5431550",null,"5412526"]
["27980367","59","Варнавинский муниципальный район","Северный сельсовет","22615428","5207002268","520701001","ГБУ \"Варнавинский ПНИ\"",null,null,null,"нет","5272359","1333670912","5431525",null,"5412526"]
["26358119","60","Володарский муниципальный район","Рабочий поселок Решетиха","22631168","5214003022","521401001","ГБУ \"Решетихинский ПНИ\"",null,null,null,"нет","5136441","5159026","5431532",null,"5412526"]
["27579733","61","город Дзержинск","город Дзержинск","22721000","5249050312","524901001","ГБУ ОСРЦИ \"Пушкино\"",null,null,null,"нет","5136353","907453169","5431565",null,"5412526"]
["26358243","62","Уренский муниципальный округ","Уренский муниципальный округ","22554000","5235001940","523501001","ГБУ СРЦИ \"КРАСНЫЙ ЯР\"",null,null,null,"нет","5681195742","5160911","5431553",null,"5412526"]
["31036531","63","город Нижний Новгород","город Нижний Новгород","22701000","5256026159","525601001","ГБУ ССОН \"АВТОЗАВОДСКИЙ ДОМ ДЛЯ ДЕТЕЙ \"НАДЕЖДА\"",null,null,null,"нет","5137637","3566201232","5431573",null,"5412526"]
["26555218","64","город Бор","город Бор","22712000","5246010400","524601001","ГБУЗ НО \"КИСЕЛИХИНСКИЙ ОБЛАСТНОЙ ТЕРАПЕВТИЧЕСКИЙ ГОСПИТАЛЬ ДЛЯ ВЕТЕРАНОВ ВОЙН\"",null,null,null,"нет","1894698781","56472115","5431562",null,"5412526"]
["26358374","65","Павловский муниципальный округ","Павловский муниципальный округ","22542000","5252008631","525201001","ГКОУ \"ПАВЛОВСКИЙ САНАТОРНЫЙ ДЕТСКИЙ ДОМ\"",null,null,null,"нет","5678799700","5161472","5431569",null,"5412526"]
["26808802","66","Володарский муниципальный район","Ильинский сельсовет","22631408","7708503727","525745041","Горьковская дирекция по тепловодоснабжению структурное подразделение Центральной дирекции по тепловодоснабжению - филиала ОАО \"РЖД\"",null,null,null,"нет","5136445","5112046","603101451",null,"5412526"]
["26808802","67","Городецкий муниципальный район","Городецкий муниципальный район","22628000","7708503727","525745041","Горьковская дирекция по тепловодоснабжению структурное подразделение Центральной дирекции по тепловодоснабжению - филиала ОАО \"РЖД\"",null,null,null,"нет","5223099","5112046","603101451",null,"5412526"]
["26808802","68","Городецкий муниципальный район","Федуринский сельсовет","22628458","7708503727","525745041","Горьковская дирекция по тепловодоснабжению структурное подразделение Центральной дирекции по тепловодоснабжению - филиала ОАО \"РЖД\"",null,null,null,"нет","5135292","5112046","603101451",null,"5412526"]
["26808802","69","Лукояновский муниципальный район","Город Лукоянов","22639101","7708503727","525745041","Горьковская дирекция по тепловодоснабжению структурное подразделение Центральной дирекции по тепловодоснабжению - филиала ОАО \"РЖД\"",null,null,null,"нет","5136458","5112046","603101451",null,"5412526"]
["26808802","70","Семеновский","Семеновский","22737000","7708503727","525745041","Горьковская дирекция по тепловодоснабжению структурное подразделение Центральной дирекции по тепловодоснабжению - филиала ОАО \"РЖД\"",null,null,null,"нет","1900284181","5112046","603101451",null,"5412526"]
["26808802","71","Сергачский муниципальный район","Город Сергач","22648101","7708503727","525745041","Горьковская дирекция по тепловодоснабжению структурное подразделение Центральной дирекции по тепловодоснабжению - филиала ОАО \"РЖД\"",null,null,null,"нет","5136486","5112046","603101451",null,"5412526"]
["26808802","72","город Нижний Новгород","город Нижний Новгород","22701000","7708503727","525745041","Горьковская дирекция по тепловодоснабжению структурное подразделение Центральной дирекции по тепловодоснабжению - филиала ОАО \"РЖД\"",null,null,null,"нет","5137637","5112046","603101451",null,"5412526"]
["26808802","73","город Шахунья","город Шахунья","22758000","7708503727","525745041","Горьковская дирекция по тепловодоснабжению структурное подразделение Центральной дирекции по тепловодоснабжению - филиала ОАО \"РЖД\"",null,null,null,"нет","1902070491","5112046","603101451",null,"5412526"]
["26634205","74","Дальнеконстантиновский муниципальный район","Рабочий поселок Дальнее Константиново","22630151","5215001934","521501001","Дальнеконстантиновское МУПП ЖКХ",null,null,null,"нет","5136559","57441417","5431533",null,"5412526"]
["26358163","75","Краснобаковский муниципальный район","Рабочий поселок Ветлужский","22635154","5219382293","521901001","Дмитриевское МУП ЖКХ",null,null,null,"нет","5136504","5357675","5431537",null,"5412526"]
["26555546","76","город Нижний Новгород","город Нижний Новгород","22701000","5261005718","526101001","ЗАО \"Завод \"Труд\"",null,null,null,"нет","5137637","56472448","5431579",null,"5412526"]
["26322355","77","город Нижний Новгород","город Нижний Новгород","22701000","5261017382","526101001","ЗАО \"Концерн \"Термаль\"",null,null,null,"нет","5137637","5257048","5431579",null,"5412526"]
["26358416","78","город Нижний Новгород","город Нижний Новгород","22701000","5258050559","525801001","ЗАО \"Энерго групп\"",null,null,null,"нет","5137637","5257038","5431576",null,"5412526"]
["26358476","79","город Нижний Новгород","город Нижний Новгород","22701000","5262020719","526201001","ЗАО МЗ \"РИЛС\"",null,null,null,"нет","5137637","5272342","5431581",null,"5412526"]
["28870867","80","город Шахунья","город Шахунья","22758000","523903931595","отсутствует","ИП Копытова Н.В.",null,null,null,"нет","1902070491","1898148147","500187316",null,"5412526"]
["31446275","81","Богородский муниципальный округ","Богородский муниципальный округ","22507000","370202154863","отсутствует","ИП МИХЕЕВ АНДРЕЙ ЛЕОНИДОВИЧ",null,null,null,"нет","5675664280","5431039548","500187316",null,"5412526"]
["31543929","82","Балахнинский муниципальный округ","Балахнинский муниципальный округ","22505000","524402453501","отсутствует","ИП Павлов А.В.",null,null,null,"нет","5687589352","6442913953","500187316",null,"5412526"]
["28868794","83","Воротынский","Воротынский","22719000","525616836221","отсутствует","ИП Чурашев Михаил Юрьевич",null,null,null,"нет","4918123108","1898148150","500187316",null,"5412526"]
["27713249","84","Лысковский муниципальный округ","Лысковский муниципальный округ","22540000","5243002464","522202001","Лысковский филиал ООО \"Арзамасское ПО \"Автопровод\"",null,null,null,"нет","5680764377","5272243","907453064",null,"5412526"]
["26551350","85","Ветлужский муниципальный район","Волыновский сельсовет","22618408","5209004278","520901001","МОУ Белышевская школа",null,null,null,"нет","56405481","56428590","5431527",null,"5412526"]
["29648861","86","Вадский муниципальный округ","Вадский муниципальный округ","22514000","5206025103","520601001","МП \"ВАДРЕСУРС\"",null,null,null,"нет","5688733489","2161826251","5431524",null,"5412526"]
["26373529","87","Семеновский","Семеновский","22737000","5228009786","522801001","МП \"Горводопровод\"",null,null,null,"нет","1900284181","5279579","5431544",null,"5412526"]
["28942141","88","Навашинский","Навашинский","22730000","5223034940","522301001","МП \"Жилкомсервис\"",null,null,null,"нет","2322898925","1991391619","5431539",null,"5412526"]
["31521764","89","Семеновский","Семеновский","22737000","5228058303","522801001","МП \"ИЛЬИНО-ЗАБОРСКОЕ ЖКХ\"",null,null,null,"нет","1900284181","6116776145","5431544",null,"5412526"]
["26358144","90","Дивеевский муниципальный округ","Дивеевский муниципальный округ","22532000","5216017239","521601001","МП \"Коммунальник\"",null,null,null,"нет","5701634256","5291855","5431534",null,"5412526"]
["26358307","91","город Бор","город Бор","22712000","5246004124","524601001","МП \"Линдовский ККПиБ\"",null,null,null,"нет","1894698781","5158744","5431562",null,"5412526"]
["26373492","92","город Первомайск","город Первомайск","22734000","5224003504","522401001","МП \"Радуга\"",null,null,null,"нет","1728407209","5161139","5431540",null,"5412526"]
["26358141","93","Дивеевский муниципальный округ","Дивеевский муниципальный округ","22532000","5216017126","521601001","МП \"Сатисское ЖКХ\"",null,null,null,"нет","5701634256","5158865","5431534",null,"5412526"]
["27965842","94","город Дзержинск","город Дзержинск","22721000","5249012187","524901001","МП ЖКХ \"Планета\"",null,null,null,"нет","5136353","1333672530","5431565",null,"5412526"]
["26358297","95","Богородский муниципальный округ","Богородский муниципальный округ","22507000","5245007965","524501001","МП ЖКХ С.КАМЕНКИ",null,null,null,"нет","5675664280","5272250","5431561",null,"5412526"]
["31543727","96","Ковернинский муниципальный округ","Ковернинский муниципальный округ","22534000","5248044330","524801001","МП КОВЕРНИНСКОГО МУНИЦИПАЛЬНОГО ОКРУГА \"ЖИЛИЩНО-КОММУНАЛЬНОЕ ХОЗЯЙСТВО \"КОВЕРНИНО\"",null,null,null,"нет","5701634257","6194464193","5431564",null,"5412526"]
["26551361","97","Ветлужский муниципальный район","Ветлужский муниципальный район","22618000","5209005507","520901001","МУК \"Туранский дом культуры\"",null,null,null,"нет","5136405","57097384","5431527",null,"5412526"]
["26652819","98","Балахнинский муниципальный округ","Балахнинский муниципальный округ","22505000","5244022199","524401001","МУП \"Большое Козино\"",null,null,null,"нет","5687589352","57443217","5431560",null,"5412526"]
["26373543","99","Сосновский муниципальный район","Давыдковский сельсовет","22650414","5231004770","523101001","МУП \"Бытсервис\"",null,null,null,"нет","5136640","5160630","5431549",null,"5412526"]
["26373543","100","Сосновский муниципальный район","Крутецкий сельсовет","22650420","5231004770","523101001","МУП \"Бытсервис\"",null,null,null,"нет","5136642","5160630","5431549",null,"5412526"]
["26373543","101","Сосновский муниципальный район","Рожковский сельсовет","22650428","5231004770","523101001","МУП \"Бытсервис\"",null,null,null,"нет","5136643","5160630","5431549",null,"5412526"]
["31247110","102","Тоншаевский муниципальный округ","Тоншаевский муниципальный округ","22553000","5234005042","523401001","МУП \"ВОДНИК\"",null,null,null,"нет","5701634259","4316246693","5431552",null,"5412526"]
["30855659","103","Воротынский","Воротынский","22719000","5211759886","521101001","МУП \"ВОРОТЫНСКОЕ ЖКХ\"",null,null,null,"нет","4918123108","2879636571","5431529",null,"5412526"]
["26358098","104","Варнавинский муниципальный район","Рабочий поселок Варнавино","22615151","5207003582","520701001","МУП \"Варнавинкоммунсервис\"",null,null,null,"нет","56405462","5158770","5431525",null,"5412526"]
["28871157","105","город Шахунья","город Шахунья","22758000","5239010720","523901001","МУП \"Водоканал\"",null,null,null,"нет","1902070491","1898148148","5431557",null,"5412526"]
["27201619","106","город Дзержинск","город Дзержинск","22721000","5249003457","524901001","МУП \"ДзержинскЭнерго\"",null,null,null,"нет","5136353","885216132","5431565",null,"5412526"]
["26358220","107","Сосновский муниципальный район","Елизаровский сельсовет","22650416","5231004795","523101001","МУП \"Елизарово\"",null,null,null,"нет","5136641","5160862","5431549",null,"5412526"]
["28449409","108","Городецкий муниципальный район","Бриляковский сельсовет","22628404","5248036146","524801001","МУП \"ЖКХ \"СЕВЕРНЫЙ\"",null,null,null,"нет","5136471","1601596646","5431564",null,"5412526"]
["28449409","109","Городецкий муниципальный район","Смиркинский сельсовет","22628444","5248036146","524801001","МУП \"ЖКХ \"СЕВЕРНЫЙ\"",null,null,null,"нет","5135289","1601596646","5431564",null,"5412526"]
["28005091","110","Городецкий муниципальный район","Тимирязевский сельсовет","22628452","5248033561","524801001","МУП \"ЖКХ Буревестник\"",null,null,null,"нет","5135291","1319809967","5431564",null,"5412526"]
["26358324","111","Городецкий муниципальный район","Зиняковский сельсовет","22628416","5248015611","524801001","МУП \"ЖКХ Зарубинское\"",null,null,null,"нет","5136473","5158821","5431564",null,"5412526"]
["26358331","112","Городецкий муниципальный район","Зиняковский сельсовет","22628416","5248015700","524801001","МУП \"ЖКХ Зиняковское\"",null,null,null,"нет","5136473","5158824","5431564",null,"5412526"]
["26358330","113","Городецкий муниципальный район","Ковригинский сельсовет","22628422","5248015690","524801001","МУП \"ЖКХ Ковригинское\"",null,null,null,"нет","5136475","5158826","5431564",null,"5412526"]
["26358329","114","Городецкий муниципальный район","Городецкий муниципальный район","22628000","5248015682","524801001","МУП \"ЖКХ Кумохинское\"",null,null,null,"нет","5223099","5158830","5431564",null,"5412526"]
["26358329","115","Городецкий муниципальный район","Кумохинский сельсовет","22628428","5248015682","524801001","МУП \"ЖКХ Кумохинское\"",null,null,null,"нет","5136476","5158830","5431564",null,"5412526"]
["28147903","116","Лысковский муниципальный округ","Лысковский муниципальный округ","22540000","5222070569","522201001","МУП \"ЖКХ Лысковского района\"",null,null,null,"нет","5680764377","1469412353","5431538",null,"5412526"]
["26358335","117","Городецкий муниципальный район","Николо-Погостинский сельсовет","22628442","5248015756","524801001","МУП \"ЖКХ Мошковское\"",null,null,null,"нет","1904526459","5158836","5431564",null,"5412526"]
["26358336","118","Городецкий муниципальный район","Рабочий поселок Первомайский","22628154","5248016703","524801001","МУП \"ЖКХ ПЕРВОМАЙСКОЕ\"",null,null,null,"нет","5136470","5158841","5431564",null,"5412526"]
["31266429","119","Вачский муниципальный район","Казаковский сельсовет","22617424","5208006025","520801001","МУП \"ЖКХ\"",null,null,null,"нет","56405473","4377697742","5431526",null,"5412526"]
["31266429","120","Вачский муниципальный район","Новосельский сельсовет","22617432","5208006025","520801001","МУП \"ЖКХ\"",null,null,null,"нет","56405475","4377697742","5431526",null,"5412526"]
["31266429","121","Вачский муниципальный район","Филинский сельсовет","22617436","5208006025","520801001","МУП \"ЖКХ\"",null,null,null,"нет","5272362","4377697742","5431526",null,"5412526"]
["31266429","122","Вачский муниципальный район","Чулковский сельсовет","22617440","5208006025","520801001","МУП \"ЖКХ\"",null,null,null,"нет","56405476","4377697742","5431526",null,"5412526"]
["28871911","123","Перевозский","Перевозский","22739000","5225006709","522501001","МУП \"КОММУНАЛЬЩИК\"",null,null,null,"нет","3437705962","1898148125","5431541",null,"5412526"]
["30872197","124","Краснобаковский муниципальный район","Зубилихинский сельсовет","22635404","5219383900","521901001","МУП \"КОММУНРЕСУРС КРАСНОБАКОВСКОГО РАЙОНА\"",null,null,null,"нет","5279628","2897155642","5431537",null,"5412526"]
["30872197","125","Краснобаковский муниципальный район","Рабочий поселок Ветлужский","22635154","5219383900","521901001","МУП \"КОММУНРЕСУРС КРАСНОБАКОВСКОГО РАЙОНА\"",null,null,null,"нет","5136504","2897155642","5431537",null,"5412526"]
["30872197","126","Краснобаковский муниципальный район","Рабочий поселок Красные Баки","22635151","5219383900","521901001","МУП \"КОММУНРЕСУРС КРАСНОБАКОВСКОГО РАЙОНА\"",null,null,null,"нет","5136503","2897155642","5431537",null,"5412526"]
["30872197","127","Краснобаковский муниципальный район","Чащихинский сельсовет","22635424","5219383900","521901001","МУП \"КОММУНРЕСУРС КРАСНОБАКОВСКОГО РАЙОНА\"",null,null,null,"нет","5136506","2897155642","5431537",null,"5412526"]
["26552168","128","Шатковский муниципальный район","Рабочий поселок Шатки","22657151","5238006336","523801001","МУП \"КОМУНЭНЕРГО\"",null,null,null,"нет","5137796","57096120","5431556",null,"5412526"]
["30354230","129","Балахнинский муниципальный округ","Балахнинский муниципальный округ","22505000","5244029437","524401001","МУП \"КОНЕВО\"",null,null,null,"нет","5687589352","2239831299","5431560",null,"5412526"]
["26358265","130","Шатковский муниципальный район","Рабочий поселок Лесогорск","22657154","5238005484","523801001","МУП \"Лесогорск ЖКХ\"",null,null,null,"нет","5137797","5161024","5431556",null,"5412526"]
["31158286","131","Лысковский муниципальный округ","Лысковский муниципальный округ","22540000","5222071587","522201001","МУП \"Лысковокоммунсервис\"",null,null,null,"нет","5680764377","3891795472","5431538",null,"5412526"]
["31314620","132","Балахнинский муниципальный округ","Балахнинский муниципальный округ","22505000","5244031690","524401001","МУП \"МП \"БРКК\" МО \"БМР\"",null,null,null,"нет","5687589352","4584835805","5431560",null,"5412526"]
["27839234","133","Балахнинский муниципальный округ","Балахнинский муниципальный округ","22505000","5244025070","524401001","МУП \"МП \"ВОДОКАНАЛ\" МО \"БАЛАХНИНСКИЙ МУНИЦИПАЛЬНЫЙ ОКРУГ\" НИЖЕГОРОДСКОЙ ОБЛАСТИ\"",null,null,null,"нет","5687589352","1273306641","5431560",null,"5412526"]
["27808573","134","Володарский муниципальный район","Золинский сельсовет","22631404","5214010679","521401001","МУП \"Новосмолинское\"",null,null,null,"нет","5136444","1269319483","5431532",null,"5412526"]
["31205512","135","Пильнинский муниципальный район","Рабочий поселок Пильна","22645151","5226013120","522601001","МУП \"РАЙТОПСБЫТ\"",null,null,null,"нет","5272394","2880615712","5431542",null,"5412526"]
["30382083","136","Варнавинский муниципальный район","Северный сельсовет","22615428","5207016670","520701001","МУП \"СЕВЕРНОЕ ЖКХ\"",null,null,null,"нет","5272359","2329271644","5431525",null,"5412526"]
["26373630","137","Городецкий муниципальный район","Город Заволжье","22628103","5248016372","524801001","МУП \"ТВК\" г. Заволжья",null,null,null,"нет","5136469","5158833","5431564",null,"5412526"]
["31348885","138","Ардатовский муниципальный район","Рабочий поселок Мухтолово","22602155","5201002409","520101001","МУП \"ТРУД\"",null,null,null,"нет","5136326","4864102673","5431518",null,"5412526"]
["27573878","139","Павловский муниципальный округ","Павловский муниципальный округ","22542000","5252029494","525201001","МУП \"Тепло\"",null,null,null,"нет","5678799700","907453129","5431569",null,"5412526"]
["26552019","140","Княгининский муниципальный район","Возрожденский сельсовет","22633416","5217001030","521701001","МУП \"Тепловик-1\"",null,null,null,"нет","5136035","56472432","5431535",null,"5412526"]
["26552019","141","Княгининский муниципальный район","Город Княгинино","22633101","5217001030","521701001","МУП \"Тепловик-1\"",null,null,null,"нет","5136031","56472432","5431535",null,"5412526"]
["26552019","142","Княгининский муниципальный район","Соловьевский сельсовет","22633428","5217001030","521701001","МУП \"Тепловик-1\"",null,null,null,"нет","5136038","56472432","5431535",null,"5412526"]
["26358322","143","Городецкий муниципальный район","город Городец","22628101","5248011350","524801001","МУП \"Тепловые сети\"",null,null,null,"нет","5136468","5158839","5431564",null,"5412526"]
["26358221","144","Сосновский муниципальный район","Виткуловский сельсовет","22650412","5231004851","523101001","МУП \"Теплоэнергия-1\"",null,null,null,"нет","5136639","5160625","5431549",null,"5412526"]
["26358221","145","Сосновский муниципальный район","Рабочий поселок Сосновское","22650151","5231004851","523101001","МУП \"Теплоэнергия-1\"",null,null,null,"нет","5136636","5160625","5431549",null,"5412526"]
["26358221","146","Сосновский муниципальный район","Яковский сельсовет","22650436","5231004851","523101001","МУП \"Теплоэнергия-1\"",null,null,null,"нет","5136645","5160625","5431549",null,"5412526"]
["31566194","147","Уренский муниципальный округ","Уренский муниципальный округ","22554000","5235006634","523501001","МУП \"УРЕНСКИЕ ТЕПЛОВЫЕ СЕТИ\" УРЕНСКОГО МУНИЦИПАЛЬНОГО ОКРУГА НИЖЕГОРОДСКОЙ ОБЛАСТИ",null,null,null,"нет","5681195742","6329155100","5431553",null,"5412526"]
["26373388","148","Большемурашкинский муниципальный район","Рабочий поселок Большое Мурашкино","22610151","5204001114","520401001","МУП \"Управляющая компания\"",null,null,null,"нет","5135547","5291851","5431522",null,"5412526"]
["28053496","149","город Шахунья","город Шахунья","22758000","5239010688","523901001","МУП \"ШОКС\"",null,null,null,"нет","1902070491","2579894167","5431557",null,"5412526"]
["26551775","150","Починковский муниципальный округ","Починковский муниципальный округ","22546000","5227005267","522701001","МУП \"Юго-Запад\"",null,null,null,"нет","5701634258","56472105","5431543",null,"5412526"]
["26358255","151","город Чкаловск","город Чкаловск","22755000","5236002390","523601001","МУП «ЧКАЛОВСКЭНЕРГОРЕСУРС»",null,null,null,"нет","2306736400","5161055","5431554",null,"5412526"]
["31258650","152","Варнавинский муниципальный район","Восходовский сельсовет","22615406","5207016782","520701001","МУП ВАРНАВИНСКОГО РАЙОНА \"ТЕПЛОСНАБЖЕНИЕ\"",null,null,null,"нет","5272358","4284677217","5431525",null,"5412526"]
["27577563","153","Шарангский муниципальный район","Большеустинский сельсовет","22656408","5237002949","523701001","МУП ЖКХ",null,null,null,"нет","56405592","5160999","5431555",null,"5412526"]
["27577563","154","Шарангский муниципальный район","Рабочий поселок Шаранга","22656151","5237002949","523701001","МУП ЖКХ",null,null,null,"нет","5272403","5160999","5431555",null,"5412526"]
["27577563","155","Шарангский муниципальный район","Роженцовский сельсовет","22656424","5237002949","523701001","МУП ЖКХ",null,null,null,"нет","56405596","5160999","5431555",null,"5412526"]
["26358136","156","Дальнеконстантиновский муниципальный район","Богоявленский сельсовет","22630412","5215010375","521501001","МУП ЖКХ \"БОГОЯВЛЕНСКОЕ\"",null,null,null,"нет","5135312","5158876","5431533",null,"5412526"]
["26373417","157","Воскресенский муниципальный район","Воскресенский муниципальный район","22622000","5212007342","521201001","МУП ЖКХ \"Водоканал\"",null,null,null,"нет","5136564","5279548","5431530",null,"5412526"]
["26373427","158","Володарский муниципальный район","Мулинский сельсовет","22631411","5214007997","521401001","МУП ЖКХ \"Жилсервис\" Володарского района",null,null,null,"нет","5136446","5158792","5431532",null,"5412526"]
["26358120","159","Володарский муниципальный район","Рабочий поселок Ильиногорск","22631160","5214005012","521401001","МУП ЖКХ \"Ильиногорское\"",null,null,null,"нет","5136440","5158786","5431532",null,"5412526"]
["27633085","160","Большеболдинский муниципальный район","Большеболдинский муниципальный район","22609000","5203002330","520303001","МУП ЖКХ \"Коммунальник\"",null,null,null,"нет","5223093","5158698","5501754",null,"5412526"]
["27633085","161","Большеболдинский муниципальный район","Большеболдинский сельсовет","22609404","5203002330","520303001","МУП ЖКХ \"Коммунальник\"",null,null,null,"нет","5136557","5158698","5501754",null,"5412526"]
["28452082","162","Городецкий муниципальный район","Федуринский сельсовет","22628458","5248034734","524801001","МУП ЖКХ \"Сокол\"",null,null,null,"нет","5135292","1601595774","5431564",null,"5412526"]
["26553600","163","Большемурашкинский муниципальный район","Григоровский сельсовет","22610408","5204001467","520401001","МУП ЖКХ Григоровского сельсовета",null,null,null,"нет","5135549","57097383","5431522",null,"5412526"]
["26358091","164","Большемурашкинский муниципальный район","Советский сельсовет","22610404","5204002319","520401001","МУП ЖКХ п. Советский",null,null,null,"нет","5135548","5158712","5431522",null,"5412526"]
["26358231","165","Тонкинский муниципальный район","Рабочий поселок Тонкино","22652151","5233002810","523301001","МУП Тонкинского района \"Тонкинские теплосети\"",null,null,null,"нет","5272402","5160832","5431551",null,"5412526"]
["26358426","166","город Нижний Новгород","город Нижний Новгород","22701000","5260002707","526001001","ННГАСУ",null,null,null,"нет","5137637","5161525","5424085",null,"5412526"]
["26358474","167","город Арзамас","город Арзамас","22703000","5262004442","526201001","ННГУ",null,null,null,"нет","5136408","5161475","5431581",null,"5412526"]
["26555250","168","город Нижний Новгород","город Нижний Новгород","22701000","5260000192","525703001","НПАП № 1 - филиал ГП \"Нижегородпассажиравтотранс\"",null,null,null,"нет","5137637","5161519","57060650",null,"5412526"]
["26555257","169","город Нижний Новгород","город Нижний Новгород","22701000","5260000192","525802001","НПАП № 2 - филиал ГП \"Нижегородпассажиравтотранс\"",null,null,null,"нет","5137637","5161519","5431577",null,"5412526"]
["26358420","170","город Нижний Новгород","город Нижний Новгород","22701000","7714733528","525350001","Нижегородский авиастроительный завод \"Сокол\" - филиал АО \"РСК \"МиГ\"",null,null,null,"нет","5137637","2707983184","5431571",null,"5412526"]
["26358477","171","город Нижний Новгород","город Нижний Новгород","22701000","5262240714","526201001","ОАО \"170 РЗ СОП\"",null,null,null,"нет","5137637","1898148165","5431581",null,"5412526"]
["26358400","172","город Нижний Новгород","город Нижний Новгород","22701000","5257007173","525701001","ОАО \"ВВПКП \"Оборонпромкомплекс\"",null,null,null,"нет","5137637","5161412","5431574",null,"5412526"]
["26358459","173","город Нижний Новгород","город Нижний Новгород","22701000","5260900066","526001001","ОАО \"ЗИП\"",null,null,null,"нет","5137637","5174619","5424085",null,"5412526"]
["26569255","174","Кстовский муниципальный район","Афонинский сельсовет","22637404","5250001581","525001001","ОАО \"Керма\"",null,null,null,"нет","5272376","5272274","5431567",null,"5412526"]
["26358281","175","город Арзамас","город Арзамас","22703000","5243001862","524301001","ОАО \"ЛЕГМАШ\"",null,null,null,"нет","5136408","5272241","5431559",null,"5412526"]
["26358171","176","Лысковский муниципальный округ","Лысковский муниципальный округ","22540000","5222000882","522201001","ОАО \"ЛЭТЗ\"",null,null,null,"нет","5680764377","5272178","5431538",null,"5412526"]
["26555652","177","город Нижний Новгород","город Нижний Новгород","22701000","5259008239","525901001","ОАО \"Оргсинтез\"",null,null,null,"нет","5137637","5161404","5431578",null,"5412526"]
["26358361","178","Павловский муниципальный округ","Павловский муниципальный округ","22542000","5252000382","525201001","ОАО \"Павловский завод им.Кирова\"",null,null,null,"нет","5678799700","5161444","5431569",null,"5412526"]
["27566914","179","город Нижний Новгород","город Нижний Новгород","22701000","5263008721","526301001","ОАО \"Силикатный завод №1\"",null,null,null,"нет","5137637","907453078","5431582",null,"5412526"]
["26358214","180","Сергачский муниципальный район","Город Сергач","22648101","5229007213","522901001","ОАО \"УК ЖКХ Сергачского района\"",null,null,null,"нет","5136486","5160636","5431546",null,"5412526"]
["28148693","181","город Нижний Новгород","город Нижний Новгород","22701000","5258000780","525801001","ОАО хладокомбинат \"Заречный\"",null,null,null,"нет","5137637","1512788104","5431576",null,"5412526"]
["31612515","182","город Нижний Новгород","город Нижний Новгород","22701000","5263148447","526301001","ОБЩЕСТВО С ОГРАНИЧЕННОЙ ОТВЕТСТВЕННОСТЬЮ \"ТЕПЛОТРЕЙД-НН\"",null,null,null,"нет","5137637","6740521155","5431582",null,"5412526"]
["31531172","183","Кстовский муниципальный район","Афонинский сельсовет","22637404","5250073836","525001001","ООО \"АКАДЕМКОМФОРТ\"",null,null,null,"нет","5272376","6134620038","5431567",null,"5412526"]
["26358389","184","город Нижний Новгород","город Нижний Новгород","22701000","5256049357","525601001","ООО \"Автозаводская ТЭЦ\"",null,null,null,"нет","5137637","5257032","5431573",null,"5412526"]
["26358283","185","город Арзамас","город Арзамас","22703000","5243002464","524301001","ООО \"Арзамасское ПО \"Автопровод\"",null,null,null,"нет","5136408","5272243","5431559",null,"5412526"]
["26647119","186","Вадский муниципальный округ","Вадский муниципальный округ","22514000","5259088139","525901001","ООО \"Атриум Инвест\"",null,null,null,"нет","5688733489","497976952","5431578",null,"5412526"]
["26647119","187","Городецкий муниципальный район","город Городец","22628101","5259088139","525901001","ООО \"Атриум Инвест\"",null,null,null,"нет","5136468","497976952","5431578",null,"5412526"]
["26647119","188","Дивеевский муниципальный округ","Дивеевский муниципальный округ","22532000","5259088139","525901001","ООО \"Атриум Инвест\"",null,null,null,"нет","5701634256","497976952","5431578",null,"5412526"]
["26647119","189","Лысковский муниципальный округ","Лысковский муниципальный округ","22540000","5259088139","525901001","ООО \"Атриум Инвест\"",null,null,null,"нет","5680764377","497976952","5431578",null,"5412526"]
["26647119","190","Шатковский муниципальный район","Рабочий поселок Шатки","22657151","5259088139","525901001","ООО \"Атриум Инвест\"",null,null,null,"нет","5137796","497976952","5431578",null,"5412526"]
["26647119","191","город Бор","город Бор","22712000","5259088139","525901001","ООО \"Атриум Инвест\"",null,null,null,"нет","1894698781","497976952","5431578",null,"5412526"]
["26647119","192","город Кулебаки","город Кулебаки","22727000","5259088139","525901001","ООО \"Атриум Инвест\"",null,null,null,"нет","2305781044","497976952","5431578",null,"5412526"]
["28460925","193","Вадский муниципальный округ","Вадский муниципальный округ","22514000","5246043620","524601001","ООО \"БТГ\"",null,null,null,"нет","5688733489","1618001579","5431562",null,"5412526"]
["28460925","194","Вознесенский муниципальный район","Бахтызинский сельсовет","22619408","5246043620","524601001","ООО \"БТГ\"",null,null,null,"нет","5272364","1618001579","5431562",null,"5412526"]
["28460925","195","Вознесенский муниципальный район","Бутаковский сельсовет","22619416","5246043620","524601001","ООО \"БТГ\"",null,null,null,"нет","56405492","1618001579","5431562",null,"5412526"]
["28460925","196","Вознесенский муниципальный район","Криушинский сельсовет","22619420","5246043620","524601001","ООО \"БТГ\"",null,null,null,"нет","56405493","1618001579","5431562",null,"5412526"]
["28460925","197","Вознесенский муниципальный район","Нарышкинский сельсовет","22619432","5246043620","524601001","ООО \"БТГ\"",null,null,null,"нет","5272365","1618001579","5431562",null,"5412526"]
["31618550","198","Володарский муниципальный район","Город Володарск","22631103","5259154060","525901001","ООО \"БУГРОВСКИЕ МЕЛЬНИЦЫ\"",null,null,null,"нет","5136439","6742560596","5431578",null,"5412526"]
["31443656","199","Володарский муниципальный район","Город Володарск","22631103","5261126776","526101001","ООО \"БУГРОВСКИЕ МЕЛЬНИЦЫ\"",null,null,null,"нет","5136439","5386612227","5431579",null,"5412526"]
["28013687","200","Вознесенский муниципальный район","Рабочий поселок Вознесенское","22619151","5246041888","524601001","ООО \"Бор Инвест\"",null,null,null,"нет","5136403","1333574268","5431562",null,"5412526"]
["28013687","201","Воскресенский муниципальный район","Рабочий поселок Воскресенское","22622151","5246041888","524601001","ООО \"Бор Инвест\"",null,null,null,"нет","5272367","1333574268","5431562",null,"5412526"]
["28013687","202","Шатковский муниципальный район","Рабочий поселок Лесогорск","22657154","5246041888","524601001","ООО \"Бор Инвест\"",null,null,null,"нет","5137797","1333574268","5431562",null,"5412526"]
["28013687","203","город Бор","город Бор","22712000","5246041888","524601001","ООО \"Бор Инвест\"",null,null,null,"нет","1894698781","1333574268","5431562",null,"5412526"]
["28460965","204","город Бор","город Бор","22712000","5246043589","524601001","ООО \"Бор Теплоэнерго\"",null,null,null,"нет","1894698781","1618001436","5431562",null,"5412526"]
["28460965","205","город Кулебаки","город Кулебаки","22727000","5246043589","524601001","ООО \"Бор Теплоэнерго\"",null,null,null,"нет","2305781044","1618001436","5431562",null,"5412526"]
["28460965","206","город Нижний Новгород","город Нижний Новгород","22701000","5246043589","524601001","ООО \"Бор Теплоэнерго\"",null,null,null,"нет","5137637","1618001436","5431562",null,"5412526"]
["26358491","207","Бутурлинский муниципальный округ","Бутурлинский муниципальный округ","22512000","5205004630","520501001","ООО \"Бутурлинское жилищно-коммунальное хозяйство\"",null,null,null,"нет","5701634255","5158766","5431523",null,"5412526"]
["31211396","208","город Нижний Новгород","город Нижний Новгород","22701000","5257173928","525701001","ООО \"ВЕРУС ГРУПП\"",null,null,null,"нет","5137637","4172877220","5431574",null,"5412526"]
["31187851","209","Балахнинский муниципальный округ","Балахнинский муниципальный округ","22505000","5244031394","524401001","ООО \"ВОЛГАРЕСУРС\"",null,null,null,"нет","5687589352","4028932300","5431560",null,"5412526"]
["26358435","210","город Нижний Новгород","город Нижний Новгород","22701000","5260108580","526001001","ООО \"Высоковский кирпичный завод+\"",null,null,null,"нет","5137637","57097394","5424085",null,"5412526"]
["31448442","211","город Шахунья","город Шахунья","22758000","5401307630","526201001","ООО \"ГЛОБАЛЛОГИСТИК\"",null,null,null,"нет","1902070491","5604330063","5431581",null,"5412526"]
["26373418","212","Гагинский муниципальный район","Гагинский муниципальный район","22626000","5213004143","521301001","ООО \"Гагинское ЖКХ\"",null,null,null,"нет","5135399","5158817","5431531",null,"5412526"]
["26373418","213","Гагинский муниципальный район","Гагинский сельсовет","22626412","5213004143","521301001","ООО \"Гагинское ЖКХ\"",null,null,null,"нет","5272371","5158817","5431531",null,"5412526"]
["27866190","214","город Нижний Новгород","город Нижний Новгород","22701000","5258103070","525801001","ООО \"Генерация тепла\"",null,null,null,"нет","5137637","1274516530","5431576",null,"5412526"]
["28502351","215","город Шахунья","город Шахунья","22758000","5239010310","523901001","ООО \"Гефест\"",null,null,null,"нет","1902070491","1693580915","5431557",null,"5412526"]
["30385011","216","Сокольский","Сокольский","22749000","5260182440","526001001","ООО \"Гранит\"",null,null,null,"нет","2157237454","2349358222","5424085",null,"5412526"]
["30385011","217","Уренский муниципальный округ","Уренский муниципальный округ","22554000","5260182440","526001001","ООО \"Гранит\"",null,null,null,"нет","5681195742","2349358222","5424085",null,"5412526"]
["28265659","218","город Дзержинск","город Дзержинск","22721000","5249123377","524901001","ООО \"Дзержинсктеплогаз\"",null,null,null,"нет","5136353","1512788100","5431565",null,"5412526"]
["31196698","219","город Нижний Новгород","город Нижний Новгород","22701000","5263130707","526301001","ООО \"ЖБС-5\"",null,null,null,"нет","5137637","4082461527","5431582",null,"5412526"]
["31438254","220","Семеновский","Семеновский","22737000","5228055729","522801001","ООО \"ЗАЛЕСНОЕ\"",null,null,null,"нет","1900284181","5352527187","5431544",null,"5412526"]
["28858492","221","город Нижний Новгород","город Нижний Новгород","22701000","5262305560","526201001","ООО \"ЗЕНИТ ЭНЕРГО\"",null,null,null,"нет","5137637","1898148143","5431581",null,"5412526"]
["31306641","222","город Бор","город Бор","22712000","5246053330","524601001","ООО \"ИНЖЕНЕРНЫЙ ЦЕНТР\"",null,null,null,"нет","1894698781","4645678226","5431562",null,"5412526"]
["28821602","223","Кстовский муниципальный район","Афонинский сельсовет","22637404","5250060280","525001001","ООО \"Интер\"",null,null,null,"нет","5272376","1898148136","5431567",null,"5412526"]
["28821602","224","Кстовский муниципальный район","Кстовский муниципальный район","22637000","5250060280","525001001","ООО \"Интер\"",null,null,null,"нет","5136485","1898148136","5431567",null,"5412526"]
["31061810","225","город Нижний Новгород","город Нижний Новгород","22701000","5258135717","526101001","ООО \"КАПИТАЛ-МЕНЕДЖМЕНТ\"",null,null,null,"нет","5137637","3698697260","5431579",null,"5412526"]
["26358471","226","город Нижний Новгород","город Нижний Новгород","22701000","5261106233","526101001","ООО \"КЛАСС ПЛЮС\"",null,null,null,"нет","5137637","2707985253","5431579",null,"5412526"]
["30854345","227","город Нижний Новгород","город Нижний Новгород","22701000","5245027023","526101001","ООО \"КОММУНАЛЬЩИК-НН\"",null,null,null,"нет","5137637","2900259028","5431579",null,"5412526"]
["28815743","228","город Нижний Новгород","город Нижний Новгород","22701000","5256122751","525601001","ООО \"КСК\"",null,null,null,"нет","5137637","1834961598","5431573",null,"5412526"]
["28043750","229","Княгининский муниципальный район","Город Княгинино","22633101","5217003648","521701001","ООО \"Княгининский Стройгаз\"",null,null,null,"нет","5136031","1350197382","5431535",null,"5412526"]
["27670979","230","Вачский муниципальный район","Казаковский сельсовет","22617424","5208005166","520801001","ООО \"КомСервис-Т р.п. Вача\"",null,null,null,"нет","56405473","907453114","5431526",null,"5412526"]
["27670979","231","Вачский муниципальный район","Новосельский сельсовет","22617432","5208005166","520801001","ООО \"КомСервис-Т р.п. Вача\"",null,null,null,"нет","56405475","907453114","5431526",null,"5412526"]
["27670979","232","Вачский муниципальный район","Филинский сельсовет","22617436","5208005166","520801001","ООО \"КомСервис-Т р.п. Вача\"",null,null,null,"нет","5272362","907453114","5431526",null,"5412526"]
["27670979","233","Вачский муниципальный район","Чулковский сельсовет","22617440","5208005166","520801001","ООО \"КомСервис-Т р.п. Вача\"",null,null,null,"нет","56405476","907453114","5431526",null,"5412526"]
["28455154","234","Уренский муниципальный округ","Уренский муниципальный округ","22554000","5235007356","523501001","ООО \"Коммунсервис\"",null,null,null,"нет","5681195742","1601596692","5431553",null,"5412526"]
["30939581","235","Тоншаевский муниципальный округ","Тоншаевский муниципальный округ","22553000","5234004176","523401001","ООО \"ЛЕСПРОМ\"",null,null,null,"нет","5701634259","3393905657","5431552",null,"5412526"]
["31350312","236","Вачский муниципальный район","Рабочий поселок Вача","22617151","7709956215","770901001","ООО \"МНУЦ ВТИ\"",null,null,null,"нет","5272360","4859118906","5423388",null,"5412526"]
["26555644","237","город Нижний Новгород","город Нижний Новгород","22701000","5262154550","526201001","ООО \"НЗ \"СТАРТ\"",null,null,null,"нет","5137637","5161088","5431581",null,"5412526"]
["27567031","238","город Нижний Новгород","город Нижний Новгород","22701000","5261015233","526101001","ООО \"НОРМА\"",null,null,null,"нет","5137637","907453080","5431579",null,"5412526"]
["31230061","239","город Нижний Новгород","город Нижний Новгород","22701000","5262360338","526201001","ООО \"НТФ\"",null,null,null,"нет","5137637","4224909890","5431581",null,"5412526"]
["31212674","240","Навашинский","Навашинский","22730000","5223035415","522301001","ООО \"НТЦ\"",null,null,null,"нет","2322898925","4138861567","5431539",null,"5412526"]
["26555147","241","Сергачский муниципальный район","Город Сергач","22648101","5262068407","526001001","ООО \"Нижегородтеплогаз\"",null,null,null,"нет","5136486","57097397","5424085",null,"5412526"]
["26555147","242","город Дзержинск","город Дзержинск","22721000","5262068407","526001001","ООО \"Нижегородтеплогаз\"",null,null,null,"нет","5136353","57097397","5424085",null,"5412526"]
["26551993","243","город Нижний Новгород","город Нижний Новгород","22701000","5257079570","526001001","ООО \"Нижновтеплоэнерго\"",null,null,null,"нет","5137637","57097393","5424085",null,"5412526"]
["27909014","244","город Нижний Новгород","город Нижний Новгород","22701000","5258044065","525701001","ООО \"Николь-Пак Империал\"",null,null,null,"нет","5137637","1302803917","5431574",null,"5412526"]
["28942293","245","Володарский муниципальный район","Рабочий поселок Решетиха","22631168","5214011802","521401001","ООО \"ОКАТЕПЛОСЕРВИС\"",null,null,null,"нет","5136441","1977904912","5431532",null,"5412526"]
["31340582","246","город Арзамас","город Арзамас","22703000","5259120135","525901001","ООО \"ОРК\"",null,null,null,"нет","5136408","4739884768","5431578",null,"5412526"]
["26358434","247","город Нижний Новгород","город Нижний Новгород","22701000","5260069067","526001001","ООО \"Оздоровительный комплекс \"Молодость\"",null,null,null,"нет","5137637","5272328","5424085",null,"5412526"]
["31394997","248","Балахнинский муниципальный округ","Балахнинский муниципальный округ","22505000","5244032285","524401001","ООО \"ПРОМЭНЕРГО ЛУКИНО\"",null,null,null,"нет","5687589352","5004646409","5431560",null,"5412526"]
["31461541","249","Богородский муниципальный округ","Богородский муниципальный округ","22507000","5245012980","526101001","ООО \"ПРОФСТРОЙПРОЕКТ НН\"",null,null,null,"нет","5675664280","5663234620","5431579",null,"5412526"]
["31461541","250","город Нижний Новгород","город Нижний Новгород","22701000","5245012980","526101001","ООО \"ПРОФСТРОЙПРОЕКТ НН\"",null,null,null,"нет","5137637","5663234620","5431579",null,"5412526"]
["28951517","251","Ветлужский муниципальный район","Город Ветлуга","22618101","5209005539","520901001","ООО \"Поволжье - Ресурс\"",null,null,null,"нет","56405478","1991391609","5431527",null,"5412526"]
["27719695","252","город Нижний Новгород","город Нижний Новгород","22701000","5259069383","525901001","ООО \"ПримаЭнерго\"",null,null,null,"нет","5137637","5357696","5431578",null,"5412526"]
["28455277","253","город Кулебаки","город Кулебаки","22727000","5251009826","525101001","ООО \"Промтепло\"",null,null,null,"нет","2305781044","1601596633","5431568",null,"5412526"]
["26651300","254","Арзамасский муниципальный район","Абрамовский сельсовет","22603404","5202007216","520201001","ООО \"ПрофТепло\"",null,null,null,"нет","5355380","57443203","5431519",null,"5412526"]
["26651300","255","Арзамасский муниципальный район","Балахонихинский сельсовет","22603408","5202007216","520201001","ООО \"ПрофТепло\"",null,null,null,"нет","56405426","57443203","5431519",null,"5412526"]
["26651300","256","Арзамасский муниципальный район","Бебяевский сельсовет","22603456","5202007216","520201001","ООО \"ПрофТепло\"",null,null,null,"нет","56405437","57443203","5431519",null,"5412526"]
["26651300","257","Арзамасский муниципальный район","Большетумановский сельсовет","22603412","5202007216","520201001","ООО \"ПрофТепло\"",null,null,null,"нет","56405428","57443203","5431519",null,"5412526"]
["26651300","258","Арзамасский муниципальный район","Кирилловский сельсовет","22603424","5202007216","520201001","ООО \"ПрофТепло\"",null,null,null,"нет","1905858435","57443203","5431519",null,"5412526"]
["26651300","259","Арзамасский муниципальный район","Новоусадский сельсовет","22603452","5202007216","520201001","ООО \"ПрофТепло\"",null,null,null,"нет","56405436","57443203","5431519",null,"5412526"]
["26651300","260","Арзамасский муниципальный район","Рабочий поселок Выездное","22603155","5202007216","520201001","ООО \"ПрофТепло\"",null,null,null,"нет","56405425","57443203","5431519",null,"5412526"]
["26651300","261","Арзамасский муниципальный район","Слизневский сельсовет","22603472","5202007216","520201001","ООО \"ПрофТепло\"",null,null,null,"нет","56405440","57443203","5431519",null,"5412526"]
["26651300","262","Арзамасский муниципальный район","Чернухинский сельсовет","22603476","5202007216","520201001","ООО \"ПрофТепло\"",null,null,null,"нет","56405441","57443203","5431519",null,"5412526"]
["28425154","263","город Нижний Новгород","город Нижний Новгород","22701000","5262287335","770301001","ООО \"Профит\"",null,null,null,"нет","5137637","1538988684","5416915",null,"5412526"]
["26829810","264","город Нижний Новгород","город Нижний Новгород","22701000","5259033115","525701001","ООО \"РАСКО-Энергосервис\"",null,null,null,"нет","5137637","907453099","5431574",null,"5412526"]
["30953148","265","Лысковский муниципальный округ","Лысковский муниципальный округ","22540000","5222071530","522201001","ООО \"РЕМОНТНИК\"",null,null,null,"нет","5680764377","3517869862","5431538",null,"5412526"]
["31193125","266","город Арзамас","город Арзамас","22703000","5243036135","524303613","ООО \"РИКОР ЭНЕРГО\"",null,null,null,"нет","5136408","4082461528","4082461526",null,"5412526"]
["31401059","267","город Нижний Новгород","город Нижний Новгород","22701000","5263138167","526301001","ООО \"РУАН\"",null,null,null,"нет","5137637","5054731578","5431582",null,"5412526"]
["30884490","268","город Нижний Новгород","город Нижний Новгород","22701000","5260403297","526001001","ООО \"РУССКИЙ СТАНДАРТ\"",null,null,null,"нет","5137637","3202745757","5424085",null,"5412526"]
["31624417","269","Тоншаевский муниципальный округ","Тоншаевский муниципальный округ","22553000","5235007589","523501001","ООО \"СЕВЕРНЫЕ КОММУНАЛЬНЫЕ СЕТИ\"",null,null,null,"нет","5701634259","6755137841","5431553",null,"5412526"]
["31241397","270","Дивеевский муниципальный округ","Дивеевский муниципальный округ","22532000","5047160143","521601001","ООО \"СК МАДИС\"",null,null,null,"нет","5701634256","4263109837","5431534",null,"5412526"]
["31222003","271","город Нижний Новгород","город Нижний Новгород","22701000","7716643855","772201001","ООО \"СПЕЦИАЛИЗИРОВАННЫЙ ЗАСТРОЙЩИК \"СПЕКТР\"",null,null,null,"нет","5137637","4263571285","5416435",null,"5412526"]
["26640583","272","город Нижний Новгород","город Нижний Новгород","22701000","5260283448","526001001","ООО \"СТН-Энергосети\"",null,null,null,"нет","5137637","57439881","5424085",null,"5412526"]
["31023655","273","город Нижний Новгород","город Нижний Новгород","22701000","7712103714","774301001","ООО \"СТРОИТЕЛЬНО - ЭКСПЛУАТАЦИОННОЕ УПРАВЛЕНИЕ \"ФУНДАМЕНТСТРОЙ - 6\"",null,null,null,"нет","5137637","3517869869","5416935",null,"5412526"]
["26551208","274","Городецкий муниципальный район","Николо-Погостинский сельсовет","22628442","5248013357","524801001","ООО \"Санаторий \"Городецкий\"",null,null,null,"нет","1904526459","5282255","5431564",null,"5412526"]
["26358443","275","город Нижний Новгород","город Нижний Новгород","22701000","5260082406","526001001","ООО \"Санаторий \"Зеленый город\"",null,null,null,"нет","5137637","5161143","5424085",null,"5412526"]
["26358429","276","город Нижний Новгород","город Нижний Новгород","22701000","5260082300","526001001","ООО \"Санаторий им. ВЦСПС\"",null,null,null,"нет","5137637","5272331","5424085",null,"5412526"]
["27572131","277","Володарский муниципальный район","Рабочий поселок Решетиха","22631168","5249021833","521401001","ООО \"Сетка-Энерго\"",null,null,null,"нет","5136441","907453093","5431532",null,"5412526"]
["27322384","278","Семеновский","Семеновский","22737000","5228056070","522801001","ООО \"Сухобезводнинское ЖКХ\"",null,null,null,"нет","1900284181","784853781","5431544",null,"5412526"]
["31166873","279","город Нижний Новгород","город Нижний Новгород","22701000","5262351051","526201001","ООО \"ТГС\"",null,null,null,"нет","5137637","4015442111","5431581",null,"5412526"]
["31196714","280","Кстовский муниципальный район","Афонинский сельсовет","22637404","5261113456","526101001","ООО \"ТЕПЛО ПЛЮС\"",null,null,null,"нет","5272376","4082461525","5431579",null,"5412526"]
["31386831","281","город Нижний Новгород","город Нижний Новгород","22701000","5260386637","526001001","ООО \"ТЕПЛОСТРОЙ\"",null,null,null,"нет","5137637","4945852553","5424085",null,"5412526"]
["31614648","282","город Бор","город Бор","22712000","5249172857","524901001","ООО \"ТЕХНОЛОГИКА\"",null,null,null,"нет","1894698781","6732952801","5431565",null,"5412526"]
["30376603","283","Кстовский муниципальный район","Большеельнинский сельсовет","22637416","5250047473","525001001","ООО \"ТК \"Ждановский\"",null,null,null,"нет","56405541","2295195628","5431567",null,"5412526"]
["30989316","284","Павловский муниципальный округ","Павловский муниципальный округ","22542000","5252041075","525201001","ООО \"ТОПЛИВНАЯ КОМПАНИЯ\"",null,null,null,"нет","5678799700","3517869866","5431569",null,"5412526"]
["28424890","285","город Нижний Новгород","город Нижний Новгород","22701000","5262291250","526201001","ООО \"ТЭК\"",null,null,null,"нет","5137637","1587133438","5431581",null,"5412526"]
["28460888","286","город Бор","город Бор","22712000","5246043606","524601001","ООО \"Тепловик\"",null,null,null,"нет","1894698781","1618001162","5431562",null,"5412526"]
["26358085","287","Арзамасский муниципальный район","Абрамовский сельсовет","22603404","5202010410","520201001","ООО \"Тепловые сети Арзамасского района\"",null,null,null,"нет","5355380","5272134","5431519",null,"5412526"]
["26358085","288","Арзамасский муниципальный район","Арзамасский муниципальный район","22603000","5202010410","520201001","ООО \"Тепловые сети Арзамасского района\"",null,null,null,"нет","5135543","5272134","5431519",null,"5412526"]
["26358085","289","Арзамасский муниципальный район","Балахонихинский сельсовет","22603408","5202010410","520201001","ООО \"Тепловые сети Арзамасского района\"",null,null,null,"нет","56405426","5272134","5431519",null,"5412526"]
["26358085","290","Арзамасский муниципальный район","Бебяевский сельсовет","22603456","5202010410","520201001","ООО \"Тепловые сети Арзамасского района\"",null,null,null,"нет","56405437","5272134","5431519",null,"5412526"]
["26358085","291","Арзамасский муниципальный район","Березовский сельсовет","22603410","5202010410","520201001","ООО \"Тепловые сети Арзамасского района\"",null,null,null,"нет","56405427","5272134","5431519",null,"5412526"]
["26358085","292","Арзамасский муниципальный район","Красносельский сельсовет","22603432","5202010410","520201001","ООО \"Тепловые сети Арзамасского района\"",null,null,null,"нет","5353209","5272134","5431519",null,"5412526"]
["26358085","293","Арзамасский муниципальный район","Ломовский сельсовет","22603440","5202010410","520201001","ООО \"Тепловые сети Арзамасского района\"",null,null,null,"нет","56405433","5272134","5431519",null,"5412526"]
["26358085","294","Арзамасский муниципальный район","Рабочий поселок Выездное","22603155","5202010410","520201001","ООО \"Тепловые сети Арзамасского района\"",null,null,null,"нет","56405425","5272134","5431519",null,"5412526"]
["26358085","295","Арзамасский муниципальный район","Чернухинский сельсовет","22603476","5202010410","520201001","ООО \"Тепловые сети Арзамасского района\"",null,null,null,"нет","56405441","5272134","5431519",null,"5412526"]
["26358085","296","Арзамасский муниципальный район","Шатовский сельсовет","22603480","5202010410","520201001","ООО \"Тепловые сети Арзамасского района\"",null,null,null,"нет","56405443","5272134","5431519",null,"5412526"]
["26760360","297","Ардатовский муниципальный район","Рабочий поселок Ардатов","22602151","5201030205","520101001","ООО \"Тепловые сети\"",null,null,null,"нет","5136325","57443202","5431518",null,"5412526"]
["27965855","298","Воскресенский муниципальный район","Благовещенский сельсовет","22622404","5212510387","521201001","ООО \"Теплоцентраль\"",null,null,null,"нет","56405501","1319632594","5431530",null,"5412526"]
["27965855","299","Воскресенский муниципальный район","Богородский сельсовет","22622408","5212510387","521201001","ООО \"Теплоцентраль\"",null,null,null,"нет","56405502","1319632594","5431530",null,"5412526"]
["27965855","300","Воскресенский муниципальный район","Владимирский сельсовет","22622416","5212510387","521201001","ООО \"Теплоцентраль\"",null,null,null,"нет","56405504","1319632594","5431530",null,"5412526"]
["27965855","301","Воскресенский муниципальный район","Воздвиженский сельсовет","22622420","5212510387","521201001","ООО \"Теплоцентраль\"",null,null,null,"нет","5272368","1319632594","5431530",null,"5412526"]
["27965855","302","Воскресенский муниципальный район","Воскресенский муниципальный район","22622000","5212510387","521201001","ООО \"Теплоцентраль\"",null,null,null,"нет","5136564","1319632594","5431530",null,"5412526"]
["27965855","303","Воскресенский муниципальный район","Глуховский сельсовет","22622424","5212510387","521201001","ООО \"Теплоцентраль\"",null,null,null,"нет","5136314","1319632594","5431530",null,"5412526"]
["27965855","304","Воскресенский муниципальный район","Егоровский сельсовет","22622432","5212510387","521201001","ООО \"Теплоцентраль\"",null,null,null,"нет","56405506","1319632594","5431530",null,"5412526"]
["27965855","305","Воскресенский муниципальный район","Нестиарский сельсовет","22622456","5212510387","521201001","ООО \"Теплоцентраль\"",null,null,null,"нет","56405512","1319632594","5431530",null,"5412526"]
["27965855","306","Воскресенский муниципальный район","Рабочий поселок Воскресенское","22622151","5212510387","521201001","ООО \"Теплоцентраль\"",null,null,null,"нет","5272367","1319632594","5431530",null,"5412526"]
["27965855","307","Воскресенский муниципальный район","Староустинский сельсовет","22622460","5212510387","521201001","ООО \"Теплоцентраль\"",null,null,null,"нет","56405513","1319632594","5431530",null,"5412526"]
["26811759","308","Кстовский муниципальный район","Город Кстово","22637101","5250050892","525001001","ООО \"Термаль\"",null,null,null,"нет","5272375","604285037","5431567",null,"5412526"]
["30802627","309","город Нижний Новгород","город Нижний Новгород","22701000","5024159342","502401001","ООО \"ТермоТрон\"",null,null,null,"нет","5137637","2705143897","5448828",null,"5412526"]
["26358312","310","город Бор","город Бор","22712000","5246022243","524601001","ООО \"Техноэнергосервис\"",null,null,null,"нет","1894698781","5158768","5431562",null,"5412526"]
["31520267","311","Володарский муниципальный район","Володарский муниципальный район","22631000","7730254681","773001001","ООО \"УК ТЭСК\"",null,null,null,"нет","5223101","6075126271","5416933",null,"5412526"]
["31520267","312","Володарский муниципальный район","Рабочий поселок Смолино","22631170","7730254681","773001001","ООО \"УК ТЭСК\"",null,null,null,"нет","5272372","6075126271","5416933",null,"5412526"]
["31520267","313","Дальнеконстантиновский муниципальный район","Дальнеконстантиновский муниципальный район","22630000","7730254681","773001001","ООО \"УК ТЭСК\"",null,null,null,"нет","5223100","6075126271","5416933",null,"5412526"]
["31520267","314","Кстовский муниципальный район","Город Кстово","22637101","7730254681","773001001","ООО \"УК ТЭСК\"",null,null,null,"нет","5272375","6075126271","5416933",null,"5412526"]
["31520267","315","город Арзамас","город Арзамас","22703000","7730254681","773001001","ООО \"УК ТЭСК\"",null,null,null,"нет","5136408","6075126271","5416933",null,"5412526"]
["31520267","316","город Дзержинск","город Дзержинск","22721000","7730254681","773001001","ООО \"УК ТЭСК\"",null,null,null,"нет","5136353","6075126271","5416933",null,"5412526"]
["31520267","317","город Кулебаки","город Кулебаки","22727000","7730254681","773001001","ООО \"УК ТЭСК\"",null,null,null,"нет","2305781044","6075126271","5416933",null,"5412526"]
["31520267","318","город Нижний Новгород","город Нижний Новгород","22701000","7730254681","773001001","ООО \"УК ТЭСК\"",null,null,null,"нет","5137637","6075126271","5416933",null,"5412526"]
["31615793","319","Балахнинский муниципальный округ","Балахнинский муниципальный округ","22505000","5244029349","524401001","ООО \"ФЕНИКС\"",null,null,null,"нет","5687589352","6772965420","5431560",null,"5412526"]
["26951224","320","город Нижний Новгород","город Нижний Новгород","22701000","5261035060","526101001","ООО \"ФИТОФАРМ-НН\"",null,null,null,"нет","5137637","907818830","5431579",null,"5412526"]
["27632973","321","Павловский муниципальный округ","Павловский муниципальный округ","22542000","5257055240","525201001","ООО \"ФСК \"Энерго Строй\"",null,null,null,"нет","5678799700","5161378","5431569",null,"5412526"]
["26358445","322","город Нижний Новгород","город Нижний Новгород","22701000","5260096462","526001001","ООО \"ЦТО \"Меркурий\"",null,null,null,"нет","5137637","5161281","5424085",null,"5412526"]
["30437014","323","Кстовский муниципальный район","Кстовский муниципальный район","22637000","5260393708","526001001","ООО \"ЭКОТЕПЛОСЕРВИС-КСТОВО\"",null,null,null,"нет","5136485","2704513560","5424085",null,"5412526"]
["30437014","324","Кстовский муниципальный район","Ройкинский сельсовет","22637442","5260393708","526001001","ООО \"ЭКОТЕПЛОСЕРВИС-КСТОВО\"",null,null,null,"нет","56405543","2704513560","5424085",null,"5412526"]
["30830889","325","город Нижний Новгород","город Нижний Новгород","22701000","5257141193","525701001","ООО \"ЭЛКОСТ\"",null,null,null,"нет","5137637","2704513554","5431574",null,"5412526"]
["30871726","326","город Нижний Новгород","город Нижний Новгород","22701000","5259125630","525901001","ООО \"ЭНЕРГИЯ\"",null,null,null,"нет","5137637","2900340420","5431578",null,"5412526"]
["30957617","327","город Нижний Новгород","город Нижний Новгород","22701000","5260439649","526001001","ООО \"ЭНЕРДЖИПРО-НН\"",null,null,null,"нет","5137637","3517869868","5424085",null,"5412526"]
["27599100","328","Семеновский","Семеновский","22737000","5228055662","522801001","ООО \"ЭкоТеплоСервис-Семенов\"",null,null,null,"нет","1900284181","57292740","5431544",null,"5412526"]
["28053587","329","город Шахунья","город Шахунья","22758000","5239009837","523901001","ООО \"ЭкоТеплосервис-Шахунья\"",null,null,null,"нет","1902070491","484559525","5431557",null,"5412526"]
["26358455","330","город Нижний Новгород","город Нижний Новгород","22701000","5260178764","526001001","ООО \"Энергосервис\"",null,null,null,"нет","5137637","5161487","5424085",null,"5412526"]
["26358378","331","Павловский муниципальный округ","Павловский муниципальный округ","22542000","5252011169","525201001","ООО Агрофирма \"Павловская\"",null,null,null,"нет","5678799700","5161130","5431569",null,"5412526"]
["26506413","332","Павловский муниципальный округ","Павловский муниципальный округ","22542000","5252024087","525201001","ООО НПО \"Мехинструмент\"",null,null,null,"нет","5678799700","57231288","5431569",null,"5412526"]
["31434085","333","город Бор","город Бор","22712000","5258113294","525801001","ООО НПФ \"ХОЛДИНГ НН\"",null,null,null,"нет","1894698781","5290910403","5431576",null,"5412526"]
["28875534","334","город Кулебаки","город Кулебаки","22727000","5251009953","525101001","ООО ПКФ \"ТЕПЛО\"",null,null,null,"нет","2305781044","1991387387","5431568",null,"5412526"]
["26358079","335","Ардатовский муниципальный район","Рабочий поселок Мухтолово","22602155","5201000867","520101001","ООО ФИРМА \"МУХТОЛОВСКАЯ СПЕЦОДЕЖДА\"",null,null,null,"нет","5136326","1855614368","5431518",null,"5412526"]
["26322338","336","Городецкий муниципальный район","Город Заволжье","22628103","5248004137","524801001","ПАО \"ЗМЗ\"",null,null,null,"нет","5136469","5257019","5431564",null,"5412526"]
["26322359","337","город Нижний Новгород","город Нижний Новгород","22701000","5263006629","526301001","ПАО \"Завод \"Красное Сормово\"",null,null,null,"нет","5137637","5174523","5431582",null,"5412526"]
["26358466","338","город Нижний Новгород","город Нижний Новгород","22701000","5261001745","526101001","ПАО \"НИТЕЛ\"",null,null,null,"нет","5137637","5257046","5431579",null,"5412526"]
["31596848","339","город Нижний Новгород","город Нижний Новгород","22701000","7708619320","770501001","ПАО \"ОАК\"",null,null,null,"нет","5137637","6617072024","5431584",null,"5412526"]
["26380702","340","Павловский муниципальный округ","Павловский муниципальный округ","22542000","5252000350","525201001","ПАО \"ПАВЛОВСКИЙ АВТОБУС\"",null,null,null,"нет","5678799700","5257028","5431569",null,"5412526"]
["26358282","341","город Арзамас","город Арзамас","22703000","5243001887","524301001","ПАО АНПП \"ТЕМП-АВИА\"",null,null,null,"нет","5136408","5272242","5431559",null,"5412526"]
["27805620","342","Краснобаковский муниципальный район","Рабочий поселок Красные Баки","22635151","5219005665","521901001","ПО \"Техсервис\"",null,null,null,"нет","5136503","1269388929","5431537",null,"5412526"]
["26358159","343","Краснобаковский муниципальный район","Прудовский сельсовет","22635430","5219005129","521901001","Прудовское МУП ЖКХ",null,null,null,"нет","5136507","5158935","5431537",null,"5412526"]
["26358256","344","город Чкаловск","город Чкаловск","22755000","5236002880","523601001","Пуреховское МУП ЖКХ",null,null,null,"нет","2306736400","5160993","5431554",null,"5412526"]
["26358149","345","Ковернинский муниципальный округ","Ковернинский муниципальный округ","22534000","5218000784","521801001","СПК \"Хохлома\"",null,null,null,"нет","5701634257","5158918","5431536",null,"5412526"]
["27372109","346","Дальнеконстантиновский муниципальный район","Суроватихинский сельсовет","22630448","5215000722","521501001","Суроватихинское МУМПЖКХ",null,null,null,"нет","5136560","57096109","5431533",null,"5412526"]
["31612520","347","город Нижний Новгород","город Нижний Новгород","22701000","5260051260","526001001","УФСБ РОССИИ ПО НИЖЕГОРОДСКОЙ ОБЛАСТИ",null,null,null,"нет","5137637","6727928202","5424085",null,"5412526"]
["31025414","348","Володарский муниципальный район","Золинский сельсовет","22631404","7729314745","526245001","ФГБУ \"ЦЖКУ\" МИНОБОРОНЫ РОССИИ",null,null,null,"нет","5136444","3089489028","2322898924",null,"5412526"]
["31025414","349","Володарский муниципальный район","Мулинский сельсовет","22631411","7729314745","526245001","ФГБУ \"ЦЖКУ\" МИНОБОРОНЫ РОССИИ",null,null,null,"нет","5136446","3089489028","2322898924",null,"5412526"]
["31025414","350","Володарский муниципальный район","Рабочий поселок Смолино","22631170","7729314745","526245001","ФГБУ \"ЦЖКУ\" МИНОБОРОНЫ РОССИИ",null,null,null,"нет","5272372","3089489028","2322898924",null,"5412526"]
["31025414","351","Володарский муниципальный район","Рабочий поселок Фролищи","22631173","7729314745","526245001","ФГБУ \"ЦЖКУ\" МИНОБОРОНЫ РОССИИ",null,null,null,"нет","5136442","3089489028","2322898924",null,"5412526"]
["31025414","352","Володарский муниципальный район","Рабочий поселок Центральный","22631176","7729314745","526245001","ФГБУ \"ЦЖКУ\" МИНОБОРОНЫ РОССИИ",null,null,null,"нет","5136443","3089489028","2322898924",null,"5412526"]
["31025414","353","Володарский муниципальный район","Рабочий поселок Юганец","22631179","7729314745","526245001","ФГБУ \"ЦЖКУ\" МИНОБОРОНЫ РОССИИ",null,null,null,"нет","5272373","3089489028","2322898924",null,"5412526"]
["31025414","354","Дальнеконстантиновский муниципальный район","Рабочий поселок Дальнее Константиново","22630151","7729314745","526245001","ФГБУ \"ЦЖКУ\" МИНОБОРОНЫ РОССИИ",null,null,null,"нет","5136559","3089489028","2322898924",null,"5412526"]
["31025414","355","Дальнеконстантиновский муниципальный район","Суроватихинский сельсовет","22630448","7729314745","526245001","ФГБУ \"ЦЖКУ\" МИНОБОРОНЫ РОССИИ",null,null,null,"нет","5136560","3089489028","2322898924",null,"5412526"]
["31025414","356","Краснооктябрьский муниципальный район","Уразовский сельсовет","22636440","7729314745","526245001","ФГБУ \"ЦЖКУ\" МИНОБОРОНЫ РОССИИ",null,null,null,"нет","5279633","3089489028","2322898924",null,"5412526"]
["31025414","357","Кстовский муниципальный район","Город Кстово","22637101","7729314745","526245001","ФГБУ \"ЦЖКУ\" МИНОБОРОНЫ РОССИИ",null,null,null,"нет","5272375","3089489028","2322898924",null,"5412526"]
["31025414","358","город Арзамас","город Арзамас","22703000","7729314745","526245001","ФГБУ \"ЦЖКУ\" МИНОБОРОНЫ РОССИИ",null,null,null,"нет","5136408","3089489028","2322898924",null,"5412526"]
["31025414","359","город Бор","город Бор","22712000","7729314745","526245001","ФГБУ \"ЦЖКУ\" МИНОБОРОНЫ РОССИИ",null,null,null,"нет","1894698781","3089489028","2322898924",null,"5412526"]
["31025414","360","город Кулебаки","город Кулебаки","22727000","7729314745","526245001","ФГБУ \"ЦЖКУ\" МИНОБОРОНЫ РОССИИ",null,null,null,"нет","2305781044","3089489028","2322898924",null,"5412526"]
["31025414","361","город Нижний Новгород","город Нижний Новгород","22701000","7729314745","526245001","ФГБУ \"ЦЖКУ\" МИНОБОРОНЫ РОССИИ",null,null,null,"нет","5137637","3089489028","2322898924",null,"5412526"]
["26555503","362","Сергачский муниципальный район","Город Сергач","22648101","7717127211","526202001","ФГУП \"Российская телевизионная и радиовещательная сеть\"",null,null,null,"нет","5136486","5160451","56472455",null,"5412526"]
["26555503","363","город Выкса","город Выкса","22715000","7717127211","526202001","ФГУП \"Российская телевизионная и радиовещательная сеть\"",null,null,null,"нет","1894742789","5160451","56472455",null,"5412526"]
["26322363","364","Павловский муниципальный округ","Павловский муниципальный округ","22542000","5249002485","524901001","ФКП \"Завод имени Я.М. Свердлова\"",null,null,null,"нет","5678799700","5257020","5431565",null,"5412526"]
["26322363","365","город Дзержинск","город Дзержинск","22721000","5249002485","524901001","ФКП \"Завод имени Я.М. Свердлова\"",null,null,null,"нет","5136353","5257020","5431565",null,"5412526"]
["30872359","366","Краснобаковский муниципальный район","Прудовский сельсовет","22635430","5219004157","521901001","ФКУ ИК-17 ГУФСИН РОССИИ ПО НИЖЕГОРОДСКОЙ ОБЛАСТИ",null,null,null,"нет","5136507","5357674","5431537",null,"5412526"]
["30912070","367","Лукояновский муниципальный район","Город Лукоянов","22639101","5221003841","522101001","ФКУ ИК-20 ГУФСИН РОССИИ ПО НИЖЕГОРОДСКОЙ ОБЛАСТИ",null,null,null,"нет","5136458","5158980","5501758",null,"5412526"]
["30884483","368","Варнавинский муниципальный район","Варнавинский муниципальный район","22615000","5207002300","520701001","ФКУ ИК-6 ГУФСИН РОССИИ ПО НИЖЕГОРОДСКОЙ ОБЛАСТИ",null,null,null,"нет","5135545","542691319","5431525",null,"5412526"]
["27577557","369","Варнавинский муниципальный район","Восходовский сельсовет","22615406","5207002317","520701001","ФКУ ИК-7 ГУФСИН РОССИИ ПО НИЖЕГОРОДСКОЙ ОБЛАСТИ",null,null,null,"нет","5272358","907188106","5431525",null,"5412526"]
["27967274","370","Краснобаковский муниципальный район","Прудовский сельсовет","22635430","5206002113","520601001","ФКУ КП-15 ГУФСИН России по Нижегородской области",null,null,null,"нет","5136507","1333672527","5431524",null,"5412526"]
["26358151","371","Краснобаковский муниципальный район","Прудовский сельсовет","22635430","5219004125","521901001","ФКУ ЛИУ-3 ГУФСИН РОССИИ ПО НИЖЕГОРОДСКОЙ ОБЛАСТИ",null,null,null,"нет","5136507","5282251","5431537",null,"5412526"]
["28942868","372","Кстовский муниципальный район","Афонинский сельсовет","22637404","6315376946","526043001","Филиал \"Нижегородский\" ПАО \"Т ПЛЮС\"",null,null,null,"нет","5272376","5112366","56533227",null,"5412526"]
["28942868","373","Кстовский муниципальный район","Безводнинский сельсовет","22637408","6315376946","526043001","Филиал \"Нижегородский\" ПАО \"Т ПЛЮС\"",null,null,null,"нет","56405539","5112366","56533227",null,"5412526"]
["28942868","374","Кстовский муниципальный район","Ближнеборисовский сельсовет","22637412","6315376946","526043001","Филиал \"Нижегородский\" ПАО \"Т ПЛЮС\"",null,null,null,"нет","56405540","5112366","56533227",null,"5412526"]
["28942868","375","Кстовский муниципальный район","Большеельнинский сельсовет","22637416","6315376946","526043001","Филиал \"Нижегородский\" ПАО \"Т ПЛЮС\"",null,null,null,"нет","56405541","5112366","56533227",null,"5412526"]
["28942868","376","Кстовский муниципальный район","Большемокринский сельсовет","22637420","6315376946","526043001","Филиал \"Нижегородский\" ПАО \"Т ПЛЮС\"",null,null,null,"нет","5272377","5112366","56533227",null,"5412526"]
["28942868","377","Кстовский муниципальный район","Город Кстово","22637101","6315376946","526043001","Филиал \"Нижегородский\" ПАО \"Т ПЛЮС\"",null,null,null,"нет","5272375","5112366","56533227",null,"5412526"]
["28942868","378","Кстовский муниципальный район","Запрудновский сельсовет","22637424","6315376946","526043001","Филиал \"Нижегородский\" ПАО \"Т ПЛЮС\"",null,null,null,"нет","5272378","5112366","56533227",null,"5412526"]
["28942868","379","Кстовский муниципальный район","Кстовский муниципальный район","22637000","6315376946","526043001","Филиал \"Нижегородский\" ПАО \"Т ПЛЮС\"",null,null,null,"нет","5136485","5112366","56533227",null,"5412526"]
["28942868","380","Кстовский муниципальный район","Новоликеевский сельсовет","22637436","6315376946","526043001","Филиал \"Нижегородский\" ПАО \"Т ПЛЮС\"",null,null,null,"нет","56405542","5112366","56533227",null,"5412526"]
["28942868","381","Кстовский муниципальный район","Прокошевский сельсовет","22637438","6315376946","526043001","Филиал \"Нижегородский\" ПАО \"Т ПЛЮС\"",null,null,null,"нет","5272380","5112366","56533227",null,"5412526"]
["28942868","382","Кстовский муниципальный район","Работкинский сельсовет","22637440","6315376946","526043001","Филиал \"Нижегородский\" ПАО \"Т ПЛЮС\"",null,null,null,"нет","5272381","5112366","56533227",null,"5412526"]
["28942868","383","Кстовский муниципальный район","Ройкинский сельсовет","22637442","6315376946","526043001","Филиал \"Нижегородский\" ПАО \"Т ПЛЮС\"",null,null,null,"нет","56405543","5112366","56533227",null,"5412526"]
["28942868","384","Кстовский муниципальный район","Слободской сельсовет","22637444","6315376946","526043001","Филиал \"Нижегородский\" ПАО \"Т ПЛЮС\"",null,null,null,"нет","56405544","5112366","56533227",null,"5412526"]
["28942868","385","Кстовский муниципальный район","Чернухинский сельсовет","22637448","6315376946","526043001","Филиал \"Нижегородский\" ПАО \"Т ПЛЮС\"",null,null,null,"нет","56405545","5112366","56533227",null,"5412526"]
["28942868","386","Кстовский муниципальный район","Чернышихинский сельсовет","22637428","6315376946","526043001","Филиал \"Нижегородский\" ПАО \"Т ПЛЮС\"",null,null,null,"нет","5272379","5112366","56533227",null,"5412526"]
["28942868","387","город Дзержинск","город Дзержинск","22721000","6315376946","526043001","Филиал \"Нижегородский\" ПАО \"Т ПЛЮС\"",null,null,null,"нет","5136353","5112366","56533227",null,"5412526"]
["28942868","388","город Нижний Новгород","город Нижний Новгород","22701000","6315376946","526043001","Филиал \"Нижегородский\" ПАО \"Т ПЛЮС\"",null,null,null,"нет","5137637","5112366","56533227",null,"5412526"]
["26358439","389","Семеновский","Семеновский","22737000","5260080007","522802001","Филиал ООО \"Газпром трансгаз Нижний Новгород\" - Семеновское ЛПУ МГ",null,null,null,"нет","1900284181","5158665","5431545",null,"5412526"]
["31499541","390","город Нижний Новгород","город Нижний Новгород","22701000","5254001230","526143001","Филиал ФГУП \"РФЯЦ - ВНИИЭФ\" \"Научно-исследовательский институт измерительных систем им. Ю.Е. Седакова\"",null,null,null,"нет","5137637","5495529","5882077739",null,"5412526"]
["28053921","391","город Нижний Новгород","город Нижний Новгород","22701000","5260080007","526202002","филиал ОАО \"Газпром трансгаз Нижний Новгород - Управление аварийно-восстановительных работ\"",null,null,null,"нет","5137637","5158665","5501800",null,"5412526"]

{"sheet":"UNREG_LIST_ORG","index":4,"n_rows":0,"n_cols":0,"rows_kept":0,"cut":false,"hidden":true,"merged":[]}

{"sheet":"PRICEZONE_LIST_ORG","index":5,"n_rows":0,"n_cols":0,"rows_kept":0,"cut":false,"hidden":true,"merged":[]}

{"sheet":"ACCESSIBILITY_LIST_ORG","index":6,"n_rows":2,"n_cols":4,"rows_kept":2,"cut":false,"hidden":true,"merged":[]}
["INN_ID","KPP_ID","ACCESSIBILITY","LEGAL_TARIFF_EXISTENCE"]
["5158839","5431564","Y","Y"]

{"sheet":"REESTR_MO","index":7,"n_rows":279,"n_cols":6,"rows_kept":279,"cut":false,"hidden":true,"merged":[]}
["МР","МО","ОКТМО","ТИП МО","МР","ИМЯ ДИАПАЗОНА"]
["Ардатовский муниципальный район","Ардатовский муниципальный район","22602000","муниципальный район","Ардатовский муниципальный район","MO_LIST_2"]
["Ардатовский муниципальный район","Кужендеевский сельсовет","22602424","сельское поселение","Арзамасский муниципальный район","MO_LIST_3"]
["Ардатовский муниципальный район","Личадеевский сельсовет","22602428","сельское поселение","Балахнинский муниципальный округ","MO_LIST_4"]
["Ардатовский муниципальный район","Михеевский сельсовет","22602432","сельское поселение","Богородский муниципальный округ","MO_LIST_5"]
["Ардатовский муниципальный район","Рабочий поселок Ардатов","22602151","городское поселение, в состав которого входит поселок","Большеболдинский муниципальный район","MO_LIST_6"]
["Ардатовский муниципальный район","Рабочий поселок Мухтолово","22602155","городское поселение, в состав которого входит поселок","Большемурашкинский муниципальный район","MO_LIST_7"]
["Ардатовский муниципальный район","Саконский сельсовет","22602436","сельское поселение","Бутурлинский муниципальный округ","MO_LIST_8"]
["Ардатовский муниципальный район","Стексовский сельсовет","22602440","сельское поселение","Вадский муниципальный округ","MO_LIST_9"]
["Ардатовский муниципальный район","Хрипуновский сельсовет","22602444","сельское поселение","Варнавинский муниципальный район","MO_LIST_10"]
["Арзамасский муниципальный район","Абрамовский сельсовет","22603404","сельское поселение","Вачский муниципальный район","MO_LIST_11"]
["Арзамасский муниципальный район","Арзамасский муниципальный район","22603000","муниципальный район","Ветлужский муниципальный район","MO_LIST_12"]
["Арзамасский муниципальный район","Балахонихинский сельсовет","22603408","сельское поселение","Вознесенский муниципальный район","MO_LIST_13"]
["Арзамасский муниципальный район","Бебяевский сельсовет","22603456","сельское поселение","Володарский муниципальный район","MO_LIST_14"]
["Арзамасский муниципальный район","Березовский сельсовет","22603410","сельское поселение","Воротынский","MO_LIST_15"]
["Арзамасский муниципальный район","Большетумановский сельсовет","22603412","сельское поселение","Воскресенский муниципальный район","MO_LIST_16"]
["Арзамасский муниципальный район","Кирилловский сельсовет","22603424","сельское поселение","Гагинский муниципальный район","MO_LIST_17"]
["Арзамасский муниципальный район","Красносельский сельсовет","22603432","сельское поселение","Городецкий муниципальный район","MO_LIST_18"]
["Арзамасский муниципальный район","Ломовский сельсовет","22603440","сельское поселение","Дальнеконстантиновский муниципальный район","MO_LIST_19"]
["Арзамасский муниципальный район","Новоусадский сельсовет","22603452","сельское поселение","Дивеевский муниципальный округ","MO_LIST_20"]
["Арзамасский муниципальный район","Рабочий поселок Выездное","22603155","городское поселение, в состав которого входит поселок","ЗАТО город Саров","MO_LIST_21"]
["Арзамасский муниципальный район","Слизневский сельсовет","22603472","сельское поселение","Княгининский муниципальный район","MO_LIST_22"]
["Арзамасский муниципальный район","Чернухинский сельсовет","22603476","сельское поселение","Ковернинский муниципальный округ","MO_LIST_23"]
["Арзамасский муниципальный район","Шатовский сельсовет","22603480","сельское поселение","Краснобаковский муниципальный район","MO_LIST_24"]
["Балахнинский муниципальный округ","Балахнинский муниципальный округ","22505000","муниципальный округ","Краснооктябрьский муниципальный район","MO_LIST_25"]
["Богородский муниципальный округ","Богородский муниципальный округ","22507000","муниципальный округ","Кстовский муниципальный район","MO_LIST_26"]
["Большеболдинский муниципальный район","Большеболдинский муниципальный район","22609000","муниципальный район","Лукояновский муниципальный район","MO_LIST_27"]
["Большеболдинский муниципальный район","Большеболдинский сельсовет","22609404","сельское поселение","Лысковский муниципальный округ","MO_LIST_28"]
["Большеболдинский муниципальный район","Молчановский сельсовет","22609416","сельское поселение","Навашинский","MO_LIST_29"]
["Большеболдинский муниципальный район","Новослободской сельсовет","22609420","сельское поселение","Павловский муниципальный округ","MO_LIST_30"]
["Большеболдинский муниципальный район","Пермеевский сельсовет","22609422","сельское поселение","Перевозский","MO_LIST_31"]
["Большеболдинский муниципальный район","Пикшенский сельсовет","22609424","сельское поселение","Пильнинский муниципальный район","MO_LIST_32"]
["Большеболдинский муниципальный район","Черновский сельсовет","22609432","сельское поселение","Починковский муниципальный округ","MO_LIST_33"]
["Большемурашкинский муниципальный район","Большемурашкинский муниципальный район","22610000","муниципальный район","Семеновский","MO_LIST_34"]
["Большемурашкинский муниципальный район","Григоровский сельсовет","22610408","сельское поселение","Сергачский муниципальный район","MO_LIST_35"]
["Большемурашкинский муниципальный район","Рабочий поселок Большое Мурашкино","22610151","городское поселение, в состав которого входит поселок","Сеченовский муниципальный район","MO_LIST_36"]
["Большемурашкинский муниципальный район","Советский сельсовет","22610404","сельское поселение","Сокольский","MO_LIST_37"]
["Большемурашкинский муниципальный район","Холязинский сельсовет","22610428","сельское поселение","Сосновский муниципальный район","MO_LIST_38"]
["Бутурлинский муниципальный округ","Бутурлинский муниципальный округ","22512000","муниципальный округ","Спасский муниципальный район","MO_LIST_39"]
["Вадский муниципальный округ","Вадский муниципальный округ","22514000","муниципальный округ","Тонкинский муниципальный район","MO_LIST_40"]
["Варнавинский муниципальный район","Богородский сельсовет","22615420","сельское поселение","Тоншаевский муниципальный округ","MO_LIST_41"]
["Варнавинский муниципальный район","Варнавинский муниципальный район","22615000","муниципальный район","Уренский муниципальный округ","MO_LIST_42"]
["Варнавинский муниципальный район","Восходовский сельсовет","22615406","сельское поселение","Шарангский муниципальный район","MO_LIST_43"]
["Варнавинский муниципальный район","Михаленинский сельсовет","22615416","сельское поселение","Шатковский муниципальный район","MO_LIST_44"]
["Варнавинский муниципальный район","Рабочий поселок Варнавино","22615151","городское поселение, в состав которого входит поселок","город Арзамас","MO_LIST_45"]
["Варнавинский муниципальный район","Северный сельсовет","22615428","сельское поселение","город Бор","MO_LIST_46"]
["Варнавинский муниципальный район","Шудский сельсовет","22615430","сельское поселение","город Выкса","MO_LIST_47"]
["Вачский муниципальный район","Арефинский сельсовет","22617408","сельское поселение","город Дзержинск","MO_LIST_48"]
["Вачский муниципальный район","Вачский муниципальный район","22617000","муниципальный район","город Кулебаки","MO_LIST_49"]
["Вачский муниципальный район","Казаковский сельсовет","22617424","сельское поселение","город Нижний Новгород","MO_LIST_50"]
["Вачский муниципальный район","Новосельский сельсовет","22617432","сельское поселение","город Первомайск","MO_LIST_51"]
["Вачский муниципальный район","Рабочий поселок Вача","22617151","городское поселение, в состав которого входит поселок","город Чкаловск","MO_LIST_52"]
["Вачский муниципальный район","Филинский сельсовет","22617436","сельское поселение","город Шахунья","MO_LIST_53"]
["Вачский муниципальный район","Чулковский сельсовет","22617440","сельское поселение"]
["Ветлужский муниципальный район","Ветлужский муниципальный район","22618000","муниципальный район"]
["Ветлужский муниципальный район","Волыновский сельсовет","22618408","сельское поселение"]
["Ветлужский муниципальный район","Город Ветлуга","22618101","городское поселение, в состав которого входит город"]
["Ветлужский муниципальный район","Крутцовский сельсовет","22618416","сельское поселение"]
["Ветлужский муниципальный район","Макарьевский сельсовет","22618420","сельское поселение"]
["Ветлужский муниципальный район","Мошкинский сельсовет","22618428","сельское поселение"]
["Ветлужский муниципальный район","Новоуспенский сельсовет","22618432","сельское поселение"]
["Ветлужский муниципальный район","Поселок им Калинина","22618154","городское поселение, в состав которого входит поселок"]
["Ветлужский муниципальный район","Проновский сельсовет","22618436","сельское поселение"]
["Ветлужский муниципальный район","Туранский сельсовет","22618444","сельское поселение"]
["Вознесенский муниципальный район","Бахтызинский сельсовет","22619408","сельское поселение"]
["Вознесенский муниципальный район","Благодатовский сельсовет","22619412","сельское поселение"]
["Вознесенский муниципальный район","Бутаковский сельсовет","22619416","сельское поселение"]
["Вознесенский муниципальный район","Вознесенский муниципальный район","22619000","муниципальный район"]
["Вознесенский муниципальный район","Криушинский сельсовет","22619420","сельское поселение"]
["Вознесенский муниципальный район","Мотызлейский сельсовет","22619428","сельское поселение"]
["Вознесенский муниципальный район","Нарышкинский сельсовет","22619432","сельское поселение"]
["Вознесенский муниципальный район","Полховско-Майданский сельсовет","22619440","сельское поселение"]
["Вознесенский муниципальный район","Рабочий поселок Вознесенское","22619151","городское поселение, в состав которого входит поселок"]
["Вознесенский муниципальный район","Сарминский сельсовет","22619444","сельское поселение"]
["Володарский муниципальный район","Володарский муниципальный район","22631000","муниципальный район"]
["Володарский муниципальный район","Город Володарск","22631103","городское поселение, в состав которого входит город"]
["Володарский муниципальный район","Золинский сельсовет","22631404","сельское поселение"]
["Володарский муниципальный район","Ильинский сельсовет","22631408","сельское поселение"]
["Володарский муниципальный район","Мулинский сельсовет","22631411","сельское поселение"]
["Володарский муниципальный район","Рабочий поселок Ильиногорск","22631160","городское поселение, в состав которого входит поселок"]
["Володарский муниципальный район","Рабочий поселок Решетиха","22631168","городское поселение, в состав которого входит поселок"]
["Володарский муниципальный район","Рабочий поселок Смолино","22631170","городское поселение, в состав которого входит поселок"]
["Володарский муниципальный район","Рабочий поселок Фролищи","22631173","городское поселение, в состав которого входит поселок"]
["Володарский муниципальный район","Рабочий поселок Центральный","22631176","городское поселение, в состав которого входит поселок"]
["Володарский муниципальный район","Рабочий поселок Юганец","22631179","городское поселение, в состав которого входит поселок"]
["Володарский муниципальный район","Сельсовет Красная Горка","22631402","сельское поселение"]
["Воротынский","Воротынский","22719000","городской округ"]
["Воскресенский муниципальный район","Благовещенский сельсовет","22622404","сельское поселение"]
["Воскресенский муниципальный район","Богородский сельсовет","22622408","сельское поселение"]
["Воскресенский муниципальный район","Владимирский сельсовет","22622416","сельское поселение"]
["Воскресенский муниципальный район","Воздвиженский сельсовет","22622420","сельское поселение"]
["Воскресенский муниципальный район","Воскресенский муниципальный район","22622000","муниципальный район"]
["Воскресенский муниципальный район","Глуховский сельсовет","22622424","сельское поселение"]
["Воскресенский муниципальный район","Егоровский сельсовет","22622432","сельское поселение"]
["Воскресенский муниципальный район","Капустихинский сельсовет","22622440","сельское поселение"]
["Воскресенский муниципальный район","Нахратовский сельсовет","22622452","сельское поселение"]
["Воскресенский муниципальный район","Нестиарский сельсовет","22622456","сельское поселение"]
["Воскресенский муниципальный район","Рабочий поселок Воскресенское","22622151","городское поселение, в состав которого входит поселок"]
["Воскресенский муниципальный район","Староустинский сельсовет","22622460","сельское поселение"]
["Гагинский муниципальный район","Большеаратский сельсовет","22626404","сельское поселение"]
["Гагинский муниципальный район","Ветошкинский сельсовет","22626408","сельское поселение"]
["Гагинский муниципальный район","Гагинский муниципальный район","22626000","муниципальный район"]
["Гагинский муниципальный район","Гагинский сельсовет","22626412","сельское поселение"]
["Гагинский муниципальный район","Покровский сельсовет","22626432","сельское поселение"]
["Гагинский муниципальный район","Ушаковский сельсовет","22626440","сельское поселение"]
["Гагинский муниципальный район","Юрьевский сельсовет","22626444","сельское поселение"]
["Городецкий муниципальный район","Бриляковский сельсовет","22628404","сельское поселение"]
["Городецкий муниципальный район","Город Заволжье","22628103","городское поселение, в состав которого входит город"]
["Городецкий муниципальный район","Городецкий муниципальный район","22628000","муниципальный район"]
["Городецкий муниципальный район","Зиняковский сельсовет","22628416","сельское поселение"]
["Городецкий муниципальный район","Ковригинский сельсовет","22628422","сельское поселение"]
["Городецкий муниципальный район","Кумохинский сельсовет","22628428","сельское поселение"]
["Городецкий муниципальный район","Николо-Погостинский сельсовет","22628442","сельское поселение"]
["Городецкий муниципальный район","Рабочий поселок Первомайский","22628154","городское поселение, в состав которого входит поселок"]
["Городецкий муниципальный район","Смиркинский сельсовет","22628444","сельское поселение"]
["Городецкий муниципальный район","Смольковский сельсовет","22628448","сельское поселение"]
["Городецкий муниципальный район","Тимирязевский сельсовет","22628452","сельское поселение"]
["Городецкий муниципальный район","Федуринский сельсовет","22628458","сельское поселение"]
["Городецкий муниципальный район","город Городец","22628101","городское поселение, в состав которого входит город"]
["Дальнеконстантиновский муниципальный район","Белозеровский сельсовет","22630408","сельское поселение"]
["Дальнеконстантиновский муниципальный район","Богоявленский сельсовет","22630412","сельское поселение"]
["Дальнеконстантиновский муниципальный район","Дальнеконстантиновский муниципальный район","22630000","муниципальный район"]
["Дальнеконстантиновский муниципальный район","Дубравский сельсовет","22630444","сельское поселение"]
["Дальнеконстантиновский муниципальный район","Кужутский сельсовет","22630428","сельское поселение"]
["Дальнеконстантиновский муниципальный район","Малопицкий сельсовет","22630430","сельское поселение"]
["Дальнеконстантиновский муниципальный район","Нижегородский сельсовет","22630420","сельское поселение"]
["Дальнеконстантиновский муниципальный район","Рабочий поселок Дальнее Константиново","22630151","городское поселение, в состав которого входит поселок"]
["Дальнеконстантиновский муниципальный район","Сарлейский сельсовет","22630440","сельское поселение"]
["Дальнеконстантиновский муниципальный район","Суроватихинский сельсовет","22630448","сельское поселение"]
["Дальнеконстантиновский муниципальный район","Тепелевский сельсовет","22630456","сельское поселение"]
["Дивеевский муниципальный округ","Дивеевский муниципальный округ","22532000","муниципальный округ"]
["ЗАТО город Саров","ЗАТО город Саров","22704000","городской округ"]
["Княгининский муниципальный район","Ананьевский сельсовет","22633404","сельское поселение"]
["Княгининский муниципальный район","Белкинский сельсовет","22633408","сельское поселение"]
["Княгининский муниципальный район","Возрожденский сельсовет","22633416","сельское поселение"]
["Княгининский муниципальный район","Город Княгинино","22633101","городское поселение, в состав которого входит город"]
["Княгининский муниципальный район","Княгининский муниципальный район","22633000","муниципальный район"]
["Княгининский муниципальный район","Соловьевский сельсовет","22633428","сельское поселение"]
["Ковернинский муниципальный округ","Ковернинский муниципальный округ","22534000","муниципальный округ"]
["Краснобаковский муниципальный район","Зубилихинский сельсовет","22635404","сельское поселение"]
["Краснобаковский муниципальный район","Краснобаковский муниципальный район","22635000","муниципальный район"]
["Краснобаковский муниципальный район","Прудовский сельсовет","22635430","сельское поселение"]
["Краснобаковский муниципальный район","Рабочий поселок Ветлужский","22635154","городское поселение, в состав которого входит поселок"]
["Краснобаковский муниципальный район","Рабочий поселок Красные Баки","22635151","городское поселение, в состав которого входит поселок"]
["Краснобаковский муниципальный район","Чащихинский сельсовет","22635424","сельское поселение"]
["Краснобаковский муниципальный район","Шеманихинский сельсовет","22635432","сельское поселение"]
["Краснооктябрьский муниципальный район","Большерыбушкинский сельсовет","22636408","сельское поселение"]
["Краснооктябрьский муниципальный район","Ендовищенский сельсовет","22636412","сельское поселение"]
["Краснооктябрьский муниципальный район","Кечасовский сельсовет","22636416","сельское поселение"]
["Краснооктябрьский муниципальный район","Ключищенский сельсовет","22636424","сельское поселение"]
["Краснооктябрьский муниципальный район","Краснооктябрьский муниципальный район","22636000","муниципальный район"]
["Краснооктябрьский муниципальный район","Маресевский сельсовет","22636425","сельское поселение"]
["Краснооктябрьский муниципальный район","Медянский сельсовет","22636426","сельское поселение"]
["Краснооктябрьский муниципальный район","Пошатовский сельсовет","22636427","сельское поселение"]
["Краснооктябрьский муниципальный район","Салганский сельсовет","22636428","сельское поселение"]
["Краснооктябрьский муниципальный район","Саргинский сельсовет","22636432","сельское поселение"]
["Краснооктябрьский муниципальный район","Семеновский сельсовет","22636436","сельское поселение"]
["Краснооктябрьский муниципальный район","Уразовский сельсовет","22636440","сельское поселение"]
["Краснооктябрьский муниципальный район","Чембилеевский сельсовет","22636444","сельское поселение"]
["Кстовский муниципальный район","Афонинский сельсовет","22637404","сельское поселение"]
["Кстовский муниципальный район","Безводнинский сельсовет","22637408","сельское поселение"]
["Кстовский муниципальный район","Ближнеборисовский сельсовет","22637412","сельское поселение"]
["Кстовский муниципальный район","Большеельнинский сельсовет","22637416","сельское поселение"]
["Кстовский муниципальный район","Большемокринский сельсовет","22637420","сельское поселение"]
["Кстовский муниципальный район","Город Кстово","22637101","городское поселение, в состав которого входит город"]
["Кстовский муниципальный район","Запрудновский сельсовет","22637424","сельское поселение"]
["Кстовский муниципальный район","Кстовский муниципальный район","22637000","муниципальный район"]
["Кстовский муниципальный район","Новоликеевский сельсовет","22637436","сельское поселение"]
["Кстовский муниципальный район","Прокошевский сельсовет","22637438","сельское поселение"]
["Кстовский муниципальный район","Работкинский сельсовет","22637440","сельское поселение"]
["Кстовский муниципальный район","Ройкинский сельсовет","22637442","сельское поселение"]
["Кстовский муниципальный район","Слободской сельсовет","22637444","сельское поселение"]
["Кстовский муниципальный район","Чернухинский сельсовет","22637448","сельское поселение"]
["Кстовский муниципальный район","Чернышихинский сельсовет","22637428","сельское поселение"]
["Лукояновский муниципальный район","Большеарский сельсовет","22639404","сельское поселение"]
["Лукояновский муниципальный район","Большемаресьевский сельсовет","22639412","сельское поселение"]
["Лукояновский муниципальный район","Город Лукоянов","22639101","городское поселение, в состав которого входит город"]
["Лукояновский муниципальный район","Кудеяровский сельсовет","22639430","сельское поселение"]
["Лукояновский муниципальный район","Лопатинский сельсовет","22639432","сельское поселение"]
["Лукояновский муниципальный район","Лукояновский муниципальный район","22639000","муниципальный район"]
["Лукояновский муниципальный район","Рабочий поселок им Степана Разина","22639154","городское поселение, в состав которого входит поселок"]
["Лукояновский муниципальный район","Тольско-Майданский сельсовет","22639464","сельское поселение"]
["Лукояновский муниципальный район","Шандровский сельсовет","22639472","сельское поселение"]
["Лысковский муниципальный округ","Лысковский муниципальный округ","22540000","муниципальный округ"]
["Навашинский","Навашинский","22730000","городской округ"]
["Павловский муниципальный округ","Павловский муниципальный округ","22542000","муниципальный округ"]
["Перевозский","Перевозский","22739000","городской округ"]
["Пильнинский муниципальный район","Большеандосовский сельсовет","22645408","сельское поселение"]
["Пильнинский муниципальный район","Бортсурманский сельсовет","22645412","сельское поселение"]
["Пильнинский муниципальный район","Деяновский сельсовет","22645416","сельское поселение"]
["Пильнинский муниципальный район","Красногорский сельсовет","22645424","сельское поселение"]
["Пильнинский муниципальный район","Курмышский сельсовет","22645428","сельское поселение"]
["Пильнинский муниципальный район","Медянский сельсовет","22645432","сельское поселение"]
["Пильнинский муниципальный район","Можаров-Майданский сельсовет","22645436","сельское поселение"]
["Пильнинский муниципальный район","Новомочалеевский сельсовет","22645440","сельское поселение"]
["Пильнинский муниципальный район","Петряксинский сельсовет","22645448","сельское поселение"]
["Пильнинский муниципальный район","Пильнинский муниципальный район","22645000","муниципальный район"]
["Пильнинский муниципальный район","Рабочий поселок Пильна","22645151","городское поселение, в состав которого входит поселок"]
["Пильнинский муниципальный район","Тенекаевский сельсовет","22645456","сельское поселение"]
["Пильнинский муниципальный район","Языковский сельсовет","22645460","сельское поселение"]
["Починковский муниципальный округ","Починковский муниципальный округ","22546000","муниципальный округ"]
["Семеновский","Семеновский","22737000","городской округ"]
["Сергачский муниципальный район","Андреевский сельсовет","22648412","сельское поселение"]
["Сергачский муниципальный район","Ачкинский сельсовет","22648416","сельское поселение"]
["Сергачский муниципальный район","Богородский сельсовет","22648420","сельское поселение"]
["Сергачский муниципальный район","Город Сергач","22648101","городское поселение, в состав которого входит город"]
["Сергачский муниципальный район","Камкинский сельсовет","22648428","сельское поселение"]
["Сергачский муниципальный район","Кочко-Пожарский сельсовет","22648432","сельское поселение"]
["Сергачский муниципальный район","Лопатинский сельсовет","22648436","сельское поселение"]
["Сергачский муниципальный район","Пожарский сельсовет","22648444","сельское поселение"]
["Сергачский муниципальный район","Сергачский муниципальный район","22648000","муниципальный район"]
["Сергачский муниципальный район","Староберезовский сельсовет","22648452","сельское поселение"]
["Сергачский муниципальный район","Толбинский сельсовет","22648456","сельское поселение"]
["Сергачский муниципальный район","Шубинский сельсовет","22648460","сельское поселение"]
["Сеченовский муниципальный район","Болтинский сельсовет","22649408","сельское поселение"]
["Сеченовский муниципальный район","Васильевский сельсовет","22649412","сельское поселение"]
["Сеченовский муниципальный район","Верхнеталызинский сельсовет","22649416","сельское поселение"]
["Сеченовский муниципальный район","Кочетовский сельсовет","22649420","сельское поселение"]
["Сеченовский муниципальный район","Красноостровский сельсовет","22649428","сельское поселение"]
["Сеченовский муниципальный район","Мурзицкий сельсовет","22649440","сельское поселение"]
["Сеченовский муниципальный район","Сеченовский муниципальный район","22649000","муниципальный район"]
["Сеченовский муниципальный район","Сеченовский сельсовет","22649444","сельское поселение"]
["Сокольский","Сокольский","22749000","городской округ"]
["Сосновский муниципальный район","Виткуловский сельсовет","22650412","сельское поселение"]
["Сосновский муниципальный район","Давыдковский сельсовет","22650414","сельское поселение"]
["Сосновский муниципальный район","Елизаровский сельсовет","22650416","сельское поселение"]
["Сосновский муниципальный район","Крутецкий сельсовет","22650420","сельское поселение"]
["Сосновский муниципальный район","Панинский сельсовет","22650424","сельское поселение"]
["Сосновский муниципальный район","Рабочий поселок Сосновское","22650151","городское поселение, в состав которого входит поселок"]
["Сосновский муниципальный район","Рожковский сельсовет","22650428","сельское поселение"]
["Сосновский муниципальный район","Селитьбенский сельсовет","22650432","сельское поселение"]
["Сосновский муниципальный район","Сосновский муниципальный район","22650000","муниципальный район"]
["Сосновский муниципальный район","Яковский сельсовет","22650436","сельское поселение"]
["Спасский муниципальный район","Базловский сельсовет","22651404","сельское поселение"]
["Спасский муниципальный район","Вазьянский сельсовет","22651420","сельское поселение"]
["Спасский муниципальный район","Высокоосельский сельсовет","22651412","сельское поселение"]
["Спасский муниципальный район","Красноватрасский сельсовет","22651416","сельское поселение"]
["Спасский муниципальный район","Маклаковский сельсовет","22651414","сельское поселение"]
["Спасский муниципальный район","Спасский муниципальный район","22651000","муниципальный район"]
["Спасский муниципальный район","Спасский сельсовет","22651432","сельское поселение"]
["Спасский муниципальный район","Турбанский сельсовет","22651440","сельское поселение"]
["Тонкинский муниципальный район","Бердниковский сельсовет","22652404","сельское поселение"]
["Тонкинский муниципальный район","Большесодомовский сельсовет","22652408","сельское поселение"]
["Тонкинский муниципальный район","Вязовский сельсовет","22652412","сельское поселение"]
["Тонкинский муниципальный район","Пакалевский сельсовет","22652416","сельское поселение"]
["Тонкинский муниципальный район","Рабочий поселок Тонкино","22652151","городское поселение, в состав которого входит поселок"]
["Тонкинский муниципальный район","Тонкинский муниципальный район","22652000","муниципальный район"]
["Тоншаевский муниципальный округ","Тоншаевский муниципальный округ","22553000","муниципальный округ"]
["Уренский муниципальный округ","Уренский муниципальный округ","22554000","муниципальный округ"]
["Шарангский муниципальный район","Большерудкинский сельсовет","22656404","сельское поселение"]
["Шарангский муниципальный район","Большеустинский сельсовет","22656408","сельское поселение"]
["Шарангский муниципальный район","Кушнурский сельсовет","22656416","сельское поселение"]
["Шарангский муниципальный район","Рабочий поселок Шаранга","22656151","городское поселение, в состав которого входит поселок"]
["Шарангский муниципальный район","Роженцовский сельсовет","22656424","сельское поселение"]
["Шарангский муниципальный район","Старорудкинский сельсовет","22656428","сельское поселение"]
["Шарангский муниципальный район","Черномужский сельсовет","22656432","сельское поселение"]
["Шарангский муниципальный район","Шарангский муниципальный район","22656000","муниципальный район"]
["Шарангский муниципальный район","Щенниковский сельсовет","22656436","сельское поселение"]
["Шатковский муниципальный район","Архангельский сельсовет","22657404","сельское поселение"]
["Шатковский муниципальный район","Кержемокский сельсовет","22657416","сельское поселение"]
["Шатковский муниципальный район","Костянский сельсовет","22657424","сельское поселение"]
["Шатковский муниципальный район","Красноборский сельсовет","22657428","сельское поселение"]
["Шатковский муниципальный район","Рабочий поселок Лесогорск","22657154","городское поселение, в состав которого входит поселок"]
["Шатковский муниципальный район","Рабочий поселок Шатки","22657151","городское поселение, в состав которого входит поселок"]
["Шатковский муниципальный район","Светлогорский сельсовет","22657430","сельское поселение"]
["Шатковский муниципальный район","Силинский сельсовет","22657436","сельское поселение"]
["Шатковский муниципальный район","Смирновский сельсовет","22657448","сельское поселение"]
["Шатковский муниципальный район","Староиванцевский сельсовет","22657456","сельское поселение"]
["Шатковский муниципальный район","Шараповский сельсовет","22657460","сельское поселение"]
["Шатковский муниципальный район","Шатковский муниципальный район","22657000","муниципальный район"]
["город Арзамас","город Арзамас","22703000","городской округ"]
["город Бор","город Бор","22712000","городской округ"]
["город Выкса","город Выкса","22715000","городской округ"]
["город Дзержинск","город Дзержинск","22721000","городской округ"]
["город Кулебаки","город Кулебаки","22727000","городской округ"]
["город Нижний Новгород","город Нижний Новгород","22701000","городской округ"]
["город Первомайск","город Первомайск","22734000","городской округ"]
["город Чкаловск","город Чкаловск","22755000","городской округ"]
["город Шахунья","город Шахунья","22758000","городской округ"]

{"sheet":"AUTHORISATION","index":8,"n_rows":2,"n_cols":2,"rows_kept":2,"cut":false,"hidden":true,"merged":[]}
["L1","L2"]
["ACCESS GRANTED"]

{"sheet":"OKTMO_HISTORY","index":9,"n_rows":455,"n_cols":4,"rows_kept":455,"cut":false,"hidden":true,"merged":[]}
["MR_NAME","MO_NAME","OKTMO_NAME","TYPE"]
["Ардатовский муниципальный округ","Ардатовский муниципальный округ","22502000","муниципальный округ"]
["Ардатовский муниципальный район","Ардатовский муниципальный район","22602000","муниципальный район"]
["Ардатовский муниципальный район","Кужендеевский сельсовет","22602424","сельское поселение"]
["Ардатовский муниципальный район","Личадеевский сельсовет","22602428","сельское поселение"]
["Ардатовский муниципальный район","Михеевский сельсовет","22602432","сельское поселение"]
["Ардатовский муниципальный район","Саконский сельсовет","22602436","сельское поселение"]
["Ардатовский муниципальный район","Стексовский сельсовет","22602440","сельское поселение"]
["Ардатовский муниципальный район","Хрипуновский сельсовет","22602444","сельское поселение"]
["Ардатовский муниципальный район","Чуварлей-Майданский сельсовет","22602448","сельское поселение"]
["Ардатовский муниципальный район","рабочий поселок Ардатов","22602151","городское поселение, в состав которого входит поселок"]
["Ардатовский муниципальный район","рабочий поселок Мухтолово","22602155","городское поселение, в состав которого входит поселок"]
["Арзамасский муниципальный район","Абрамовский сельсовет","22603404","сельское поселение"]
["Арзамасский муниципальный район","Арзамасский муниципальный район","22603000","муниципальный район"]
["Арзамасский муниципальный район","Балахонихинский сельсовет","22603408","сельское поселение"]
["Арзамасский муниципальный район","Бебяевский сельсовет","22603456","сельское поселение"]
["Арзамасский муниципальный район","Березовский сельсовет","22603410","сельское поселение"]
["Арзамасский муниципальный район","Большетумановский сельсовет","22603412","сельское поселение"]
["Арзамасский муниципальный район","Кирилловский сельсовет","22603424","сельское поселение"]
["Арзамасский муниципальный район","Красносельский сельсовет","22603432","сельское поселение"]
["Арзамасский муниципальный район","Ломовский сельсовет","22603440","сельское поселение"]
["Арзамасский муниципальный район","Новоусадский сельсовет","22603452","сельское поселение"]
["Арзамасский муниципальный район","Слизневский сельсовет","22603472","сельское поселение"]
["Арзамасский муниципальный район","Чернухинский сельсовет","22603476","сельское поселение"]
["Арзамасский муниципальный район","Шатовский сельсовет","22603480","сельское поселение"]
["Арзамасский муниципальный район","рабочий поселок Выездное","22603155","городское поселение, в состав которого входит поселок"]
["Балахнинский муниципальный округ","Балахнинский муниципальный округ","22505000","муниципальный округ"]
["Балахнинский муниципальный район","Балахнинский муниципальный район","22605000","муниципальный район"]
["Балахнинский муниципальный район","Коневский сельсовет","22605408","сельское поселение"]
["Балахнинский муниципальный район","Кочергинский сельсовет","22605412","сельское поселение"]
["Балахнинский муниципальный район","Шеляуховский сельсовет","22605416","сельское поселение"]
["Балахнинский муниципальный район","город Балахна","22605101","городское поселение, в состав которого входит город"]
["Балахнинский муниципальный район","рабочий поселок Большое Козино","22605153","городское поселение, в состав которого входит поселок"]
["Балахнинский муниципальный район","рабочий поселок Гидроторф","22605155","городское поселение, в состав которого входит поселок"]
["Балахнинский муниципальный район","рабочий поселок Малое Козино","22605158","городское поселение, в состав которого входит поселок"]
["Богородский муниципальный округ","Богородский муниципальный округ","22507000","муниципальный округ"]
["Богородский муниципальный район","Алешковский сельсовет","22607404","сельское поселение"]
["Богородский муниципальный район","Богородский муниципальный район","22607000","муниципальный район"]
["Богородский муниципальный район","Доскинский сельсовет","22607416","сельское поселение"]
["Богородский муниципальный район","Дуденевский сельсовет","22607420","сельское поселение"]
["Богородский муниципальный район","Каменский сельсовет","22607428","сельское поселение"]
["Богородский муниципальный район","Новинский сельсовет","22607436","сельское поселение"]
["Богородский муниципальный район","Хвощевский сельсовет","22607444","сельское поселение"]
["Богородский муниципальный район","Шапкинский сельсовет","22607448","сельское поселение"]
["Богородский муниципальный район","город Богородск","22607101","городское поселение, в состав которого входит город"]
["Большеболдинский муниципальный округ","Большеболдинский муниципальный округ","22509000","муниципальный округ"]
["Большеболдинский муниципальный район","Большеболдинский муниципальный район","22609000","муниципальный район"]
["Большеболдинский муниципальный район","Большеболдинский сельсовет","22609404","сельское поселение"]
["Большеболдинский муниципальный район","Молчановский сельсовет","22609416","сельское поселение"]
["Большеболдинский муниципальный район","Новослободский сельсовет","22609420","сельское поселение"]
["Большеболдинский муниципальный район","Пермеевский сельсовет","22609422","сельское поселение"]
["Большеболдинский муниципальный район","Пикшенский сельсовет","22609424","сельское поселение"]
["Большеболдинский муниципальный район","Черновской сельсовет","22609432","сельское поселение"]
["Большемурашкинский муниципальный округ","Большемурашкинский муниципальный округ","22510000","муниципальный округ"]
["Большемурашкинский муниципальный район","Большемурашкинский муниципальный район","22610000","муниципальный район"]
["Большемурашкинский муниципальный район","Григоровский сельсовет","22610408","сельское поселение"]
["Большемурашкинский муниципальный район","Советский сельсовет","22610404","сельское поселение"]
["Большемурашкинский муниципальный район","Холязинский сельсовет","22610428","сельское поселение"]
["Большемурашкинский муниципальный район","рабочий поселок Большое Мурашкино","22610151","городское поселение, в состав которого входит поселок"]
["Бутурлинский муниципальный округ","Бутурлинский муниципальный округ","22512000","муниципальный округ"]
["Бутурлинский муниципальный район","Большебакалдский сельсовет","22612404","сельское поселение"]
["Бутурлинский муниципальный район","Бутурлинский муниципальный район","22612000","муниципальный район"]
["Бутурлинский муниципальный район","Каменищенский сельсовет","22612412","сельское поселение"]
["Бутурлинский муниципальный район","Кочуновский сельсовет","22612420","сельское поселение"]
["Бутурлинский муниципальный район","Уваровский сельсовет","22612428","сельское поселение"]
["Бутурлинский муниципальный район","Ягубовский сельсовет","22612432","сельское поселение"]
["Бутурлинский муниципальный район","рабочий поселок Бутурлино","22612151","городское поселение, в состав которого входит поселок"]
["Вадский муниципальный округ","Вадский муниципальный округ","22514000","муниципальный округ"]
["Вадский муниципальный район","Вадский муниципальный район","22614000","муниципальный район"]
["Вадский муниципальный район","Вадский сельсовет","22614404","сельское поселение"]
["Вадский муниципальный район","Дубенский сельсовет","22614408","сельское поселение"]
["Вадский муниципальный район","Круто-Майданский сельсовет","22614416","сельское поселение"]
["Вадский муниципальный район","Лопатинский сельсовет","22614420","сельское поселение"]
["Вадский муниципальный район","Новомирский сельсовет","22614424","сельское поселение"]
["Вадский муниципальный район","Стрельский сельсовет","22614432","сельское поселение"]
["Варнавинский муниципальный округ","Варнавинский муниципальный округ","22515000","муниципальный округ"]
["Варнавинский муниципальный район","Богородский сельсовет","22615420","сельское поселение"]
["Варнавинский муниципальный район","Варнавинский муниципальный район","22615000","муниципальный район"]
["Варнавинский муниципальный район","Восходовский сельсовет","22615406","сельское поселение"]
["Варнавинский муниципальный район","Михаленинский сельсовет","22615416","сельское поселение"]
["Варнавинский муниципальный район","Северный сельсовет","22615428","сельское поселение"]
["Варнавинский муниципальный район","Шудский сельсовет","22615430","сельское поселение"]
["Варнавинский муниципальный район","рабочий поселок Варнавино","22615151","городское поселение, в состав которого входит поселок"]
["Вачский муниципальный округ","Вачский муниципальный округ","22517000","муниципальный округ"]
["Вачский муниципальный район","Арефинский сельсовет","22617408","сельское поселение"]
["Вачский муниципальный район","Вачский муниципальный район","22617000","муниципальный район"]
["Вачский муниципальный район","Казаковский сельсовет","22617424","сельское поселение"]
["Вачский муниципальный район","Новосельский сельсовет","22617432","сельское поселение"]
["Вачский муниципальный район","Филинский сельсовет","22617436","сельское поселение"]
["Вачский муниципальный район","Чулковский сельсовет","22617440","сельское поселение"]
["Вачский муниципальный район","рабочий поселок Вача","22617151","городское поселение, в состав которого входит поселок"]
["Ветлужский муниципальный округ","Ветлужский муниципальный округ","22518000","муниципальный округ"]
["Ветлужский муниципальный район","Ветлужский муниципальный район","22618000","муниципальный район"]
["Ветлужский муниципальный район","Волыновский сельсовет","22618408","сельское поселение"]
["Ветлужский муниципальный район","Крутцовский сельсовет","22618416","сельское поселение"]
["Ветлужский муниципальный район","Макарьевский сельсовет","22618420","сельское поселение"]
["Ветлужский муниципальный район","Мошкинский сельсовет","22618428","сельское поселение"]
["Ветлужский муниципальный район","Новоуспенский сельсовет","22618432","сельское поселение"]
["Ветлужский муниципальный район","Проновский сельсовет","22618436","сельское поселение"]
["Ветлужский муниципальный район","Туранский сельсовет","22618444","сельское поселение"]
["Ветлужский муниципальный район","город Ветлуга","22618101","городское поселение, в состав которого входит город"]
["Ветлужский муниципальный район","рабочий поселок им М.И. Калинина","22618154","городское поселение, в состав которого входит поселок"]
["Вознесенский муниципальный округ","Вознесенский муниципальный округ","22519000","муниципальный округ"]
["Вознесенский муниципальный район","Бахтызинский сельсовет","22619408","сельское поселение"]
["Вознесенский муниципальный район","Благодатовский сельсовет","22619412","сельское поселение"]
["Вознесенский муниципальный район","Бутаковский сельсовет","22619416","сельское поселение"]
["Вознесенский муниципальный район","Вознесенский муниципальный район","22619000","муниципальный район"]
["Вознесенский муниципальный район","Криушинский сельсовет","22619420","сельское поселение"]
["Вознесенский муниципальный район","Мотызлейский сельсовет","22619428","сельское поселение"]
["Вознесенский муниципальный район","Нарышкинский сельсовет","22619432","сельское поселение"]
["Вознесенский муниципальный район","Полховско-Майданский сельсовет","22619440","сельское поселение"]
["Вознесенский муниципальный район","Сарминский сельсовет","22619444","сельское поселение"]
["Вознесенский муниципальный район","рабочий поселок Вознесенское","22619151","городское поселение, в состав которого входит поселок"]
["Володарский муниципальный округ","Володарский муниципальный округ","22520000","муниципальный округ"]
["Володарский муниципальный район","Володарский муниципальный район","22631000","муниципальный район"]
["Володарский муниципальный район","Золинский сельсовет","22631404","сельское поселение"]
["Володарский муниципальный район","Ильинский сельсовет","22631408","сельское поселение"]
["Володарский муниципальный район","Мулинский сельсовет","22631411","сельское поселение"]
["Володарский муниципальный район","город Володарск","22631103","городское поселение, в состав которого входит город"]
["Володарский муниципальный район","рабочий поселок Ильиногорск","22631160","городское поселение, в состав которого входит поселок"]
["Володарский муниципальный район","рабочий поселок Решетиха","22631168","городское поселение, в состав которого входит поселок"]
["Володарский муниципальный район","рабочий поселок Смолино","22631170","городское поселение, в состав которого входит поселок"]
["Володарский муниципальный район","рабочий поселок Фролищи","22631173","городское поселение, в состав которого входит поселок"]
["Володарский муниципальный район","рабочий поселок Центральный","22631176","городское поселение, в состав которого входит поселок"]
["Володарский муниципальный район","рабочий поселок Юганец","22631179","городское поселение, в состав которого входит поселок"]
["Володарский муниципальный район","сельсовет Красная Горка","22631402","сельское поселение"]
["Воротынский","Воротынский","22719000","городской округ"]
["Воротынский муниципальный район","Белавский сельсовет","22621408","сельское поселение"]
["Воротынский муниципальный район","Воротынский муниципальный район","22621000","муниципальный район"]
["Воротынский муниципальный район","Каменский сельсовет","22621416","сельское поселение"]
["Воротынский муниципальный район","Красногорский сельсовет","22621420","сельское поселение"]
["Воротынский муниципальный район","Михайловский сельсовет","22621424","сельское поселение"]
["Воротынский муниципальный район","Огнев-Майданский сельсовет","22621428","сельское поселение"]
["Воротынский муниципальный район","Отарский сельсовет","22621432","сельское поселение"]
["Воротынский муниципальный район","Семьянский сельсовет","22621444","сельское поселение"]
["Воротынский муниципальный район","Фокинский сельсовет","22621448","сельское поселение"]
["Воротынский муниципальный район","Чугуновский сельсовет","22621452","сельское поселение"]
["Воротынский муниципальный район","рабочий поселок Васильсурск","22621154","городское поселение, в состав которого входит поселок"]
["Воротынский муниципальный район","рабочий поселок Воротынец","22621151","городское поселение, в состав которого входит поселок"]
["Воскресенский муниципальный округ","Воскресенский муниципальный округ","22522000","муниципальный округ"]
["Воскресенский муниципальный район","Благовещенский сельсовет","22622404","сельское поселение"]
["Воскресенский муниципальный район","Богородский сельсовет","22622408","сельское поселение"]
["Воскресенский муниципальный район","Владимирский сельсовет","22622416","сельское поселение"]
["Воскресенский муниципальный район","Воздвиженский сельсовет","22622420","сельское поселение"]
["Воскресенский муниципальный район","Воскресенский муниципальный район","22622000","муниципальный район"]
["Воскресенский муниципальный район","Глуховский сельсовет","22622424","сельское поселение"]
["Воскресенский муниципальный район","Егоровский сельсовет","22622432","сельское поселение"]
["Воскресенский муниципальный район","Капустихинский сельсовет","22622440","сельское поселение"]
["Воскресенский муниципальный район","Нахратовский сельсовет","22622452","сельское поселение"]
["Воскресенский муниципальный район","Нестиарский сельсовет","22622456","сельское поселение"]
["Воскресенский муниципальный район","Староустинский сельсовет","22622460","сельское поселение"]
["Воскресенский муниципальный район","рабочий поселок Воскресенское","22622151","городское поселение, в состав которого входит поселок"]
["Гагинский муниципальный округ","Гагинский муниципальный округ","22526000","муниципальный округ"]
["Гагинский муниципальный район","Большеаратский сельсовет","22626404","сельское поселение"]
["Гагинский муниципальный район","Ветошкинский сельсовет","22626408","сельское поселение"]
["Гагинский муниципальный район","Гагинский муниципальный район","22626000","муниципальный район"]
["Гагинский муниципальный район","Гагинский сельсовет","22626412","сельское поселение"]
["Гагинский муниципальный район","Покровский сельсовет","22626432","сельское поселение"]
["Гагинский муниципальный район","Ушаковский сельсовет","22626440","сельское поселение"]
["Гагинский муниципальный район","Юрьевский сельсовет","22626444","сельское поселение"]
["Городецкий муниципальный округ","Городецкий муниципальный округ","22528000","муниципальный округ"]
["Городецкий муниципальный район","Бриляковский сельсовет","22628404","сельское поселение"]
["Городецкий муниципальный район","Городецкий муниципальный район","22628000","муниципальный район"]
["Городецкий муниципальный район","Зиняковский сельсовет","22628416","сельское поселение"]
["Городецкий муниципальный район","Ковригинский сельсовет","22628422","сельское поселение"]
["Городецкий муниципальный район","Кумохинский сельсовет","22628428","сельское поселение"]
["Городецкий муниципальный район","Николо-Погостинский сельсовет","22628442","сельское поселение"]
["Городецкий муниципальный район","Смиркинский сельсовет","22628444","сельское поселение"]
["Городецкий муниципальный район","Смольковский сельсовет","22628448","сельское поселение"]
["Городецкий муниципальный район","Тимирязевский сельсовет","22628452","сельское поселение"]
["Городецкий муниципальный район","Федуринский сельсовет","22628458","сельское поселение"]
["Городецкий муниципальный район","город Городец","22628101","городское поселение, в состав которого входит город"]
["Городецкий муниципальный район","город Заволжье","22628103","городское поселение, в состав которого входит город"]
["Городецкий муниципальный район","рабочий поселок Первомайский","22628154","городское поселение, в состав которого входит поселок"]
["Дальнеконстантиновский муниципальный округ","Дальнеконстантиновский муниципальный округ","22530000","муниципальный округ"]
["Дальнеконстантиновский муниципальный район","Белозеровский сельсовет","22630408","сельское поселение"]
["Дальнеконстантиновский муниципальный район","Богоявленский сельсовет","22630412","сельское поселение"]
["Дальнеконстантиновский муниципальный район","Дальнеконстантиновский муниципальный район","22630000","муниципальный район"]
["Дальнеконстантиновский муниципальный район","Дубравский сельсовет","22630444","сельское поселение"]
["Дальнеконстантиновский муниципальный район","Кужутский сельсовет","22630428","сельское поселение"]
["Дальнеконстантиновский муниципальный район","Малопицкий сельсовет","22630430","сельское поселение"]
["Дальнеконстантиновский муниципальный район","Нижегородский сельсовет","22630420","сельское поселение"]
["Дальнеконстантиновский муниципальный район","Сарлейский сельсовет","22630440","сельское поселение"]
["Дальнеконстантиновский муниципальный район","Суроватихинский сельсовет","22630448","сельское поселение"]
["Дальнеконстантиновский муниципальный район","Тепелевский сельсовет","22630456","сельское поселение"]
["Дальнеконстантиновский муниципальный район","рабочий поселок Дальнее Константиново","22630151","городское поселение, в состав которого входит поселок"]
["Дивеевский муниципальный округ","Дивеевский муниципальный округ","22532000","муниципальный округ"]
["Дивеевский муниципальный район","Верякушский сельсовет","22632408","сельское поселение"]
["Дивеевский муниципальный район","Глуховский сельсовет","22632412","сельское поселение"]
["Дивеевский муниципальный район","Дивеевский муниципальный район","22632000","муниципальный район"]
["Дивеевский муниципальный район","Дивеевский сельсовет","22632416","сельское поселение"]
["Дивеевский муниципальный район","Елизарьевский сельсовет","22632420","сельское поселение"]
["Дивеевский муниципальный район","Ивановский сельсовет","22632424","сельское поселение"]
["Дивеевский муниципальный район","Сатисский сельсовет","22632432","сельское поселение"]
["ЗАТО город Саров","ЗАТО город Саров","22704000","городской округ"]
["Княгининский муниципальный округ","Княгининский муниципальный округ","22533000","муниципальный округ"]
["Княгининский муниципальный район","Ананьевский сельсовет","22633404","сельское поселение"]
["Княгининский муниципальный район","Белкинский сельсовет","22633408","сельское поселение"]
["Княгининский муниципальный район","Возрожденский сельсовет","22633416","сельское поселение"]
["Княгининский муниципальный район","Княгининский муниципальный район","22633000","муниципальный район"]
["Княгининский муниципальный район","Соловьевский сельсовет","22633428","сельское поселение"]
["Княгининский муниципальный район","город Княгинино","22633101","городское поселение, в состав которого входит город"]
["Ковернинский муниципальный округ","Ковернинский муниципальный округ","22534000","муниципальный округ"]
["Ковернинский муниципальный район","Большемостовский сельсовет","22634412","сельское поселение"]
["Ковернинский муниципальный район","Гавриловский сельсовет","22634418","сельское поселение"]
["Ковернинский муниципальный район","Горевский сельсовет","22634420","сельское поселение"]
["Ковернинский муниципальный район","Ковернинский муниципальный район","22634000","муниципальный район"]
["Ковернинский муниципальный район","Скоробогатовский сельсовет","22634436","сельское поселение"]
["Ковернинский муниципальный район","Хохломский сельсовет","22634452","сельское поселение"]
["Ковернинский муниципальный район","рабочий поселок Ковернино","22634151","городское поселение, в состав которого входит поселок"]
["Краснобаковский муниципальный округ","Краснобаковский муниципальный округ","22535000","муниципальный округ"]
["Краснобаковский муниципальный район","Зубилихинский сельсовет","22635404","сельское поселение"]
["Краснобаковский муниципальный район","Краснобаковский муниципальный район","22635000","муниципальный район"]
["Краснобаковский муниципальный район","Прудовский сельсовет","22635430","сельское поселение"]
["Краснобаковский муниципальный район","Чащихинский сельсовет","22635424","сельское поселение"]
["Краснобаковский муниципальный район","Шеманихинский сельсовет","22635432","сельское поселение"]
["Краснобаковский муниципальный район","рабочий поселок Ветлужский","22635154","городское поселение, в состав которого входит поселок"]
["Краснобаковский муниципальный район","рабочий поселок Красные Баки","22635151","городское поселение, в состав которого входит поселок"]
["Краснооктябрьский муниципальный округ","Краснооктябрьский муниципальный округ","22536000","муниципальный округ"]
["Краснооктябрьский муниципальный район","Большерыбушкинский сельсовет","22636408","сельское поселение"]
["Краснооктябрьский муниципальный район","Ендовищенский сельсовет","22636412","сельское поселение"]
["Краснооктябрьский муниципальный район","Ендовищинский сельсовет","22636412","сельское поселение"]
["Краснооктябрьский муниципальный район","Кечасовский сельсовет","22636416","сельское поселение"]
["Краснооктябрьский муниципальный район","Ключищенский сельсовет","22636424","сельское поселение"]
["Краснооктябрьский муниципальный район","Ключищинский сельсовет","22636424","сельское поселение"]
["Краснооктябрьский муниципальный район","Краснооктябрьский муниципальный район","22636000","муниципальный район"]
["Краснооктябрьский муниципальный район","Маресевский сельсовет","22636425","сельское поселение"]
["Краснооктябрьский муниципальный район","Медянский сельсовет","22636426","сельское поселение"]
["Краснооктябрьский муниципальный район","Пошатовский сельсовет","22636427","сельское поселение"]
["Краснооктябрьский муниципальный район","Салганский сельсовет","22636428","сельское поселение"]
["Краснооктябрьский муниципальный район","Саргинский сельсовет","22636432","сельское поселение"]
["Краснооктябрьский муниципальный район","Семеновский сельсовет","22636436","сельское поселение"]
["Краснооктябрьский муниципальный район","Уразовский сельсовет","22636440","сельское поселение"]
["Краснооктябрьский муниципальный район","Чембилеевский сельсовет","22636444","сельское поселение"]
["Кстовский муниципальный округ","Кстовский муниципальный округ","22537000","муниципальный округ"]
["Кстовский муниципальный район","Афонинский сельсовет","22637404","сельское поселение"]
["Кстовский муниципальный район","Безводнинский сельсовет","22637408","сельское поселение"]
["Кстовский муниципальный район","Ближнеборисовский сельсовет","22637412","сельское поселение"]
["Кстовский муниципальный район","Большеельнинский сельсовет","22637416","сельское поселение"]
["Кстовский муниципальный район","Большемокринский сельсовет","22637420","сельское поселение"]
["Кстовский муниципальный район","Запрудновский сельсовет","22637424","сельское поселение"]
["Кстовский муниципальный район","Кстовский муниципальный район","22637000","муниципальный район"]
["Кстовский муниципальный район","Новоликеевский сельсовет","22637436","сельское поселение"]
["Кстовский муниципальный район","Прокошевский сельсовет","22637438","сельское поселение"]
["Кстовский муниципальный район","Работкинский сельсовет","22637440","сельское поселение"]
["Кстовский муниципальный район","Ройкинский сельсовет","22637442","сельское поселение"]
["Кстовский муниципальный район","Слободской сельсовет","22637444","сельское поселение"]
["Кстовский муниципальный район","Чернухинский сельсовет","22637448","сельское поселение"]
["Кстовский муниципальный район","Чернышихинский сельсовет","22637428","сельское поселение"]
["Кстовский муниципальный район","город Кстово","22637101","городское поселение, в состав которого входит город"]
["Кулебакский муниципальный район","Кулебакский муниципальный район","22638000","муниципальный район"]
["Кулебакский муниципальный район","Мурзицкий сельсовет","22638416","сельское поселение"]
["Кулебакский муниципальный район","Саваслейский сельсовет","22638424","сельское поселение"]
["Кулебакский муниципальный район","Серебрянский сельсовет","22638420","сельское поселение"]
["Кулебакский муниципальный район","Тепловский сельсовет","22638428","сельское поселение"]
["Кулебакский муниципальный район","город Кулебаки","22638101","городское поселение, в состав которого входит город"]
["Кулебакский муниципальный район","рабочий поселок Велетьма","22638152","городское поселение, в состав которого входит поселок"]
["Кулебакский муниципальный район","рабочий поселок Гремячево","22638153","городское поселение, в состав которого входит поселок"]
["Лукояновский муниципальный округ","Лукояновский муниципальный округ","22539000","муниципальный округ"]
["Лукояновский муниципальный район","Большеарский сельсовет","22639404","сельское поселение"]
["Лукояновский муниципальный район","Большемаресьевский сельсовет","22639412","сельское поселение"]
["Лукояновский муниципальный район","Кудеяровский сельсовет","22639430","сельское поселение"]
["Лукояновский муниципальный район","Лопатинский сельсовет","22639432","сельское поселение"]
["Лукояновский муниципальный район","Лукояновский муниципальный район","22639000","муниципальный район"]
["Лукояновский муниципальный район","Тольско-Майданский сельсовет","22639464","сельское поселение"]
["Лукояновский муниципальный район","Шандровский сельсовет","22639472","сельское поселение"]
["Лукояновский муниципальный район","город Лукоянов","22639101","городское поселение, в состав которого входит город"]
["Лукояновский муниципальный район","рабочий поселок им Степана Разина","22639154","городское поселение, в состав которого входит поселок"]
["Лысковский муниципальный округ","Лысковский муниципальный округ","22540000","муниципальный округ"]
["Лысковский муниципальный район","Барминский сельсовет","22640404","сельское поселение"]
["Лысковский муниципальный район","Берендеевский сельсовет","22640406","сельское поселение"]
["Лысковский муниципальный район","Валковский сельсовет","22640408","сельское поселение"]
["Лысковский муниципальный район","Кириковский сельсовет","22640420","сельское поселение"]
["Лысковский муниципальный район","Кисловский сельсовет","22640416","сельское поселение"]
["Лысковский муниципальный район","Красноосельский сельсовет","22640424","сельское поселение"]
["Лысковский муниципальный район","Леньковский сельсовет","22640428","сельское поселение"]
["Лысковский муниципальный район","Лысковский муниципальный район","22640000","муниципальный район"]
["Лысковский муниципальный район","Трофимовский сельсовет","22640452","сельское поселение"]
["Лысковский муниципальный район","город Лысково","22640101","городское поселение, в состав которого входит город"]
["Навашинский","Навашинский","22730000","городской округ"]
["Навашинский муниципальный район","Большеокуловский сельсовет","22641404","сельское поселение"]
["Навашинский муниципальный район","Навашинский муниципальный район","22641000","муниципальный район"]
["Навашинский муниципальный район","Натальинский сельсовет","22641420","сельское поселение"]
["Навашинский муниципальный район","Поздняковский сельсовет","22641428","сельское поселение"]
["Навашинский муниципальный район","город Навашино","22641101","городское поселение, в состав которого входит город"]
["Навашинский муниципальный район","сельсовет Теша","22641432","сельское поселение"]
["Павловский муниципальный округ","Павловский муниципальный округ","22542000","муниципальный округ"]
["Павловский муниципальный район","Абабковский сельсовет","22642404","сельское поселение"]
["Павловский муниципальный район","Варежский сельсовет","22642408","сельское поселение"]
["Павловский муниципальный район","Грудцинский сельсовет","22642412","сельское поселение"]
["Павловский муниципальный район","Калининский сельсовет","22642416","сельское поселение"]
["Павловский муниципальный район","Коровинский сельсовет","22642420","сельское поселение"]
["Павловский муниципальный район","Павловский муниципальный район","22642000","муниципальный район"]
["Павловский муниципальный район","Таремский сельсовет","22642424","сельское поселение"]
["Павловский муниципальный район","город Ворсма","22642103","городское поселение, в состав которого входит город"]
["Павловский муниципальный район","город Горбатов","22642105","городское поселение, в состав которого входит город"]
["Павловский муниципальный район","город Павлово","22642101","городское поселение, в состав которого входит город"]
["Павловский муниципальный район","рабочий поселок Тумботино","22642155","городское поселение, в состав которого входит поселок"]
["Перевозский","Перевозский","22739000","городской округ"]
["Перевозский муниципальный район","Дзержинский сельсовет","22644403","сельское поселение"]
["Перевозский муниципальный район","Дубской сельсовет","22644404","сельское поселение"]
["Перевозский муниципальный район","Ичалковский сельсовет","22644408","сельское поселение"]
["Перевозский муниципальный район","Палецкий сельсовет","22644412","сельское поселение"]
["Перевозский муниципальный район","Перевозский муниципальный район","22644000","муниципальный район"]
["Перевозский муниципальный район","Танайковский сельсовет","22644416","сельское поселение"]
["Перевозский муниципальный район","Тилининский сельсовет","22644420","сельское поселение"]
["Перевозский муниципальный район","Центральный сельсовет","22644424","сельское поселение"]
["Перевозский муниципальный район","город Перевоз","22644101","городское поселение, в состав которого входит город"]
["Пильнинский муниципальный округ","Пильнинский муниципальный округ","22545000","муниципальный округ"]
["Пильнинский муниципальный район","Большеандосовский сельсовет","22645408","сельское поселение"]
["Пильнинский муниципальный район","Бортсурманский сельсовет","22645412","сельское поселение"]
["Пильнинский муниципальный район","Деяновский сельсовет","22645416","сельское поселение"]
["Пильнинский муниципальный район","Красногорский сельсовет","22645424","сельское поселение"]
["Пильнинский муниципальный район","Курмышский сельсовет","22645428","сельское поселение"]
["Пильнинский муниципальный район","Медянский сельсовет","22645432","сельское поселение"]
["Пильнинский муниципальный район","Можаров-Майданский сельсовет","22645436","сельское поселение"]
["Пильнинский муниципальный район","Новомочалеевский сельсовет","22645440","сельское поселение"]
["Пильнинский муниципальный район","Петряксинский сельсовет","22645448","сельское поселение"]
["Пильнинский муниципальный район","Пильнинский муниципальный район","22645000","муниципальный район"]
["Пильнинский муниципальный район","Тенекаевский сельсовет","22645456","сельское поселение"]
["Пильнинский муниципальный район","Языковский сельсовет","22645460","сельское поселение"]
["Пильнинский муниципальный район","рабочий поселок Пильна","22645151","городское поселение, в состав которого входит поселок"]
["Починковский муниципальный округ","Починковский муниципальный округ","22546000","муниципальный округ"]
["Починковский муниципальный район","Василево-Майданский сельсовет","22646412","сельское поселение"]
["Починковский муниципальный район","Василевский сельсовет","22646408","сельское поселение"]
["Починковский муниципальный район","Кочкуровский сельсовет","22646424","сельское поселение"]
["Починковский муниципальный район","Маресевский сельсовет","22646436","сельское поселение"]
["Починковский муниципальный район","Наруксовский сельсовет","22646440","сельское поселение"]
["Починковский муниципальный район","Пеля-Хованский сельсовет","22646456","сельское поселение"]
["Починковский муниципальный район","Починковский муниципальный район","22646000","муниципальный район"]
["Починковский муниципальный район","Починковский сельсовет","22646460","сельское поселение"]
["Починковский муниципальный район","Ризоватовский сельсовет","22646468","сельское поселение"]
["Починковский муниципальный район","Ужовский сельсовет","22646480","сельское поселение"]
["Семеновский","Семеновский","22737000","городской округ"]
["Сергачский муниципальный округ","Сергачский муниципальный округ","22548000","муниципальный округ"]
["Сергачский муниципальный район","Андреевский сельсовет","22648412","сельское поселение"]
["Сергачский муниципальный район","Ачкинский сельсовет","22648416","сельское поселение"]
["Сергачский муниципальный район","Богородский сельсовет","22648420","сельское поселение"]
["Сергачский муниципальный район","Камкинский сельсовет","22648428","сельское поселение"]
["Сергачский муниципальный район","Кочко-Пожарский сельсовет","22648432","сельское поселение"]
["Сергачский муниципальный район","Лопатинский сельсовет","22648436","сельское поселение"]
["Сергачский муниципальный район","Пожарский сельсовет","22648444","сельское поселение"]
["Сергачский муниципальный район","Сергачский муниципальный район","22648000","муниципальный район"]
["Сергачский муниципальный район","Староберезовский сельсовет","22648452","сельское поселение"]
["Сергачский муниципальный район","Толбинский сельсовет","22648456","сельское поселение"]
["Сергачский муниципальный район","Шубинский сельсовет","22648460","сельское поселение"]
["Сергачский муниципальный район","город Сергач","22648101","городское поселение, в состав которого входит город"]
["Сеченовский муниципальный округ","Сеченовский муниципальный округ","22549000","муниципальный округ"]
["Сеченовский муниципальный район","Болтинский сельсовет","22649408","сельское поселение"]
["Сеченовский муниципальный район","Васильевский сельсовет","22649412","сельское поселение"]
["Сеченовский муниципальный район","Верхнеталызинский сельсовет","22649416","сельское поселение"]
["Сеченовский муниципальный район","Кочетовский сельсовет","22649420","сельское поселение"]
["Сеченовский муниципальный район","Красноостровский сельсовет","22649428","сельское поселение"]
["Сеченовский муниципальный район","Мурзицкий сельсовет","22649440","сельское поселение"]
["Сеченовский муниципальный район","Сеченовский муниципальный район","22649000","муниципальный район"]
["Сеченовский муниципальный район","Сеченовский сельсовет","22649444","сельское поселение"]
["Сокольский","Сокольский","22749000","городской округ"]
["Сосновский муниципальный округ","Сосновский муниципальный округ","22550000","муниципальный округ"]
["Сосновский муниципальный район","Виткуловский сельсовет","22650412","сельское поселение"]
["Сосновский муниципальный район","Давыдковский сельсовет","22650414","сельское поселение"]
["Сосновский муниципальный район","Елизаровский сельсовет","22650416","сельское поселение"]
["Сосновский муниципальный район","Крутецкий сельсовет","22650420","сельское поселение"]
["Сосновский муниципальный район","Панинский сельсовет","22650424","сельское поселение"]
["Сосновский муниципальный район","Рожковский сельсовет","22650428","сельское поселение"]
["Сосновский муниципальный район","Селитьбенский сельсовет","22650432","сельское поселение"]
["Сосновский муниципальный район","Селитьбинский сельсовет","22650432","сельское поселение"]
["Сосновский муниципальный район","Сосновский муниципальный район","22650000","муниципальный район"]
["Сосновский муниципальный район","Яковский сельсовет","22650436","сельское поселение"]
["Сосновский муниципальный район","рабочий поселок Сосновское","22650151","городское поселение, в состав которого входит поселок"]
["Спасский муниципальный округ","Спасский муниципальный округ","22551000","муниципальный округ"]
["Спасский муниципальный район","Базловский сельсовет","22651404","сельское поселение"]
["Спасский муниципальный район","Вазьянский сельсовет","22651420","сельское поселение"]
["Спасский муниципальный район","Высокоосельский сельсовет","22651412","сельское поселение"]
["Спасский муниципальный район","Красноватрасский сельсовет","22651416","сельское поселение"]
["Спасский муниципальный район","Маклаковский сельсовет","22651414","сельское поселение"]
["Спасский муниципальный район","Спасский муниципальный район","22651000","муниципальный район"]
["Спасский муниципальный район","Спасский сельсовет","22651432","сельское поселение"]
["Спасский муниципальный район","Турбанский сельсовет","22651440","сельское поселение"]
["Тонкинский муниципальный округ","Тонкинский муниципальный округ","22552000","муниципальный округ"]
["Тонкинский муниципальный район","Бердниковский сельсовет","22652404","сельское поселение"]
["Тонкинский муниципальный район","Большесодомовский сельсовет","22652408","сельское поселение"]
["Тонкинский муниципальный район","Вязовский сельсовет","22652412","сельское поселение"]
["Тонкинский муниципальный район","Пакалевский сельсовет","22652416","сельское поселение"]
["Тонкинский муниципальный район","Тонкинский муниципальный район","22652000","муниципальный район"]
["Тонкинский муниципальный район","рабочий поселок Тонкино","22652151","городское поселение, в состав которого входит поселок"]
["Тоншаевский муниципальный округ","Тоншаевский муниципальный округ","22553000","муниципальный округ"]
["Тоншаевский муниципальный район","Березятский сельсовет","22653424","сельское поселение"]
["Тоншаевский муниципальный район","Кодочиговский сельсовет","22653408","сельское поселение"]
["Тоншаевский муниципальный район","Ложкинский сельсовет","22653412","сельское поселение"]
["Тоншаевский муниципальный район","Одошнурский сельсовет","22653416","сельское поселение"]
["Тоншаевский муниципальный район","Ошминский сельсовет","22653420","сельское поселение"]
["Тоншаевский муниципальный район","Тоншаевский муниципальный район","22653000","муниципальный район"]
["Тоншаевский муниципальный район","Увийский сельсовет","22653436","сельское поселение"]
["Тоншаевский муниципальный район","рабочий поселок Пижма","22653154","городское поселение, в состав которого входит поселок"]
["Тоншаевский муниципальный район","рабочий поселок Тоншаево","22653151","городское поселение, в состав которого входит поселок"]
["Тоншаевский муниципальный район","рабочий поселок Шайгино","22653158","городское поселение, в состав которого входит поселок"]
["Уренский муниципальный округ","Уренский муниципальный округ","22554000","муниципальный округ"]
["Уренский муниципальный район","Большеарьевский сельсовет","22654408","сельское поселение"]
["Уренский муниципальный район","Большепесочнинский сельсовет","22654409","сельское поселение"]
["Уренский муниципальный район","Ворошиловский сельсовет","22654410","сельское поселение"]
["Уренский муниципальный район","Вязовский сельсовет","22654412","сельское поселение"]
["Уренский муниципальный район","Горевский сельсовет","22654416","сельское поселение"]
["Уренский муниципальный район","Карповский сельсовет","22654420","сельское поселение"]
["Уренский муниципальный район","Карпунихинский сельсовет","22654424","сельское поселение"]
["Уренский муниципальный район","Красногорский сельсовет","22654428","сельское поселение"]
["Уренский муниципальный район","Минеевский сельсовет","22654430","сельское поселение"]
["Уренский муниципальный район","Обходский сельсовет","22654432","сельское поселение"]
["Уренский муниципальный район","Семеновский сельсовет","22654436","сельское поселение"]
["Уренский муниципальный район","Темтовский сельсовет","22654440","сельское поселение"]
["Уренский муниципальный район","Уренский муниципальный район","22654000","муниципальный район"]
["Уренский муниципальный район","Устанский сельсовет","22654444","сельское поселение"]
["Уренский муниципальный район","город Урень","22654101","городское поселение, в состав которого входит город"]
["Уренский муниципальный район","рабочий поселок Арья","22654153","городское поселение, в состав которого входит поселок"]
["Чкаловский муниципальный район","Беловско-Новинский сельсовет","22655406","сельское поселение"]
["Чкаловский муниципальный район","Вершиловский сельсовет","22655408","сельское поселение"]
["Чкаловский муниципальный район","Котельницкий сельсовет","22655416","сельское поселение"]
["Чкаловский муниципальный район","Кузнецовский сельсовет","22655412","сельское поселение"]
["Чкаловский муниципальный район","Пуреховский сельсовет","22655424","сельское поселение"]
["Чкаловский муниципальный район","Соломатовский сельсовет","22655428","сельское поселение"]
["Чкаловский муниципальный район","Чкаловский муниципальный район","22655000","муниципальный район"]
["Чкаловский муниципальный район","город Чкаловск","22655101","городское поселение, в состав которого входит город"]
["Чкаловский муниципальный район","сельсовет Катунки","22655432","сельское поселение"]
["Чкаловский муниципальный район","сельсовет Чистое","22655436","сельское поселение"]
["Шарангский муниципальный округ","Шарангский муниципальный округ","22556000","муниципальный округ"]
["Шарангский муниципальный район","Большерудкинский сельсовет","22656404","сельское поселение"]
["Шарангский муниципальный район","Большеустинский сельсовет","22656408","сельское поселение"]
["Шарангский муниципальный район","Кушнурский сельсовет","22656416","сельское поселение"]
["Шарангский муниципальный район","Роженцовский сельсовет","22656424","сельское поселение"]
["Шарангский муниципальный район","Старорудкинский сельсовет","22656428","сельское поселение"]
["Шарангский муниципальный район","Черномужский сельсовет","22656432","сельское поселение"]
["Шарангский муниципальный район","Шарангский муниципальный район","22656000","муниципальный район"]
["Шарангский муниципальный район","Щенниковский сельсовет","22656436","сельское поселение"]
["Шарангский муниципальный район","рабочий поселок Шаранга","22656151","городское поселение, в состав которого входит поселок"]
["Шатковский муниципальный округ","Шатковский муниципальный округ","22557000","муниципальный округ"]
["Шатковский муниципальный район","Архангельский сельсовет","22657404","сельское поселение"]
["Шатковский муниципальный район","Кержемокский сельсовет","22657416","сельское поселение"]
["Шатковский муниципальный район","Костянский сельсовет","22657424","сельское поселение"]
["Шатковский муниципальный район","Красноборский сельсовет","22657428","сельское поселение"]
["Шатковский муниципальный район","Светлогорский сельсовет","22657430","сельское поселение"]
["Шатковский муниципальный район","Силинский сельсовет","22657436","сельское поселение"]
["Шатковский муниципальный район","Смирновский сельсовет","22657448","сельское поселение"]
["Шатковский муниципальный район","Староиванцевский сельсовет","22657456","сельское поселение"]
["Шатковский муниципальный район","Шараповский сельсовет","22657460","сельское поселение"]
["Шатковский муниципальный район","Шатковский муниципальный район","22657000","муниципальный район"]
["Шатковский муниципальный район","рабочий поселок Лесогорск","22657154","городское поселение, в состав которого входит поселок"]
["Шатковский муниципальный район","рабочий поселок Шатки","22657151","городское поселение, в состав которого входит поселок"]
["город Арзамас","город Арзамас","22703000","городской округ"]
["город Бор","город Бор","22712000","городской округ"]
["город Выкса","город Выкса","22715000","городской округ"]
["город Дзержинск","город Дзержинск","22721000","городской округ"]
["город Кулебаки","город Кулебаки","22727000","городской округ"]
["город Нижний Новгород","город Нижний Новгород","22701000","городской округ"]
["город Первомайск","город Первомайск","22734000","городской округ"]
["город Чкаловск","город Чкаловск","22755000","городской округ"]
["город Шахунья","город Шахунья","22758000","городской округ"]

{"sheet":"RPT_STATISTICS","index":10,"n_rows":10,"n_cols":13,"rows_kept":10,"cut":false,"hidden":true,"merged":[]}
["REGION_ID","OKTMO_ID","INN_ID","KPP_ID","FIL_ID","VDET_ID","PRD2_NAME","RPT_DATE","RPT_STATUS","V_STEAM","C_STEAM","V_WATER","C_WATER"]
["2634","5136468","5158839","5431564","5412526","2386758237","Январь","25-02-2022 13:28:20","Принят","31.89","88129.28","18951.178","41377032.64"]
["2634","5136468","5158839","5431564","5412526","2386758237","Февраль","25-03-2022 11:10:53","Принят","31.89","88129.28","12200.474","26755341.34"]
["2634","5136468","5158839","5431564","5412526","2386758237","Апрель","24-05-2022 14:31:51","Принят","31.89","88129.28","10313.63","22765449.04"]
["2634","5136468","5158839","5431564","5412526","2386758237","Май","28-06-2022 09:57:08","Принят","31.89","88129.28","9118.412","20159060.14"]
["2634","5136468","5158839","5431564","5412526","2386758237","Март","25-04-2022 13:57:00","Принят","31.89","88129.28","11486.12","25315738.91"]
["2634","5136468","5158839","5431564","5412526","2386758237","Июнь","26-07-2022 08:02:24","Принят","28.295","78195.88","7027.006","15563735.94"]
["2634","5136468","5158839","5431564","5412526","2386758237","Июль","24-08-2022 14:04:59","Принят","22.96","66091.78","7021.669","16206091.44"]
["2634","5136468","5158839","5431564","5412526","2386758237","Август","28-09-2022 09:39:27","Принят","31.963","92006.59","7119.413","16479756.05"]
["2634","5136468","5158839","5431564","5412526","2386758237","Сентябрь","21-10-2022 11:11:17","Принят","31.963","92006.59","7446.23","17208247.63"]

{"sheet":"DICTIONARIES","index":11,"n_rows":23,"n_cols":4,"rows_kept":23,"cut":false,"hidden":true,"merged":[]}
["DIC_NAME","DIC_VALUE","YEAR_NAME","MONTH_NAME"]
["MAX_PRICE","50000","2022","ALL"]
["MIN_PRICE","50","2022","ALL"]
["OKTMO_COULD_BE_UNLOCKED","NO","2022","ALL"]
["REPORT_EXISTENCE_STATUS","ERROR","2022","ALL"]
["REPORT_MONTH_ABSENCE","(M01)Y(M02)Y(M03)Y(M04)Y(M05)Y(M06)Y(M07)Y(M08)Y(M09)Y(M10)Y(M11)Y(M12)Y","2022","ALL"]
["REPORT_OVERDUE_INTERVAL","90","2022","ALL"]
["REPORT_YEAR_CONSISTENCY_STATUS","ERROR","2022","ALL"]
["REPORT_YEAR_LESS_MONTH_STATUS","ERROR","2022","ALL"]
["SUBSIDIARY_COULD_BE_UNLOCKED","NO","2022","ALL"]
["TOTAL_ISSUE_IS_NEGATIVE","ERROR","2022","ALL"]
["SUBSIDIARY_LIST","Арзамасский филиал","2022","Октябрь"]
["SUBSIDIARY_LIST","Нижегородская ГРЭС","2022","Октябрь"]
["SUBSIDIARY_LIST","Нижегородский областной радиотелевизионный передающий центр","2022","Октябрь"]
["SUBSIDIARY_LIST","Новогорьковская ТЭЦ","2022","Октябрь"]
["SUBSIDIARY_LIST","Новогорьковская ТЭЦ, квартальные сети","2022","Октябрь"]
["SUBSIDIARY_LIST","Новогорьковская ТЭЦ, магистральные сети","2022","Октябрь"]
["SUBSIDIARY_LIST","Отпуск по нерегулируемым ценам","2022","Октябрь"]
["SUBSIDIARY_LIST","Сормовская ТЭЦ","2022","Октябрь"]
["SUBSIDIARY_LIST","Филиал ОАО \"Газпром трансгаз\" Семеновское ЛПУ МГ","2022","Октябрь"]
["SUBSIDIARY_LIST","Филиал ФГУП \"РФЯЦ-ВНИИЭФ\" \"НИИИС им. Ю.Е. Седакова\"","2022","Октябрь"]
["SUBSIDIARY_LIST","город Арзамас","2022","Октябрь"]
["SUBSIDIARY_LIST","город Чкаловск","2022","Октябрь"]

{"sheet":"Лог обновления","index":12,"n_rows":68,"n_cols":4,"rows_kept":68,"cut":false,"hidden":true,"merged":[]}
[]
["3/17/2012  12:12:41 AM","Дата/Время","Сообщение","Статус"]
[null,"2/10/2022  4:39:36 PM","Проверка доступных обновлений...","Информация"]
[null,"2/10/2022  4:39:38 PM","Нет доступных обновлений для отчёта с кодом 46TE.STX!","Информация"]
[null,"2/10/2022  4:45:36 PM","Проверка доступных обновлений...","Информация"]
[null,"2/10/2022  4:45:37 PM","Нет доступных обновлений для отчёта с кодом 46TE.STX!","Информация"]
[null,"2/24/2022  10:54:32 AM","Проверка доступных обновлений...","Информация"]
[null,"2/24/2022  10:54:35 AM","Нет доступных обновлений для отчёта с кодом 46TE.STX!","Информация"]
[null,"2/25/2022  1:17:05 PM","Проверка доступных обновлений...","Информация"]
[null,"2/25/2022  1:17:06 PM","Нет доступных обновлений для отчёта с кодом 46TE.STX!","Информация"]
[null,"3/11/2022  10:36:45 AM","Проверка доступных обновлений...","Информация"]
[null,"3/11/2022  10:36:46 AM","Нет доступных обновлений для отчёта с кодом 46TE.STX!","Информация"]
[null,"3/25/2022  9:26:26 AM","Проверка доступных обновлений...","Информация"]
[null,"3/25/2022  9:26:37 AM","Нет доступных обновлений для отчёта с кодом 46TE.STX!","Информация"]
[null,"3/25/2022  10:59:56 AM","Проверка доступных обновлений...","Информация"]
[null,"3/25/2022  10:59:58 AM","Нет доступных обновлений для отчёта с кодом 46TE.STX!","Информация"]
[null,"4/13/2022  2:29:49 PM","Проверка доступных обновлений...","Информация"]
[null,"4/13/2022  2:29:51 PM","Нет доступных обновлений для отчёта с кодом 46TE.STX!","Информация"]
[null,"4/20/2022  3:34:00 PM","Проверка доступных обновлений...","Информация"]
[null,"4/20/2022  3:34:03 PM","Нет доступных обновлений для отчёта с кодом 46TE.STX!","Информация"]
[null,"4/25/2022  1:43:56 PM","Проверка доступных обновлений...","Информация"]
[null,"4/25/2022  1:43:57 PM","Нет доступных обновлений для отчёта с кодом 46TE.STX!","Информация"]
[null,"5/5/2022  11:31:14 AM","Проверка доступных обновлений...","Информация"]
[null,"5/5/2022  11:31:16 AM","Нет доступных обновлений для отчёта с кодом 46TE.STX!","Информация"]
[null,"5/24/2022  2:05:25 PM","Проверка доступных обновлений...","Информация"]
[null,"5/24/2022  2:05:28 PM","Нет доступных обновлений для отчёта с кодом 46TE.STX!","Информация"]
[null,"5/24/2022  2:17:47 PM","Проверка доступных обновлений...","Информация"]
[null,"5/24/2022  2:17:48 PM","Нет доступных обновлений для отчёта с кодом 46TE.STX!","Информация"]
[null,"6/6/2022  9:14:25 AM","Проверка доступных обновлений...","Информация"]
[null,"6/6/2022  9:14:27 AM","Нет доступных обновлений для отчёта с кодом 46TE.STX!","Информация"]
[null,"6/14/2022  9:48:43 AM","Проверка доступных обновлений...","Информация"]
[null,"6/14/2022  9:48:44 AM","Нет доступных обновлений для отчёта с кодом 46TE.STX!","Информация"]
[null,"6/28/2022  9:35:37 AM","Проверка доступных обновлений...","Информация"]
[null,"6/28/2022  9:35:40 AM","Нет доступных обновлений для отчёта с кодом 46TE.STX!","Информация"]
[null,"6/28/2022  9:40:58 AM","Проверка доступных обновлений...","Информация"]
[null,"6/28/2022  9:40:59 AM","Нет доступных обновлений для отчёта с кодом 46TE.STX!","Информация"]
[null,"7/4/2022  9:40:48 AM","Проверка доступных обновлений...","Информация"]
[null,"7/4/2022  9:40:50 AM","Нет доступных обновлений для отчёта с кодом 46TE.STX!","Информация"]
[null,"7/14/2022  9:12:20 AM","Проверка доступных обновлений...","Информация"]
[null,"7/14/2022  9:12:22 AM","Нет доступных обновлений для отчёта с кодом 46TE.STX!","Информация"]
[null,"7/20/2022  11:15:15 AM","Проверка доступных обновлений...","Информация"]
[null,"7/20/2022  11:15:18 AM","Нет доступных обновлений для отчёта с кодом 46TE.STX!","Информация"]
[null,"8/8/2022  2:45:53 PM","Проверка доступных обновлений...","Информация"]
[null,"8/8/2022  2:45:55 PM","Нет доступных обновлений для отчёта с кодом 46TE.STX!","Информация"]
[null,"8/8/2022  2:46:49 PM","Проверка доступных обновлений...","Информация"]
[null,"8/8/2022  2:46:51 PM","Нет доступных обновлений для отчёта с кодом 46TE.STX!","Информация"]
[null,"8/8/2022  2:48:41 PM","Проверка доступных обновлений...","Информация"]
[null,"8/8/2022  2:48:42 PM","Нет доступных обновлений для отчёта с кодом 46TE.STX!","Информация"]
[null,"8/22/2022  1:00:02 PM","Проверка доступных обновлений...","Информация"]
[null,"8/22/2022  1:00:04 PM","Нет доступных обновлений для отчёта с кодом 46TE.STX!","Информация"]
[null,"8/24/2022  1:30:45 PM","Проверка доступных обновлений...","Информация"]
[null,"8/24/2022  1:30:47 PM","Нет доступных обновлений для отчёта с кодом 46TE.STX!","Информация"]
[null,"8/24/2022  1:54:08 PM","Проверка доступных обновлений...","Информация"]
[null,"8/24/2022  1:54:10 PM","Нет доступных обновлений для отчёта с кодом 46TE.STX!","Информация"]
[null,"9/12/2022  11:33:24 AM","Проверка доступных обновлений...","Информация"]
[null,"9/12/2022  11:33:25 AM","Нет доступных обновлений для отчёта с кодом 46TE.STX!","Информация"]
[null,"9/12/2022  11:36:39 AM","Проверка доступных обновлений...","Информация"]
[null,"9/12/2022  11:36:40 AM","Нет доступных обновлений для отчёта с кодом 46TE.STX!","Информация"]
[null,"9/12/2022  11:40:10 AM","Проверка доступных обновлений...","Информация"]
[null,"9/12/2022  11:40:11 AM","Нет доступных обновлений для отчёта с кодом 46TE.STX!","Информация"]
[null,"9/12/2022  11:41:56 AM","Проверка доступных обновлений...","Информация"]
[null,"9/12/2022  11:41:57 AM","Нет доступных обновлений для отчёта с кодом 46TE.STX!","Информация"]
[null,"11/23/2022  1:44:35 PM","Проверка доступных обновлений...","Информация"]
[null,"11/23/2022  1:44:38 PM","Нет доступных обновлений для отчёта с кодом 46TE.STX!","Информация"]
[null,"11/25/2022  8:33:59 AM","Проверка доступных обновлений...","Информация"]
[null,"11/25/2022  8:34:01 AM","Нет доступных обновлений для отчёта с кодом 46TE.STX!","Информация"]
[null,"2/1/2023  10:49:44 AM","Проверка доступных обновлений...","Информация"]
[null,"2/1/2023  10:49:45 AM","Нет доступных обновлений для отчёта с кодом 46TE.STX!","Информация"]

{"sheet":"modInfo","index":13,"n_rows":7,"n_cols":2,"rows_kept":7,"cut":false,"hidden":true,"merged":[]}
[]
[null,"Сроки предоставления:\n\n• Отчёт за месяц необходимо представить до 30 числа после отчётного месяца\n• Отчёт за год необходимо представить до 1 марта\n• В случае отсутствия полезного отпуска за отчётный месяц (летний месяц, неотопительный период) отчёт необходимо предоставить в ФАС России, оставив диапазоны с объёмами незаполненными (пустыми)"]
[null,"Отчитывающаяся организация:\n\n• Вызов формы выбора организации осуществляется двойным щелчком мыши\n• Выбор организации осуществляется из общего перечня организаций в сфере теплоснабжения, который поддерживается региональными органами регулирования"]
[null,"Указание ссылки на документ:\n\n• Вызов меню для ввода ссылки осуществляется правой кнопкой мыши\n• В поле необходимо указать URL-ссылку на пояснительную записку (документ) в случае, если срок представления отчёта за период истёк"]
[null,"• Срок предоставления отчётности за истекший период составляет не более указанного количества дней с первого числа месяца, следующего за отчётным\n• По истечении этого срока отчётность может быть предоставлена только с приложением пояснительной записки, в которой следует указать причину несоблюдения сроков или причину повторного направления отчётности за истекший период"]
[]
[null,"Нет доступных обновлений, версия отчёта актуальна"]

{"sheet":"modHelp","index":14,"n_rows":25,"n_cols":2,"rows_kept":25,"cut":false,"hidden":true,"merged":[]}
{"$rows_empty":9}
[null,"• определяется по каждой группе потребителей в соответствии с порядком определения объёма (количества) потреблённой ТЭ исходя из показаний приборов учёта (технических средств измерений)"]
[null,"• определяется по каждой группе потребителей в соответствии с порядком определения объёма (количества) потреблённой ТЭ исходя из нормативов потребления коммунальных услуг (в соответствии с Правилами коммерческого учёта тепловой энергии, теплоносителя, утверждёнными постановлением Правительства Российской Федерации от 18.11.2013 N 1034, Правилами предоставления коммунальных услуг собственникам и пользователям помещений в многоквартирных и жилых домах, утверждёнными постановлением Правительства Российской Федерации от 06.05.2011 N 354)\n• не приводятся сведения об объёме полезного отпуска ТЭ в случае оплаты равномерно в течение календарного года в отсутствие отопительного периода"]
[null,"• приводятся сведения об объёме ТЭ в случае проведения перерасчёта, который осуществляется один раз в год, и который определяется расчётным способом в соответствии с Правилами предоставления коммунальных услуг собственникам и пользователям помещений в многоквартирных домах и жилых домов"]
[null,"• приводятся сведения о стоимости ТЭ (без НДС), определенной на основании счетов-фактур, выписанных потребителям в соответствии с договорами на теплоснабжение за отчётный период, в том числе в случае оплаты ТЭ равномерно в течение календарного года в отсутствие отопительного периода\n• специальные субвенции, субсидии, направленные на снижение тарифов на энергию, выделяемые из бюджетов всех уровней, в стоимость не включаются\n• данные приводятся без учёта повышающих коэффициентов к тарифам и нормативам в сфере теплоснабжения"]
[null,"• приводятся сведения о стоимости ТЭ (без НДС), определенной на основании счетов-фактур, выписанных потребителям в соответствии с договорами на теплоснабжение за отчётный период, в том числе в случае оплаты ТЭ равномерно в течение календарного года в отсутствие отопительного периода\n• специальные субвенции, субсидии, направленные на снижение тарифов на энергию, выделяемые из бюджетов всех уровней, в стоимость не включаются\n• данные приводятся без учёта повышающих коэффициентов к тарифам и нормативам в сфере теплоснабжения"]
[null,"• приводятся сведения о стоимости ТЭ (без НДС) в случае проведения перерасчёта, который осуществляется один раз в год, и который определяется расчётным способом в соответствии с Правилами предоставления коммунальных услуг собственникам и пользователям помещений в многоквартирных домах и жилых домов"]
[]
[]
[]
[]
[null,"• исполнители коммунальных услуг - юридическое лицо независимо от организационно-правовой формы или индивидуальный предприниматель, предоставляющие потребителю коммунальные услуги"]
[null,"• отражается информация, предоставляемая организациями, осуществляющими отпуск ТЭ на нужды отопления населению и исполнителям коммунальных услуг"]
[null,"• отражается информация, предоставляемая организациями, осуществляющими отпуск ТЭ на нужды горячего водоснабжения населению и исполнителям коммунальных услуг, то есть объёмы и стоимость ТЭ, отпускаемой на подогрев воды для нужд горячего водоснабжения, определяемые в соответствии с тарифными решениями регионального органа регулирования об установлении тарифов на тепловую энергию"]
[null,"• отражается полезный отпуск ТЭ теплосетевым и теплоснабжающим организациям для последующей продажи потребителям ТЭ"]
[null,"• отражается объём потерь ТЭ, приобретаемый теплосетевой организацией, для оказания услуг по передаче ТЭ"]
[null,"• отражается объём ТЭ, который используется на собственное производство энергоснабжающей организации (за исключением потерь ТЭ на собственное производство источника теплоснабжения и потерь в тепловых сетях организации) и не реализуется сторонним потребителям"]

{"sheet":"modCommonProcedures","index":15,"n_rows":0,"n_cols":0,"rows_kept":0,"cut":false,"hidden":true,"merged":[]}

{"sheet":"Титульный","index":16,"n_rows":66,"n_cols":15,"rows_kept":66,"cut":false,"hidden":false,"merged":[[20,4,20,5],[25,4,25,5],[4,4,4,7],[6,4,6,5],[14,4,14,5],[15,4,15,5],[8,4,9,4],[22,4,22,5],[16,4,16,5],[11,4,11,5],[17,4,17,5],[23,4,23,5],[24,4,24,5],[19,4,19,5],[31,4,31,7],[29,4,29,5],[33,4,33,5],[55,4,55,7],[26,4,26,5],[27,4,27,5],[37,4,37,7],[40,4,41,4],[28,4,28,5],[38,4,38,7],[35,4,35,5],[65,4,65,5],[56,4,56,7],[59,4,59,5],[61,4,61,5],[43,4,44,4],[54,4,54,7],[46,4,47,4],[57,4,57,7],[63,4,63,5],[49,4,52,4]]}
[]
[]
[]
[{"$nulls":4},"- обновление индикаторов проверки отчёта",null,null,"Форма № 46-ТЭ (полезный отпуск)\nУтверждена приказом Росстата №848 от 23.12.2016",{"$nulls":6},"REG"]
[{"$nulls":4},"Сведения о полезном отпуске (продаже) тепловой энергии отдельным категориям потребителей"]
[]
[{"$nulls":4},"Субъект РФ",null,null,"Нижегородская область"]
[]
[{"$nulls":4},"Отчётный период","Год",null,"2022"]
[{"$nulls":5},"Месяц",null,"Октябрь",{"$nulls":6},{"$f":"IF(LEN(H10)=0,0,VLOOKUP(H10,MONTH_VS_SEQUENCE_LIST,2,FALSE))","v":10}]
[]
[{"$nulls":4},"Тип отчётного месяца",null,null,"отопительный"]
[]
[]
[{"$nulls":4},"Муниципальный район",null,null,"Городецкий муниципальный район"]
[{"$nulls":4},"Муниципальное образование",null,null,"город Городец"]
[{"$nulls":4},"ОКТМО",null,null,"22628101",{"$nulls":6},5136468]
[{"$nulls":4},"Тип муниципального образования",null,null,{"$f":"IF(LEN(H17)=0,\"\",VLOOKUP(H17,OKTMO_HISTORY_VS_TYPE_LIST,2,FALSE))","v":"городское поселение, в состав которого входит город"}]
[]
[{"$nulls":4},"DATA_SOURCE",null,null,"RST"]
[{"$nulls":4},"RST_ORG_ID",null,null,"26358322"]
[]
[{"$nulls":4},{"$f":"\"Наименование \" & IF(H26=\"отсутствует\",\"индивидуального предпринимателя\",\"юридического лица\")","v":"Наименование юридического лица"},null,null,"МУП \"Тепловые сети\""]
[{"$nulls":4},"Наименование обособленного подразделения",null,null,"",{"$nulls":6},5412526]
[{"$nulls":4},"ИНН",null,null,"5248011350",{"$nulls":6},5158839]
[{"$nulls":4},"КПП",null,null,"524801001",{"$nulls":6},5431564]
[{"$nulls":4},"Код по ОКПО",null,null,"43033168"]
[{"$nulls":4},"Вид(-ы) деятельности организации",null,null,"Некомбинированное производство :: Передача :: Сбыт",{"$nulls":6},2386758237]
[{"$nulls":4},"Наличие статуса ЕТО",null,null,"да"]
[{"$nulls":4},"Утверждённый тариф",null,null,"одноставочный"]
[]
[{"$nulls":4},{"$f":"IF(H20=\"RST\",\"Организация выбрана из единого реестра ФАС России\",IF(H20=\"UNR\",\"Организация выбрана из перечня по нерегулируемым ценам\",\"\"))","v":"Организация выбрана из единого реестра ФАС России"}]
[]
[{"$nulls":4},"Система налогообложения",null,null,"ОСН"]
[]
[{"$nulls":4},"Наличие соглашений сторон по нерегулируемым ценам",null,null,"нет"]
[]
[{"$nulls":4},{"$f":"IF(LEN(O4)=0,\"(режим работы с отчётом не выбран)\",VLOOKUP(O4,REPORT_MODE_LIST,2,FALSE))","v":"Организация оказывает услуги по тарифам, подлежащим государственному регулированию"}]
[{"$nulls":4},"Контактные данные"]
[]
[{"$nulls":4},"Адреса организации","Юридический",null,"606505, Нижегородская обл., г.Городец, ул.М.Горького, д.68"]
[{"$nulls":5},"Почтовый",null,"606505, Нижегородская обл., г.Городец, ул.М.Горького, д.68"]
[]
[{"$nulls":4},"Руководитель","ФИО",null,"Фарафонов Вадим Викторович"]
[{"$nulls":5},"Контактный телефон",null,"883161 92588"]
[]
[{"$nulls":4},"Главный бухгалтер","ФИО",null,"Коняева Оксана Александровна"]
[{"$nulls":5},"Контактный телефон",null,"883161-92728"]
[]
[{"$nulls":4},"Должностное лицо, ответственное за составление формы","ФИО",null,"Конюхов Михаил Валентинович"]
[{"$nulls":5},"Должность",null,"главный экономист"]
[{"$nulls":5},"Контактный телефон",null,"8 831 61 93325"]
[{"$nulls":5},"e-mail",null,"econ@mupts-grd.ru"]
[]
[{"$nulls":4},"Дата последнего обновления реестра МР/МО/ОКТМО: 25.11.2022 8:34:26"]
[{"$nulls":4},"Дата последнего обновления данных реестра организаций: 25.11.2022 8:34:41"]
[]
[{"$nulls":4},"Дата последнего обновления данных индикаторов проверки отчёта: 25.11.2022 8:34:08"]
[]
[{"$nulls":4},"Если срок представления отчёта за период истёк, необходимо указать URL-ссылку на пояснительную записку (документ)"]
[]
[{"$nulls":4},"Образец пояснительной записки (документа) можно скачать по ссылке",null,null,"Загрузить"]
[]
[{"$nulls":4},"Сохранять отчёт в формате XLSB",null,null,"a"]
[]
[{"$nulls":4},"Максимальный интервал представления отчёта за прошедшие периоды, дней",null,null,90]

{"sheet":"Отпуск ТЭ","index":17,"n_rows":143,"n_cols":136,"rows_kept":143,"cut":false,"hidden":false,"merged":[[6,68,10,68],[6,69,10,69],[6,64,10,64],[6,70,10,70],[6,71,10,71],[6,50,10,50],[6,59,10,59],[6,60,10,60],[6,61,10,61],[6,62,10,62],[6,63,10,63],[6,65,10,65],[6,66,10,66],[6,67,10,67],[6,129,10,129],[138,12,138,13],[139,8,139,10],[138,8,138,10],[6,113,7,113],[8,30,10,30],[134,8,134,13],[5,130,5,135],[7,39,7,40],[7,41,7,42],[6,43,10,43],[8,113,10,113],[7,35,7,36],[6,112,7,112],[8,112,10,112],[6,78,10,78],[6,104,10,104],[7,23,7,24],[7,25,7,26],[7,27,7,28],[6,17,10,17],[6,18,10,18],[8,19,10,19],[8,20,10,20],[142,8,142,10],[141,14,141,15],[142,14,142,15],[8,34,10,34],[135,8,135,13],[8,25,10,25],[8,26,10,26],[8,23,10,23],[141,8,141,10],[139,12,139,13],[8,31,10,31],[8,32,10,32],[8,33,10,33],[6,16,10,16],[6,19,6,42],[8,12,8,15],[9,8,10,8],[9,13,9,15],[8,8,8,11],[7,29,7,30],[8,27,10,27],[9,9,9,11],[9,12,10,12],[8,21,10,21],[129,5,129,6],[6,4,10,4],[6,3,10,3],[14,3,50,3],[52,3,88,3],[6,5,10,6],[8,22,10,22],[6,8,7,15],[3,29,4,29],[90,3,126,3],[6,7,10,7],[50,5,50,6],[128,5,128,6],[127,5,127,6],[8,28,10,28],[8,29,10,29],[8,24,10,24],[7,19,7,20],[7,21,7,22],[3,33,4,33],[3,35,4,35],[8,39,10,39],[8,40,10,40],[8,41,10,41],[8,42,10,42],[8,38,10,38],[3,19,4,19],[3,21,4,21],[3,23,4,23],[3,25,4,25],[3,27,4,27],[3,37,4,37],[3,39,4,39],[3,41,4,41],[7,37,7,38],[8,37,10,37],[8,35,10,35],[8,36,10,36],[7,31,7,32],[7,33,7,34],[6,128,10,128],[6,111,7,111],[6,46,10,46],[6,47,10,47],[6,48,10,48],[6,49,10,49],[3,3,4,6],[3,9,4,14],[6,109,10,109],[6,114,10,114],[8,110,10,110],[8,111,10,111],[6,110,7,110],[3,31,4,31],[6,44,10,44],[6,45,10,45],[6,51,10,51],[6,52,10,52],[6,53,10,53],[6,54,10,54],[6,55,10,55],[6,56,10,56],[6,57,10,57],[6,58,10,58],[6,72,10,72],[6,73,10,73],[6,74,10,74],[6,75,10,75],[6,76,10,76],[6,77,10,77],[6,79,10,79],[6,80,10,80],[6,81,10,81],[6,82,10,82],[6,86,10,86],[6,87,10,87],[6,88,10,88],[6,89,10,89],[6,90,10,90],[6,91,10,91],[6,92,10,92],[6,93,10,93],[6,83,10,83],[6,84,10,84],[6,85,10,85],[6,94,10,94],[6,95,10,95],[6,96,10,96],[6,97,10,97],[6,108,10,108],[6,98,10,98],[6,99,10,99],[6,100,10,100],[6,101,10,101],[6,102,10,102],[6,103,10,103],[6,105,10,105],[6,106,10,106],[6,107,10,107]]}
[]
[{"$nulls":8},"L1","L1.1",null,"L1.2","L2","L2.1",{"$nulls":64},"L2.2",{"$nulls":50},"L2.2","L3","L3.1","L3.2","L4","L4.1","L4.2"]
[]
[null,null,null,"Полезный отпуск теплоэнергии в горячей воде и в паре",{"$nulls":5},"Коды по ОКЕИ: гигакалорий - 233, рубль - 383",{"$nulls":9},"Статус / дата отчёта","Принят","Статус / дата отчёта","Принят","Статус / дата отчёта","Принят","Статус / дата отчёта","Принят","Статус / дата отчёта","Принят","Статус / дата отчёта","Принят","Статус / дата отчёта","Принят","Статус / дата отчёта","Принят","Статус / дата отчёта","Принят","Статус / дата отчёта",null,"Статус / дата отчёта",null,"Статус / дата отчёта"]
[{"$nulls":20},"25-02-2022 13:28:20",null,"25-03-2022 11:10:53",null,"25-04-2022 13:57:00",null,"24-05-2022 14:31:51",null,"28-06-2022 09:57:08",null,"26-07-2022 08:02:24",null,"24-08-2022 14:04:59",null,"28-09-2022 09:39:27",null,"21-10-2022 11:11:17"]
[]
[null,null,null,"Теплоноситель","№ п/п","Наименование\n(ТЭ - тепловая энергия)",null,null,{"$f":"\"Отчётный период: \" & IF(Титульный!H10=\"\",\"\",Титульный!H10) & \", \" & IF(Титульный!H9=\"\",\"\",Титульный!H9)","v":"Отчётный период: Октябрь, 2022"},{"$nulls":8},"Комментарии",null,"Данные предыдущих отчётных периодов",{"$nulls":90},"SUM F46 VOLUME","SUM F46 COST","YEAR F46 RESULT VOLUME","YEAR F46 RESULT COST",null,"MONTH",1,2,3,4,5,6,7,8,9,10,11,12]
[{"$nulls":19},"Январь",null,"Февраль",null,"Март",null,"Апрель",null,"Май",null,"Июнь",null,"Июль",null,"Август",null,"Сентябрь",null,"Октябрь",null,"Ноябрь",null,"Декабрь",{"$nulls":73},"DEFINED",{"$f":"IF(MONTH_SEQUENCE>DM7,\"Y\",\"\")","v":"Y"},"Y","Y","Y","Y","Y","Y","Y","Y","","",""]
[{"$nulls":8},"Объём отпуска ТЭ, Гкал",null,null,null,"Стоимость (без НДС) отпущенной ТЭ, руб.",{"$nulls":6},"Объём отпуска ТЭ, Гкал","Стоимость (без НДС) отпущенной ТЭ, руб.","Объём отпуска ТЭ, Гкал","Стоимость (без НДС) отпущенной ТЭ, руб.","Объём отпуска ТЭ, Гкал","Стоимость (без НДС) отпущенной ТЭ, руб.","Объём отпуска ТЭ, Гкал","Стоимость (без НДС) отпущенной ТЭ, руб.","Объём отпуска ТЭ, Гкал","Стоимость (без НДС) отпущенной ТЭ, руб.","Объём отпуска ТЭ, Гкал","Стоимость (без НДС) отпущенной ТЭ, руб.","Объём отпуска ТЭ, Гкал","Стоимость (без НДС) отпущенной ТЭ, руб.","Объём отпуска ТЭ, Гкал","Стоимость (без НДС) отпущенной ТЭ, руб.","Объём отпуска ТЭ, Гкал","Стоимость (без НДС) отпущенной ТЭ, руб.","Объём отпуска ТЭ, Гкал","Стоимость (без НДС) отпущенной ТЭ, руб.","Объём отпуска ТЭ, Гкал","Стоимость (без НДС) отпущенной ТЭ, руб.","Объём отпуска ТЭ, Гкал","Стоимость (без НДС) отпущенной ТЭ, руб.",{"$nulls":67},"Объём отпуска ТЭ, Гкал","Стоимость (без НДС) отпущенной ТЭ, руб.","Объём отпуска ТЭ, Гкал","Стоимость (без НДС) отпущенной ТЭ, руб.",null,"ALLOW"]
[{"$nulls":8},"всего","в том числе",null,null,"всего","в том числе",{"$nulls":101},"FACT",{"$f":"IF(OR(RPT_STATUS_JAN=\"Принят\",RPT_STATUS_JAN=\"На рассмотрении\"),\"Y\",\"\")","v":"Y"},{"$f":"IF(OR(RPT_STATUS_FEB=\"Принят\",RPT_STATUS_FEB=\"На рассмотрении\"),\"Y\",\"\")","v":"Y"},{"$f":"IF(OR(RPT_STATUS_MAR=\"Принят\",RPT_STATUS_MAR=\"На рассмотрении\"),\"Y\",\"\")","v":"Y"},{"$f":"IF(OR(RPT_STATUS_APR=\"Принят\",RPT_STATUS_APR=\"На рассмотрении\"),\"Y\",\"\")","v":"Y"},{"$f":"IF(OR(RPT_STATUS_MAY=\"Принят\",RPT_STATUS_MAY=\"На рассмотрении\"),\"Y\",\"\")","v":"Y"},{"$f":"IF(OR(RPT_STATUS_JUN=\"Принят\",RPT_STATUS_JUN=\"На рассмотрении\"),\"Y\",\"\")","v":"Y"},{"$f":"IF(OR(RPT_STATUS_JUL=\"Принят\",RPT_STATUS_JUL=\"На рассмотрении\"),\"Y\",\"\")","v":"Y"},{"$f":"IF(OR(RPT_STATUS_AUG=\"Принят\",RPT_STATUS_AUG=\"На рассмотрении\"),\"Y\",\"\")","v":"Y"},{"$f":"IF(OR(RPT_STATUS_SEP=\"Принят\",RPT_STATUS_SEP=\"На рассмотрении\"),\"Y\",\"\")","v":"Y"},{"$f":"IF(OR(RPT_STATUS_OCT=\"Принят\",RPT_STATUS_OCT=\"На рассмотрении\"),\"Y\",\"\")","v":""},{"$f":"IF(OR(RPT_STATUS_NOV=\"Принят\",RPT_STATUS_NOV=\"На рассмотрении\"),\"Y\",\"\")","v":""},{"$f":"IF(OR(RPT_STATUS_DEC=\"Принят\",RPT_STATUS_DEC=\"На рассмотрении\"),\"Y\",\"\")","v":""}]
[{"$nulls":9},"по приборам учёта","расчётным методом","перерасчёт\n",null,"по приборам учёта","расчётным методом","перерасчёт\n",{"$nulls":99},"RESULT",{"$f":"IF(DM10=\"Y\",\"OK\",IF(DM8=DM10,\"OK\",IF(DM9=\"N\",\"OK\",\"ALARM\")))","v":"OK"},{"$f":"IF(DN10=\"Y\",\"OK\",IF(DN8=DN10,\"OK\",IF(DN9=\"N\",\"OK\",\"ALARM\")))","v":"OK"},"OK","OK","OK","OK","OK","OK","OK","OK","OK","OK"]
[]
[]
[]
[null,null,null,"Отпуск в горячей воде","I","Отпуск ТЭ потребителям с коллекторов электростанций (котельных)"]
[{"$nulls":4},"1","Прочие, промышленные и приравненные к ним потребители",null,null,{"$f":"J16+K16+L16","v":0},null,null,null,{"$f":"N16+O16+P16","v":0}]
[{"$nulls":4},"2","Население и исполнители коммунальных услуг, всего:",null,null,{"$f":"J17+K17+L17","v":0},{"$f":"SUM(J20:J21)","v":0},{"$f":"SUM(K20:K21)","v":0},{"$f":"SUM(L20:L21)","v":0},{"$f":"N17+O17+P17","v":0},{"$f":"SUM(N20:N21)","v":0},{"$f":"SUM(O20:O21)","v":0},{"$f":"SUM(P20:P21)","v":0}]
[]
[]
[{"$nulls":4},"2.1","- на нужды отопления",null,null,{"$f":"J20+K20+L20","v":0},null,null,null,{"$f":"N20+O20+P20","v":0}]
[{"$nulls":4},"2.2","- на нужды горячего водоснабжения ",null,null,{"$f":"J21+K21+L21","v":0},null,null,null,{"$f":"N21+O21+P21","v":0}]
[{"$nulls":4},"3","Бюджетные организации",null,null,{"$f":"J22+K22+L22","v":0},null,null,null,{"$f":"N22+O22+P22","v":0}]
[]
[]
[]
[{"$nulls":4},"4","Другие теплосетевые и теплоснабжающие организации",null,null,{"$f":"J26+K26+L26","v":0},null,null,null,{"$f":"N26+O26+P26","v":0}]
[{"$nulls":4},"5","На компенсацию потерь ТЭ при её передаче организациями, оказывающими услуги по передаче ТЭ",null,null,{"$f":"J27+K27+L27","v":0},null,null,null,{"$f":"N27+O27+P27","v":0}]
[]
[{"$nulls":4},"6","Собственное производство энергоснабжающей организации",null,null,{"$f":"J29+K29+L29","v":0},null,null,null,{"$f":"N29+O29+P29","v":0}]
[{"$nulls":4},"ПО.3","Полезный отпуск конечным потребителям",null,null,{"$f":"SUM(I16,I17,I22)","v":0},0,0,0,0,0,0,0]
[{"$nulls":4},"ПО.4","Полезный отпуск с учётом перепродажи",null,null,{"$f":"SUM(I16,I17,I22,I26)","v":0},0,0,0,0,0,0,0]
[{"$nulls":4},"ПО.5","Полезный отпуск",null,null,{"$f":"SUM(I16,I17,I22,I26,I27,I29)","v":0},0,0,0,0,0,0,0]
[{"$nulls":4},"II","Отпуск произведенной (приобретённой) ТЭ потребителям через тепловую сеть"]
[{"$nulls":4},"1","Прочие, промышленные и приравненные к ним потребители",null,null,{"$f":"J34+K34+L34","v":593.20600000000002},227.10599999999999,366.1,null,{"$f":"N34+O34+P34","v":1341771.68},519562.32,822209.36]
[{"$nulls":4},"2","Население и исполнители коммунальных услуг, всего:",null,null,{"$f":"J35+K35+L35","v":6711.0750000000007},{"$f":"SUM(J38:J39)","v":562.81899999999996},{"$f":"SUM(K38:K39)","v":6148.2560000000003},{"$f":"SUM(L38:L39)","v":0},{"$f":"N35+O35+P35","v":15455847.23},{"$f":"SUM(N38:N39)","v":1620078.36},{"$f":"SUM(O38:O39)","v":13835768.870000001},{"$f":"SUM(P38:P39)","v":0}]
[]
[]
[{"$nulls":4},"2.1","- на нужды отопления",null,null,{"$f":"J38+K38+L38","v":6104.5889999999999},null,6104.5889999999999,null,{"$f":"N38+O38+P38","v":13710073.130000001},null,13710073.130000001]
[{"$nulls":4},"2.2","- на нужды горячего водоснабжения ",null,null,{"$f":"J39+K39+L39","v":606.48599999999999},562.81899999999996,43.667000000000002,null,{"$f":"N39+O39+P39","v":1745774.1},1620078.36,125695.74]
[{"$nulls":4},"3","Бюджетные организации",null,null,{"$f":"J40+K40+L40","v":1879.0720000000001},878.61400000000003,1000.458,null,{"$f":"N40+O40+P40","v":4311238.4000000004},2061616.49,2249621.91]
[]
[]
[]
[{"$nulls":4},"4","Другие теплосетевые и теплоснабжающие организации",null,null,{"$f":"J44+K44+L44","v":0},null,null,null,{"$f":"N44+O44+P44","v":0}]
[{"$nulls":4},"5","На компенсацию потерь ТЭ при её передаче организациями, оказывающими услуги по передаче ТЭ",null,null,{"$f":"J45+K45+L45","v":0},null,null,null,{"$f":"N45+O45+P45","v":0}]
[]
[{"$nulls":4},"6","Собственное производство энергоснабжающей организации",null,null,{"$f":"J47+K47+L47","v":140.16399999999999},18.079000000000001,122.08499999999999,null,{"$f":"N47+O47+P47","v":326225.41000000003},52039.59,274185.82]
[{"$nulls":4},"ПО.3","Полезный отпуск конечным потребителям",null,null,{"$f":"SUM(I34,I35,I40)","v":9183.353000000001},{"$f":"SUM(J34,J35,J40)","v":1668.539},{"$f":"SUM(K34,K35,K40)","v":7514.8140000000003},0,21108857.310000002,4201257.17,16907600.140000001,0]
[{"$nulls":4},"ПО.4","Полезный отпуск с учётом перепродажи",null,null,{"$f":"SUM(I34,I35,I40,I44)","v":9183.353000000001},{"$f":"SUM(J34,J35,J40,J44)","v":1668.539},{"$f":"SUM(K34,K35,K40,K44)","v":7514.8140000000003},0,21108857.310000002,4201257.17,16907600.140000001,0]
[{"$nulls":4},"ПО.5","Полезный отпуск",null,null,{"$f":"SUM(I34,I35,I40,I44,I45,I47)","v":9323.5170000000016},{"$f":"SUM(J34,J35,J40,J44,J45,J47)","v":1686.6179999999999},{"$f":"SUM(K34,K35,K40,K44,K45,K47)","v":7636.8990000000003},0,21435082.720000003,4253296.76,17181785.960000001,0]
[{"$nulls":4},"ПО","Полезный отпуск - всего",null,null,{"$f":"SUM(I32,I50)","v":9323.5170000000016},1686.6179999999999,7636.8990000000003,0,21435082.720000003,4253296.76,17181785.960000001,0,null,null,null,18951.178,41377032.640000001,12200.474,26755341.34,11486.12,25315738.91,10313.629999999999,22765449.039999999,9118.4120000000003,20159060.140000001,7027.0060000000003,15563735.939999999,7021.6689999999999,16206091.439999999,7119.4129999999996,16479756.050000001,7446.23,17208247.629999999,{"$nulls":73},{"$f":"SUMIF($T$9:$AQ$9,DG$9,$T51:$AQ51)","v":90684.131999999983},{"$f":"SUMIF($T$9:$AQ$9,DH$9,$T51:$AQ51)","v":201830453.13},{"$f":"IF(MONTH_SEQUENCE=13,I51-L51,0)","v":0},{"$f":"IF(MONTH_SEQUENCE=13,M51-P51,0)","v":0}]
[]
[null,null,null,"Отпуск в паре","I","Отпуск ТЭ потребителям с коллекторов электростанций (котельных)"]
[{"$nulls":4},"1","Прочие, промышленные и приравненные к ним потребители",null,null,{"$f":"J54+K54+L54","v":0},null,null,null,{"$f":"N54+O54+P54","v":0}]
[{"$nulls":4},"2","Население и исполнители коммунальных услуг, всего:",null,null,{"$f":"J55+K55+L55","v":0},{"$f":"SUM(J58:J59)","v":0},{"$f":"SUM(K58:K59)","v":0},{"$f":"SUM(L58:L59)","v":0},{"$f":"N55+O55+P55","v":0},{"$f":"SUM(N58:N59)","v":0},{"$f":"SUM(O58:O59)","v":0},{"$f":"SUM(P58:P59)","v":0}]
[]
[]
[{"$nulls":4},"2.1","- на нужды отопления",null,null,{"$f":"J58+K58+L58","v":0},null,null,null,{"$f":"N58+O58+P58","v":0}]
[{"$nulls":4},"2.2","- на нужды горячего водоснабжения ",null,null,{"$f":"J59+K59+L59","v":0},null,null,null,{"$f":"N59+O59+P59","v":0}]
[{"$nulls":4},"3","Бюджетные организации",null,null,{"$f":"J60+K60+L60","v":24.757999999999999},24.757999999999999,null,null,{"$f":"N60+O60+P60","v":71265.740000000005},71265.740000000005]
[]
[]
[]
[{"$nulls":4},"4","Другие теплосетевые и теплоснабжающие организации",null,null,{"$f":"J64+K64+L64","v":0},null,null,null,{"$f":"N64+O64+P64","v":0}]
[{"$nulls":4},"5","На компенсацию потерь ТЭ при её передаче организациями, оказывающими услуги по передаче ТЭ",null,null,{"$f":"J65+K65+L65","v":0},null,null,null,{"$f":"N65+O65+P65","v":0}]
[]
[{"$nulls":4},"6","Собственное производство энергоснабжающей организации",null,null,{"$f":"J67+K67+L67","v":7.2050000000000001},null,7.2050000000000001,null,{"$f":"N67+O67+P67","v":20740.849999999999},null,20740.849999999999]
[{"$nulls":4},"ПО.3","Полезный отпуск конечным потребителям",null,null,{"$f":"SUM(I54,I55,I60)","v":24.757999999999999},24.757999999999999,0,0,71265.740000000005,71265.740000000005,0,0]
[{"$nulls":4},"ПО.4","Полезный отпуск с учётом перепродажи",null,null,{"$f":"SUM(I54,I55,I60,I64)","v":24.757999999999999},24.757999999999999,0,0,71265.740000000005,71265.740000000005,0,0]
[{"$nulls":4},"ПО.5","Полезный отпуск",null,null,{"$f":"SUM(I54,I55,I60,I64,I65,I67)","v":31.963000000000001},24.757999999999999,7.2050000000000001,0,92006.59,71265.740000000005,20740.849999999999,0]
[{"$nulls":4},"II","Отпуск произведенной (приобретённой) ТЭ потребителям через тепловую сеть"]
[{"$nulls":4},"1","Прочие, промышленные и приравненные к ним потребители",null,null,{"$f":"J72+K72+L72","v":0},null,null,null,{"$f":"N72+O72+P72","v":0}]
[{"$nulls":4},"2","Население и исполнители коммунальных услуг, всего:",null,null,{"$f":"J73+K73+L73","v":0},{"$f":"SUM(J76:J77)","v":0},{"$f":"SUM(K76:K77)","v":0},{"$f":"SUM(L76:L77)","v":0},{"$f":"N73+O73+P73","v":0},{"$f":"SUM(N76:N77)","v":0},{"$f":"SUM(O76:O77)","v":0},{"$f":"SUM(P76:P77)","v":0}]
[]
[]
[{"$nulls":4},"2.1","- на нужды отопления",null,null,{"$f":"J76+K76+L76","v":0},null,null,null,{"$f":"N76+O76+P76","v":0}]
[{"$nulls":4},"2.2","- на нужды горячего водоснабжения ",null,null,{"$f":"J77+K77+L77","v":0},null,null,null,{"$f":"N77+O77+P77","v":0}]
[{"$nulls":4},"3","Бюджетные организации",null,null,{"$f":"J78+K78+L78","v":0},null,null,null,{"$f":"N78+O78+P78","v":0}]
[]
[]
[]
[{"$nulls":4},"4","Другие теплосетевые и теплоснабжающие организации",null,null,{"$f":"J82+K82+L82","v":0},null,null,null,{"$f":"N82+O82+P82","v":0}]
[{"$nulls":4},"5","На компенсацию потерь ТЭ при её передаче организациями, оказывающими услуги по передаче ТЭ",null,null,{"$f":"J83+K83+L83","v":0},null,null,null,{"$f":"N83+O83+P83","v":0}]
[]
[{"$nulls":4},"6","Собственное производство энергоснабжающей организации",null,null,{"$f":"J85+K85+L85","v":0},null,null,null,{"$f":"N85+O85+P85","v":0}]
[{"$nulls":4},"ПО.3","Полезный отпуск конечным потребителям",null,null,{"$f":"SUM(I72,I73,I78)","v":0},{"$f":"SUM(J72,J73,J78)","v":0},{"$f":"SUM(K72,K73,K78)","v":0},0,0,0,0,0]
[{"$nulls":4},"ПО.4","Полезный отпуск с учётом перепродажи",null,null,{"$f":"SUM(I72,I73,I78,I82)","v":0},{"$f":"SUM(J72,J73,J78,J82)","v":0},{"$f":"SUM(K72,K73,K78,K82)","v":0},0,0,0,0,0]
[{"$nulls":4},"ПО.5","Полезный отпуск",null,null,{"$f":"SUM(I72,I73,I78,I82,I83,I85)","v":0},{"$f":"SUM(J72,J73,J78,J82,J83,J85)","v":0},{"$f":"SUM(K72,K73,K78,K82,K83,K85)","v":0},0,0,0,0,0]
[{"$nulls":4},"ПО","Полезный отпуск - всего",null,null,{"$f":"SUM(I70,I88)","v":31.963000000000001},24.757999999999999,7.2050000000000001,0,92006.59,71265.740000000005,20740.849999999999,0,null,null,null,31.89,88129.279999999999,31.89,88129.279999999999,31.89,88129.279999999999,31.89,88129.279999999999,31.89,88129.279999999999,28.295000000000002,78195.88,22.96,66091.78,31.963000000000001,92006.59,31.963000000000001,92006.59,{"$nulls":73},{"$f":"SUMIF($T$9:$AQ$9,DG$9,$T89:$AQ89)","v":274.63100000000003},{"$f":"SUMIF($T$9:$AQ$9,DH$9,$T89:$AQ89)","v":768947.24},{"$f":"IF(MONTH_SEQUENCE=13,I89-L89,0)","v":0},{"$f":"IF(MONTH_SEQUENCE=13,M89-P89,0)","v":0}]
[]
[null,null,null,"Отпуск в горячей воде и в паре"]
[{"$nulls":4},"1","Прочие, промышленные и приравненные к ним потребители",null,null,{"$f":"SUM(I16,I34,I54,I72)","v":593.20600000000002},{"$f":"SUM(J16,J34,J54,J72)","v":227.10599999999999},366.1,0,1341771.68,519562.32,822209.36,0]
[{"$nulls":4},"2","Население и исполнители коммунальных услуг, всего:",null,null,{"$f":"SUM(I17,I35,I55,I73)","v":6711.0750000000007},562.81899999999996,6148.2560000000003,0,15455847.23,1620078.36,13835768.870000001,0]
[]
[]
[{"$nulls":4},"2.1","- на нужды отопления",null,null,{"$f":"SUM(I20,I38,I58,I76)","v":6104.5889999999999},0,6104.5889999999999,0,13710073.130000001,0,13710073.130000001,0]
[{"$nulls":4},"2.2","- на нужды горячего водоснабжения ",null,null,{"$f":"SUM(I21,I39,I59,I77)","v":606.48599999999999},562.81899999999996,43.667000000000002,0,1745774.1,1620078.36,125695.74,0]
[{"$nulls":4},"3","Бюджетные организации",null,null,{"$f":"SUM(I22,I40,I60,I78)","v":1903.8300000000002},903.37200000000007,1000.458,0,4382504.1400000006,2132882.23,2249621.91,0]
[]
[]
[]
[{"$nulls":4},"4","Другие теплосетевые и теплоснабжающие организации",null,null,{"$f":"SUM(I26,I44,I64,I82)","v":0},0,0,0,0,0,0,0]
[{"$nulls":4},"5","На компенсацию потерь ТЭ при её передаче организациями, оказывающими услуги по передаче ТЭ",null,null,{"$f":"SUM(I27,I45,I65,I83)","v":0},0,0,0,0,0,0,0]
[]
[{"$nulls":4},"6","Собственное производство энергоснабжающей организации",null,null,{"$f":"SUM(I29,I47,I67,I85)","v":147.369},18.079000000000001,129.29,0,346966.26,52039.59,294926.67,0]
[{"$nulls":4},"ПО.3","Полезный отпуск конечным потребителям",null,null,{"$f":"SUM(I30,I48,I68,I86)","v":9208.1110000000008},1693.297,7514.8140000000003,0,21180123.050000001,4272522.91,16907600.140000001,0]
[{"$nulls":4},"ПО.4","Полезный отпуск с учётом перепродажи",null,null,{"$f":"SUM(I31,I49,I69,I87)","v":9208.1110000000008},1693.297,7514.8140000000003,0,21180123.050000001,4272522.91,16907600.140000001,0]
[{"$nulls":4},"ПО.5","Полезный отпуск",null,null,{"$f":"SUM(I32,I50,I70,I88)","v":9355.4800000000014},1711.376,7644.1040000000003,0,21527089.310000002,4324562.5,17202526.810000002,0]
{"$rows_empty":19}
[{"$nulls":5},"Общий полезный отпуск конечным потребителям\n(в горячей воде и паре)",null,null,{"$f":"SUM(I30,I48,I68,I86)","v":9208.1110000000008},1693.297,7514.8140000000003,0,21180123.050000001,4272522.91,16907600.140000001,0]
[{"$nulls":5},"Общий полезный отпуск с учётом перепродажи\n(в горячей воде и паре)",null,null,9208.1110000000008,1693.297,7514.8140000000003,0,21180123.050000001,4272522.91,16907600.140000001,0]
[{"$nulls":5},"Общий полезный отпуск\n(в горячей воде и паре)",null,null,{"$f":"SUM(I51,I89)","v":9355.4800000000014},1711.376,7644.1040000000003,0,21527089.310000002,4324562.5,17202526.810000002,0,null,null,null,{"$f":"SUM(T51,T89)","v":18983.067999999999},41465161.920000002,12232.364,26843470.620000001,11518.01,25403868.190000001,10345.519999999999,22853578.32,{"$f":"SUM(AB51,AB89)","v":9150.3019999999997},20247189.420000002,7055.3010000000004,15641931.82,7044.6289999999999,16272183.219999999,7151.3759999999993,16571762.640000001,{"$f":"SUM(AJ51,AJ89)","v":7478.1929999999993},17300254.219999999,0,0,0,0,0,0]
[]
[]
[]
[]
[{"$nulls":5},"Руководитель организации",null,null,{"$f":"IF(Титульный!H44=\"\",\"Не определено\",Титульный!H44)","v":"Фарафонов Вадим Викторович"}]
[{"$nulls":8},"(Ф.И.О.)",{"$nulls":6},"(подпись)"]
[]
[{"$nulls":5},"Должностное лицо,"]
[{"$nulls":5},"ответственное за предоставление статистической информации",null,null,{"$f":"IF(Титульный!H51=\"\",\"Не определено\",Титульный!H51)","v":"главный экономист"},null,null,null,{"$f":"IF(Титульный!H50=\"\",\"Не определено\",Титульный!H50)","v":"Конюхов Михаил Валентинович"}]
[{"$nulls":5},"(лицо, уполномоченное предоставлять статистическую информацию",null,null,"(должность)",null,null,null,"(Ф.И.О.)",null,null,"(подпись)"]
[{"$nulls":5},"от имени юридического лица или от имени гражданина,"]
[{"$nulls":5},"осуществляющего предпринимательскую деятельность",null,null,{"$f":"IF(Титульный!H52=\"\",\"Не определено\",Титульный!H52)","v":"8 831 61 93325"},{"$nulls":5},"«____» _________20__ год"]
[{"$nulls":5},"без образования юридического лица)",null,null,"(номер контактного телефона)",null,null,null,"(email)",null,"(дата составления документа)"]

{"sheet":"Комментарии","index":18,"n_rows":9,"n_cols":6,"rows_kept":9,"cut":false,"hidden":false,"merged":[]}
{"$rows_empty":8}
[{"$nulls":5},"Ниже вы можете оставить свои комментарии"]

{"sheet":"Проверка","index":19,"n_rows":15,"n_cols":8,"rows_kept":15,"cut":false,"hidden":false,"merged":[[8,4,8,7]]}
{"$rows_empty":8}
[{"$nulls":4},"Результаты проверки"]
[]
[{"$nulls":4},"Ссылка 1","Ссылка 2","Описание причины","Обязательность выполнения"]
[{"$nulls":4},"Титульный!H60",null,"Необходимо указать значение!","Ошибка"]
[{"$nulls":4},"Отпуск ТЭ!I128","Отпуск ТЭ!M128","Расчётная цена тепловой энергии в периоде \"Октябрь\" для конечных потребителей составляет ~ 2300,16 руб./Гкал","Предупреждение"]
[{"$nulls":4},"Отпуск ТЭ!I129","Отпуск ТЭ!M129","Расчётная цена тепловой энергии в периоде \"Октябрь\" для конечных потребителей с учётом перепродажи составляет ~ 2300,16 руб./Гкал","Предупреждение"]
[{"$nulls":4},"Отпуск ТЭ!I130","Отпуск ТЭ!M130","Расчётная цена тепловой энергии в периоде \"Октябрь\" составляет ~ 2301,01 руб./Гкал","Предупреждение"]

{"sheet":"modVLDIntegrityProv","index":20,"n_rows":130,"n_cols":16,"rows_kept":130,"cut":false,"hidden":true,"merged":[[12,8,12,15]]}
{"$rows_empty":12}
[{"$nulls":8},"RECOVERY_AREA"]
[]
[]
[{"$nulls":8},{"$f":"J16+K16+L16","v":0},null,null,null,{"$f":"N16+O16+P16","v":0}]
[{"$nulls":8},{"$f":"J17+K17+L17","v":0},{"$f":"SUM(J20:J21)","v":0},{"$f":"SUM(K20:K21)","v":0},{"$f":"SUM(L20:L21)","v":0},{"$f":"N17+O17+P17","v":0},{"$f":"SUM(N20:N21)","v":0},{"$f":"SUM(O20:O21)","v":0},{"$f":"SUM(P20:P21)","v":0}]
[]
[]
[{"$nulls":8},{"$f":"J20+K20+L20","v":0},null,null,null,{"$f":"N20+O20+P20","v":0}]
[{"$nulls":8},{"$f":"J21+K21+L21","v":0},null,null,null,{"$f":"N21+O21+P21","v":0}]
[{"$nulls":8},{"$f":"J22+K22+L22","v":0},null,null,null,{"$f":"N22+O22+P22","v":0}]
[]
[]
[]
[{"$nulls":8},{"$f":"J26+K26+L26","v":0},null,null,null,{"$f":"N26+O26+P26","v":0}]
[{"$nulls":8},{"$f":"J27+K27+L27","v":0},null,null,null,{"$f":"N27+O27+P27","v":0}]
[]
[{"$nulls":8},{"$f":"J29+K29+L29","v":0},null,null,null,{"$f":"N29+O29+P29","v":0}]
[{"$nulls":8},{"$f":"SUM(I16,I17,I22)","v":0},0,0,0,0,0,0,0]
[{"$nulls":8},{"$f":"SUM(I16,I17,I22,I26)","v":0},0,0,0,0,0,0,0]
[{"$nulls":8},{"$f":"SUM(I16,I17,I22,I26,I27,I29)","v":0},0,0,0,0,0,0,0]
[]
[{"$nulls":8},{"$f":"J34+K34+L34","v":0},null,null,null,{"$f":"N34+O34+P34","v":0}]
[{"$nulls":8},{"$f":"J35+K35+L35","v":0},{"$f":"SUM(J38:J39)","v":0},{"$f":"SUM(K38:K39)","v":0},{"$f":"SUM(L38:L39)","v":0},{"$f":"N35+O35+P35","v":0},{"$f":"SUM(N38:N39)","v":0},{"$f":"SUM(O38:O39)","v":0},{"$f":"SUM(P38:P39)","v":0}]
[]
[]
[{"$nulls":8},{"$f":"J38+K38+L38","v":0},null,null,null,{"$f":"N38+O38+P38","v":0}]
[{"$nulls":8},{"$f":"J39+K39+L39","v":0},null,null,null,{"$f":"N39+O39+P39","v":0}]
[{"$nulls":8},{"$f":"J40+K40+L40","v":0},null,null,null,{"$f":"N40+O40+P40","v":0}]
[]
[]
[]
[{"$nulls":8},{"$f":"J44+K44+L44","v":0},null,null,null,{"$f":"N44+O44+P44","v":0}]
[{"$nulls":8},{"$f":"J45+K45+L45","v":0},null,null,null,{"$f":"N45+O45+P45","v":0}]
[]
[{"$nulls":8},{"$f":"J47+K47+L47","v":0},null,null,null,{"$f":"N47+O47+P47","v":0}]
[{"$nulls":8},{"$f":"SUM(I34,I35,I40)","v":0},{"$f":"SUM(J34,J35,J40)","v":0},{"$f":"SUM(K34,K35,K40)","v":0},0,0,0,0,0]
[{"$nulls":8},{"$f":"SUM(I34,I35,I40,I44)","v":0},{"$f":"SUM(J34,J35,J40,J44)","v":0},{"$f":"SUM(K34,K35,K40,K44)","v":0},0,0,0,0,0]
[{"$nulls":8},{"$f":"SUM(I34,I35,I40,I44,I45,I47)","v":0},{"$f":"SUM(J34,J35,J40,J44,J45,J47)","v":0},{"$f":"SUM(K34,K35,K40,K44,K45,K47)","v":0},0,0,0,0,0]
[{"$nulls":8},{"$f":"SUM(I32,I50)","v":0},0,0,0,0,0,0,0]
[]
[]
[{"$nulls":8},{"$f":"J54+K54+L54","v":0},null,null,null,{"$f":"N54+O54+P54","v":0}]
[{"$nulls":8},{"$f":"J55+K55+L55","v":0},{"$f":"SUM(J58:J59)","v":0},{"$f":"SUM(K58:K59)","v":0},{"$f":"SUM(L58:L59)","v":0},{"$f":"N55+O55+P55","v":0},{"$f":"SUM(N58:N59)","v":0},{"$f":"SUM(O58:O59)","v":0},{"$f":"SUM(P58:P59)","v":0}]
[]
[]
[{"$nulls":8},{"$f":"J58+K58+L58","v":0},null,null,null,{"$f":"N58+O58+P58","v":0}]
[{"$nulls":8},{"$f":"J59+K59+L59","v":0},null,null,null,{"$f":"N59+O59+P59","v":0}]
[{"$nulls":8},{"$f":"J60+K60+L60","v":0},null,null,null,{"$f":"N60+O60+P60","v":0}]
[]
[]
[]
[{"$nulls":8},{"$f":"J64+K64+L64","v":0},null,null,null,{"$f":"N64+O64+P64","v":0}]
[{"$nulls":8},{"$f":"J65+K65+L65","v":0},null,null,null,{"$f":"N65+O65+P65","v":0}]
[]
[{"$nulls":8},{"$f":"J67+K67+L67","v":0},null,null,null,{"$f":"N67+O67+P67","v":0}]
[{"$nulls":8},{"$f":"SUM(I54,I55,I60)","v":0},0,0,0,0,0,0,0]
[{"$nulls":8},{"$f":"SUM(I54,I55,I60,I64)","v":0},0,0,0,0,0,0,0]
[{"$nulls":8},{"$f":"SUM(I54,I55,I60,I64,I65,I67)","v":0},0,0,0,0,0,0,0]
[]
[{"$nulls":8},{"$f":"J72+K72+L72","v":0},null,null,null,{"$f":"N72+O72+P72","v":0}]
[{"$nulls":8},{"$f":"J73+K73+L73","v":0},{"$f":"SUM(J76:J77)","v":0},{"$f":"SUM(K76:K77)","v":0},{"$f":"SUM(L76:L77)","v":0},{"$f":"N73+O73+P73","v":0},{"$f":"SUM(N76:N77)","v":0},{"$f":"SUM(O76:O77)","v":0},{"$f":"SUM(P76:P77)","v":0}]
[]
[]
[{"$nulls":8},{"$f":"J76+K76+L76","v":0},null,null,null,{"$f":"N76+O76+P76","v":0}]
[{"$nulls":8},{"$f":"J77+K77+L77","v":0},null,null,null,{"$f":"N77+O77+P77","v":0}]
[{"$nulls":8},{"$f":"J78+K78+L78","v":0},null,null,null,{"$f":"N78+O78+P78","v":0}]
[]
[]
[]
[{"$nulls":8},{"$f":"J82+K82+L82","v":0},null,null,null,{"$f":"N82+O82+P82","v":0}]
[{"$nulls":8},{"$f":"J83+K83+L83","v":0},null,null,null,{"$f":"N83+O83+P83","v":0}]
[]
[{"$nulls":8},{"$f":"J85+K85+L85","v":0},null,null,null,{"$f":"N85+O85+P85","v":0}]
[{"$nulls":8},{"$f":"SUM(I72,I73,I78)","v":0},{"$f":"SUM(J72,J73,J78)","v":0},{"$f":"SUM(K72,K73,K78)","v":0},0,0,0,0,0]
[{"$nulls":8},{"$f":"SUM(I72,I73,I78,I82)","v":0},{"$f":"SUM(J72,J73,J78,J82)","v":0},{"$f":"SUM(K72,K73,K78,K82)","v":0},0,0,0,0,0]
[{"$nulls":8},{"$f":"SUM(I72,I73,I78,I82,I83,I85)","v":0},{"$f":"SUM(J72,J73,J78,J82,J83,J85)","v":0},{"$f":"SUM(K72,K73,K78,K82,K83,K85)","v":0},0,0,0,0,0]
[{"$nulls":8},{"$f":"SUM(I70,I88)","v":0},0,0,0,0,0,0,0]
[]
[]
[{"$nulls":8},{"$f":"SUM(I16,I34,I54,I72)","v":0},{"$f":"SUM(J16,J34,J54,J72)","v":0},0,0,0,0,0,0]
[{"$nulls":8},{"$f":"SUM(I17,I35,I55,I73)","v":0},0,0,0,0,0,0,0]
[]
[]
[{"$nulls":8},{"$f":"SUM(I20,I38,I58,I76)","v":0},0,0,0,0,0,0,0]
[{"$nulls":8},0,0,0,0,0,0,0,0]
[{"$nulls":8},0,0,0,0,0,0,0,0]
[]
[]
[]
[{"$nulls":8},{"$f":"SUM(I26,I44,I64,I82)","v":0},0,0,0,0,0,0,0]
[{"$nulls":8},0,0,0,0,0,0,0,0]
[]
[{"$nulls":8},{"$f":"SUM(I29,I47,I67,I85)","v":0},0,0,0,0,0,0,0]
[{"$nulls":8},0,0,0,0,0,0,0,0]
[{"$nulls":8},0,0,0,0,0,0,0,0]
[{"$nulls":8},0,0,0,0,0,0,0,0]
{"$rows_empty":19}
[{"$nulls":8},{"$f":"SUM(I30,I48,I68,I86)","v":0},0,0,0,0,0,0,0]
[{"$nulls":8},0,0,0,0,0,0,0,0]
[{"$nulls":8},{"$f":"SUM(I51,I89)","v":0},0,0,0,0,0,0,0]

{"sheet":"modRequestSpecificData","index":21,"n_rows":0,"n_cols":0,"rows_kept":0,"cut":false,"hidden":true,"merged":[]}

{"sheet":"modRequestReestrData","index":22,"n_rows":0,"n_cols":0,"rows_kept":0,"cut":false,"hidden":true,"merged":[]}

{"sheet":"modfrmReportMode","index":23,"n_rows":0,"n_cols":0,"rows_kept":0,"cut":false,"hidden":true,"merged":[]}

{"sheet":"modSheetTitle","index":24,"n_rows":0,"n_cols":0,"rows_kept":0,"cut":false,"hidden":true,"merged":[]}

{"sheet":"modfrmRegion","index":25,"n_rows":0,"n_cols":0,"rows_kept":0,"cut":false,"hidden":true,"merged":[]}

{"sheet":"modfrmReestr","index":26,"n_rows":0,"n_cols":0,"rows_kept":0,"cut":false,"hidden":true,"merged":[]}

{"sheet":"modUpdTemplMain","index":27,"n_rows":0,"n_cols":0,"rows_kept":0,"cut":false,"hidden":true,"merged":[]}

{"sheet":"modfrmCheckUpdates","index":28,"n_rows":0,"n_cols":0,"rows_kept":0,"cut":false,"hidden":true,"merged":[]}

{"sheet":"modIHLCommandBar","index":29,"n_rows":0,"n_cols":0,"rows_kept":0,"cut":false,"hidden":true,"merged":[]}